Authority,Department,Spending Area,Expense Type,Posting Date,Reference,Amount,Supplier
OXFORDSHIRE CC,SOCIAL AND COMMUNITY SERVICES,FLEET OPERATIONS,PAYMENTS TO HEALTH AUTHORITIES,28/06/2022,10120555855,654.00,WINDMILL SPECIAL NEEDS
OXFORDSHIRE CC,"CHILDRENS, YOUNG PEOPLE AND FAMILIES",KINGFISHER,MATERIALS,28/06/2022,10120555501,47.00,INTERFLORA BRITISH UNI
OXFORDSHIRE CC,"CHILDRENS, YOUNG PEOPLE AND FAMILIES",THAME E&A HOME,VEHICLES AND PLANT - REPAIRS AND MAIN,28/06/2022,10120555663,500.00,1ST CHOICE DOMESTICS L
OXFORDSHIRE CC,"CHILDRENS, YOUNG PEOPLE AND FAMILIES",DIDCOT MOVE-ON HOME,CATERING PROVISIONS,28/06/2022,10120555665,12.50,B&M 411 - BASINGSTOKE
OXFORDSHIRE CC,"CHILDRENS, YOUNG PEOPLE AND FAMILIES",FSP NON-STAFFING - CENTRAL,PAYMENTS TO VOLUNTARY BODIES,28/06/2022,10120555667,380.00,WATFORD MENCAP
OXFORDSHIRE CC,SOCIAL AND COMMUNITY SERVICES,SCHOOLS FM CATERING AREA 2,MATERIALS,28/06/2022,10120555669,15.00,AMZNMKTPLACE
OXFORDSHIRE CC,SOCIAL AND COMMUNITY SERVICES,ADULTS AT RISK,HIRE OF ACCOMMODATION AND FACILITIES,28/06/2022,10120555819,474.23,TRAVELODGE
OXFORDSHIRE CC,SOCIAL AND COMMUNITY SERVICES,ADULTS AT RISK,HIRE OF ACCOMMODATION AND FACILITIES,28/06/2022,10120555821,884.26,TRAVELODGE
OXFORDSHIRE CC,"CHILDRENS, YOUNG PEOPLE AND FAMILIES","	LEAVING CARE SOUTH",MATERIALS,28/06/2022,10120555823,-31.99,AMZ NESTEE
OXFORDSHIRE CC,"CHILDRENS, YOUNG PEOPLE AND FAMILIES",EYNSHAM,MATERIALS,28/06/2022,10120555825,99.98,AMZNMKTPLACE
OXFORDSHIRE CC,"CHILDRENS, YOUNG PEOPLE AND FAMILIES",EYNSHAM,MATERIALS,28/06/2022,10120555827,294.69,AMZNMKTPLACE
OXFORDSHIRE CC,"CHILDRENS, YOUNG PEOPLE AND FAMILIES",EYNSHAM,MATERIALS,28/06/2022,10120555829,27.99,AMZNMKTPLACE AMAZON.CO
OXFORDSHIRE CC,"CHILDRENS, YOUNG PEOPLE AND FAMILIES",EYNSHAM,MATERIALS,28/06/2022,10120555831,24.50,AMZNMKTPLACE
OXFORDSHIRE CC,"CHILDRENS, YOUNG PEOPLE AND FAMILIES",EYNSHAM,TELEPHONE - EQUIPMENT,28/06/2022,10120555519,10.00,GIFFGAFF
OXFORDSHIRE CC,"CHILDRENS, YOUNG PEOPLE AND FAMILIES",40 THE MOORS,CLOTHING AND UNIFORMS,28/06/2022,10120555525,37.94,WWW.PMGSCHOOLWEAR.CO.U
OXFORDSHIRE CC,ENVIRONMENT AND ECONOMY,"	ABBEY HOUSE",MATERIALS,28/06/2022,10120555677,6.80,AMZNMKTPLACE
OXFORDSHIRE CC,"CHILDRENS, YOUNG PEOPLE AND FAMILIES",CHILDREN IN CARE NON-STAFFING - SOUTH,FURNITURE,28/06/2022,10120555837,987.00,DFS
OXFORDSHIRE CC,"CHILDRENS, YOUNG PEOPLE AND FAMILIES",CHILDREN IN CARE NON-STAFFING - SOUTH,FURNITURE,28/06/2022,10120555839,137.00,DUNELM LTD
OXFORDSHIRE CC,"CHILDRENS, YOUNG PEOPLE AND FAMILIES",CHILDREN IN CARE NON-STAFFING - SOUTH,MATERIALS,28/06/2022,10120555841,"1,131.18",CURRYS OXFORD
OXFORDSHIRE CC,"CHILDRENS, YOUNG PEOPLE AND FAMILIES",40 THE MOORS,CATERING,28/06/2022,10120555527,65.90,JUST EAT
OXFORDSHIRE CC,"CHILDRENS, YOUNG PEOPLE AND FAMILIES",40 THE MOORS,CATERING,28/06/2022,10120555529,44.00,JUST EAT
OXFORDSHIRE CC,SOCIAL AND COMMUNITY SERVICES,SCHOOLS FM CATERING AREA 2,MATERIALS,28/06/2022,10120555459,143.88,AMZNMKTPLACE
OXFORDSHIRE CC,SOCIAL AND COMMUNITY SERVICES,CSS - BANBURY,CATERING PROVISIONS,28/06/2022,10120555461,49.27,SAINSBURYS.CO.UK
OXFORDSHIRE CC,ENVIRONMENT AND ECONOMY,P&S OPERATIONAL REV,PAYMENTS TO TRANSPORT OPERATORS,28/06/2022,10120555475,54.30,WWW.GWR.COM
OXFORDSHIRE CC,ENVIRONMENT AND ECONOMY,P&S OPERATIONAL REV,PAYMENTS TO TRANSPORT OPERATORS,28/06/2022,10120555467,20.30,WWW.GWR.COM
OXFORDSHIRE CC,ENVIRONMENT AND ECONOMY,P&S OPERATIONAL REV,PAYMENTS TO TRANSPORT OPERATORS,28/06/2022,10120555469,63.95,WWW.GWR.COM
OXFORDSHIRE CC,ENVIRONMENT AND ECONOMY,P&S OPERATIONAL REV,PAYMENTS TO TRANSPORT OPERATORS,28/06/2022,10120555471,15.40,WWW.GWR.COM
OXFORDSHIRE CC,ENVIRONMENT AND ECONOMY,P&S OPERATIONAL REV,PAYMENTS TO TRANSPORT OPERATORS,28/06/2022,10120555473,173.10,WWW.GWR.COM
OXFORDSHIRE CC,ENVIRONMENT AND ECONOMY,P&S OPERATIONAL REV,PAYMENTS TO TRANSPORT OPERATORS,28/06/2022,10120555477,69.85,WWW.GWR.COM
OXFORDSHIRE CC,"CHILDRENS, YOUNG PEOPLE AND FAMILIES",THAME E&A HOME,ENTERTAINMENT EXPENSES,28/06/2022,10120555623,9.70,THAME LEISURE CENTRE
OXFORDSHIRE CC,CORPORATE CORE,SCHOOLS FM CATERING AREA 4,CATERING PROVISIONS,28/06/2022,10120555625,9.29,APPLETON COMMUNITY SHO
OXFORDSHIRE CC,"CHILDRENS, YOUNG PEOPLE AND FAMILIES",KINGFISHER,MATERIALS,28/06/2022,10120555503,42.00,INTERFLORA BRITISH UNI
OXFORDSHIRE CC,"CHILDRENS, YOUNG PEOPLE AND FAMILIES",THAME E&A HOME,CATERING PROVISIONS,28/06/2022,10120555495,221.27,TESCO STORES 2038
OXFORDSHIRE CC,"CHILDRENS, YOUNG PEOPLE AND FAMILIES",THAME E&A HOME,MATERIALS,28/06/2022,10120555889,4.98,AMZNMKTPLACE AMAZON.CO
OXFORDSHIRE CC,"CHILDRENS, YOUNG PEOPLE AND FAMILIES",FAMILY SOLUTIONS PLUS NON-STAFF - NORTH,PAYMENTS TO TRANSPORT OPERATORS,28/06/2022,10120555893,6.92,THETRAINLINE.COM
OXFORDSHIRE CC,"CHILDRENS, YOUNG PEOPLE AND FAMILIES",FAMILY SOLUTIONS PLUS NON-STAFF - NORTH,PAYMENTS TO TRANSPORT OPERATORS,28/06/2022,10120555895,6.82,THETRAINLINE.COM
OXFORDSHIRE CC,ENVIRONMENT AND ECONOMY,HARD FM,HARDWARE AND CROCKERY,28/06/2022,10120555411,36.83,OXON FASTENING SYSTEMS
OXFORDSHIRE CC,SOCIAL AND COMMUNITY SERVICES,CSS BICESTER,CATERING PROVISIONS,28/06/2022,10120555413,70.19,TESCO STORE 2162
OXFORDSHIRE CC,"CHILDRENS, YOUNG PEOPLE AND FAMILIES",FSP NON-STAFFING - CENTRAL,CLOTHING AND UNIFORMS,28/06/2022,10120555423,160.60,WWW.KITLOCKER.COM
OXFORDSHIRE CC,"CHILDRENS, YOUNG PEOPLE AND FAMILIES",FSP NON-STAFFING - CENTRAL,FURNITURE,28/06/2022,10120555421,179.00,BEDSDIVANS
OXFORDSHIRE CC,"CHILDRENS, YOUNG PEOPLE AND FAMILIES",PAUSE PROGRAMME,CATERING PROVISIONS,28/06/2022,10120555573,4.81,NISA DELTEYS
OXFORDSHIRE CC,"CHILDRENS, YOUNG PEOPLE AND FAMILIES",CHILDREN IN CARE NON-STAFFING - NORTH,PAYMENT TO GOVERNMENT DEPARTMENTS,28/06/2022,10120555577,38.00,GEN REGISTER OFFICE
OXFORDSHIRE CC,"CHILDRENS, YOUNG PEOPLE AND FAMILIES",FIELDWORK UASC,RESIDENTIAL ACTIVITIES,28/06/2022,10120555587,18.99,THE GYM LIMITED
OXFORDSHIRE CC,"CHILDRENS, YOUNG PEOPLE AND FAMILIES",FIELDWORK UASC,MATERIALS,28/06/2022,10120555589,-10.95,AMZ AMAZON.CO.UK
OXFORDSHIRE CC,"CHILDRENS, YOUNG PEOPLE AND FAMILIES",VULNERABLE LEARNERS,"BOOKS, DVDS AND CDS",28/06/2022,10120555581,125.93,HTTP://WWW.QUAYBOOKS.C
OXFORDSHIRE CC,"CHILDRENS, YOUNG PEOPLE AND FAMILIES",FIELDWORK UASC,MATERIALS,28/06/2022,10120555591,-20.00,AMZ EDS JEWELLERS
OXFORDSHIRE CC,"CHILDRENS, YOUNG PEOPLE AND FAMILIES",THAME E&A HOME,CATERING PROVISIONS,28/06/2022,10120555739,4.00,ASDA SUPERSTORE
OXFORDSHIRE CC,CORPORATE CORE,"	CORPORATE FINANCE",PAYMENTS TO TRANSPORT OPERATORS,28/06/2022,10120555745,35.30,WWW.GWR.COM
OXFORDSHIRE CC,SOCIAL AND COMMUNITY SERVICES,CSS WITNEY,MATERIALS,28/06/2022,10120555749,22.49,AMZNMKTPLACE AMAZON.CO
OXFORDSHIRE CC,SOCIAL AND COMMUNITY SERVICES,CSS WITNEY,MATERIALS,28/06/2022,10120555751,458.99,AMZNMKTPLACE
OXFORDSHIRE CC,"CHILDRENS, YOUNG PEOPLE AND FAMILIES",FIELDWORK UASC,MATERIALS,28/06/2022,10120555593,-17.78,AMZ TOP DEALS UK
OXFORDSHIRE CC,"CHILDRENS, YOUNG PEOPLE AND FAMILIES",FAMILY SOLUTIONS PLUS NON-STAFF � SOUTH,MATERIALS,28/06/2022,10120555437,7.95,AMZNMKTPLACE
OXFORDSHIRE CC,"CHILDRENS, YOUNG PEOPLE AND FAMILIES",FAMILY SOLUTIONS PLUS NON-STAFF � SOUTH,PAYMENTS TO TRANSPORT OPERATORS,28/06/2022,10120555435,128.18,THETRAINLINE.COM
OXFORDSHIRE CC,SOCIAL AND COMMUNITY SERVICES,CSS WITNEY,MATERIALS,28/06/2022,10120555753,33.59,AMZNMKTPLACE
OXFORDSHIRE CC,"CHILDRENS, YOUNG PEOPLE AND FAMILIES",PD EQUIPMENT,DISABILITY AIDS AND EQUIPMENT,28/06/2022,10120555755,450.00,MOORINGS MEDIQUIP UK L
OXFORDSHIRE CC,"CHILDRENS, YOUNG PEOPLE AND FAMILIES",MARKETING,PAYMENTS TO TRANSPORT OPERATORS,28/06/2022,10120555455,16.89,PAYPAL  TRAINLINE
OXFORDSHIRE CC,"CHILDRENS, YOUNG PEOPLE AND FAMILIES",STH EARLY HELP-ABNDN,MATERIALS,28/06/2022,10120555439,74.22,AMZNMKTPLACE
OXFORDSHIRE CC,"CHILDRENS, YOUNG PEOPLE AND FAMILIES",MARKETING,MATERIALS,28/06/2022,10120555457,22.99,AMZNMKTPLACE
OXFORDSHIRE CC,"CHILDRENS, YOUNG PEOPLE AND FAMILIES",MANAGEMENT RECHARGES,HIRED AND CONTRACTED SERVICES,28/06/2022,10120555443,31.72,AMZNMKTPLACE
OXFORDSHIRE CC,SOCIAL AND COMMUNITY SERVICES,CSS BICESTER,MATERIALS,28/06/2022,10120555445,7.99,AMZNMKTPLACE AMAZON.CO
OXFORDSHIRE CC,SOCIAL AND COMMUNITY SERVICES,CSS BICESTER,MATERIALS,28/06/2022,10120555447,73.99,AMZNMKTPLACE AMAZON.CO
OXFORDSHIRE CC,SOCIAL AND COMMUNITY SERVICES,CSS BICESTER,MATERIALS,28/06/2022,10120555449,5.95,AMZNMKTPLACE AMAZON.CO
OXFORDSHIRE CC,SOCIAL AND COMMUNITY SERVICES,PROPERTY CLEANING,CATERING PROVISIONS,28/06/2022,10120555451,8.01,MILK AND MORE (RECUR
OXFORDSHIRE CC,"CHILDRENS, YOUNG PEOPLE AND FAMILIES",MARKETING,PAYMENTS TO TRANSPORT OPERATORS,28/06/2022,10120555453,36.29,PAYPAL  TRAINLINE
OXFORDSHIRE CC,CORPORATE CORE,PUBLIC HEALTH GENERA,POSTAGE AND DELIVERY,28/06/2022,10120555601,11.25,ROYAL MAIL GROUP LTD
OXFORDSHIRE CC,"CHILDRENS, YOUNG PEOPLE AND FAMILIES",FAMILY SOLUTIONS PLUS NON-STAFF - NORTH,DAY ACTIVITIES,28/06/2022,10120555603,20.00,YOGALINA WELLNESS
OXFORDSHIRE CC,ENVIRONMENT AND ECONOMY,WITNEY LIBRARY,"NEWSPAPERS, PERIODICALS AND PUBLICATIONS",28/06/2022,10120555611,18.28,MACE NEWSLINK
OXFORDSHIRE CC,CORPORATE CORE,,STATIONERY,28/06/2022,10120555861,130.56,LYRECO UK LTD
OXFORDSHIRE CC,"CHILDRENS, YOUNG PEOPLE AND FAMILIES",CHILDREN IN CARE NON-STAFFING - SOUTH,PAYMENTS TO TRANSPORT OPERATORS,28/06/2022,10120555385,105.50,TRAINLINE
OXFORDSHIRE CC,"CHILDRENS, YOUNG PEOPLE AND FAMILIES",CHILDREN IN CARE NON-STAFFING - SOUTH,PAYMENT TO GOVERNMENT DEPARTMENTS,28/06/2022,10120555387,58.50,HM PASSPORT OFFICE
OXFORDSHIRE CC,"CHILDRENS, YOUNG PEOPLE AND FAMILIES",CHILDREN IN CARE NON-STAFFING - SOUTH,PAYMENTS TO TRANSPORT OPERATORS,28/06/2022,10120555389,-94.50,TRAINLINE
OXFORDSHIRE CC,"CHILDRENS, YOUNG PEOPLE AND FAMILIES","	LEAVING CARE SOUTH",CATERING,28/06/2022,10120555545,7.30,COSTA @ TESCO
OXFORDSHIRE CC,SOCIAL AND COMMUNITY SERVICES,BUSINESS SUPPORT SERVICE,MATERIALS,28/06/2022,10120555867,8.99,AMZNMKTPLACE
OXFORDSHIRE CC,CORPORATE CORE,CATERING MANAGEMENT SOFT FM,MATERIALS,28/06/2022,10120555879,31.48,AMZNMKTPLACE
OXFORDSHIRE CC,"CHILDRENS, YOUNG PEOPLE AND FAMILIES","	LEAVING CARE NORTH",MATERIALS,28/06/2022,10120555881,85.00,AMAZON.CO.UK 2Y3U01CQ4
OXFORDSHIRE CC,"CHILDRENS, YOUNG PEOPLE AND FAMILIES",DIDCOT MOVE-ON HOME,CATERING PROVISIONS,28/06/2022,10120555875,12.63,SAINSBURYS SMKT
OXFORDSHIRE CC,CORPORATE CORE,CATERING MANAGEMENT SOFT FM,HIRE OF ACCOMMODATION AND FACILITIES,28/06/2022,10120555399,9.00,HILTON BIRMINGHAM METR
OXFORDSHIRE CC,"CHILDRENS, YOUNG PEOPLE AND FAMILIES",THAME E&A HOME,VEHICLE FUEL,28/06/2022,10120555407,22.66,TESCO PFS 3442
OXFORDSHIRE CC,"CHILDRENS, YOUNG PEOPLE AND FAMILIES",KINGFISHER,MATERIALS,28/06/2022,10120555405,84.55,AMAZON.CO.UK 2Y7S17CU4
OXFORDSHIRE CC,"CHILDRENS, YOUNG PEOPLE AND FAMILIES",PAUSE PROGRAMME,CATERING PROVISIONS,28/06/2022,10120555571,2.35,NASHS BAKERY
OXFORDSHIRE CC,SOCIAL AND COMMUNITY SERVICES,"	MUSEUMS COLLECTIONS",CATERING PROVISIONS,28/06/2022,10120555721,3.50,MILK AND MORE (RECUR
OXFORDSHIRE CC,"CHILDRENS, YOUNG PEOPLE AND FAMILIES","	LEAVING CARE CITY 2",PAYMENTS TO TRANSPORT OPERATORS,28/06/2022,10120555723,20.78,THETRAINLINE.COM
OXFORDSHIRE CC,"CHILDRENS, YOUNG PEOPLE AND FAMILIES",NTH EARLY HELP-BNRBY,CATERING PROVISIONS,28/06/2022,10120555883,2.70,TESCO STORE 2064
OXFORDSHIRE CC,ENVIRONMENT AND ECONOMY,HARD FM,EQUIPMENT,28/06/2022,10120555885,47.74,SUREHEAT SPARES LTD
OXFORDSHIRE CC,"CHILDRENS, YOUNG PEOPLE AND FAMILIES",FAMILY SOLUTIONS PLUS NON-STAFF - NORTH,PAYMENTS TO TRANSPORT OPERATORS,28/06/2022,10120555897,6.82,TRAINLINE.COM
OXFORDSHIRE CC,"CHILDRENS, YOUNG PEOPLE AND FAMILIES",THAME E&A HOME,ENTERTAINMENT EXPENSES,28/06/2022,10120555887,124.00,THORPE PARK
OXFORDSHIRE CC,"CHILDRENS, YOUNG PEOPLE AND FAMILIES",CHILDREN IN CARE NON-STAFFING - SOUTH,PAYMENTS TO TRANSPORT OPERATORS,27/06/2022,10113845775,29.24,THETRAINLINE.COM
OXFORDSHIRE CC,CORPORATE CORE,THAME LIBRARY,MATERIALS,27/06/2022,10113845799,20.80,SPONDON NEWS
OXFORDSHIRE CC,"CHILDRENS, YOUNG PEOPLE AND FAMILIES","	RIVERSIDE CENTRE",ROAD FUND LICENCES AND MOTS,27/06/2022,10113845809,167.50,DVLA VEHICLE TAX
OXFORDSHIRE CC,SOCIAL AND COMMUNITY SERVICES,ADULTS AT RISK,HIRE OF ACCOMMODATION AND FACILITIES,27/06/2022,10113845849,-6.60,JURYS INN OXFORD HOTEL
OXFORDSHIRE CC,"CHILDRENS, YOUNG PEOPLE AND FAMILIES",QUALITY ASSURANCE CITY TEAM,MATERIALS,27/06/2022,10113845853,119.00,WWW.JOHNLEWIS.COM
OXFORDSHIRE CC,ENVIRONMENT AND ECONOMY,HARD FM,HARDWARE AND CROCKERY,27/06/2022,10113843491,57.23,B & Q 1062
OXFORDSHIRE CC,"CHILDRENS, YOUNG PEOPLE AND FAMILIES",THAME E&A HOME,OTHER TRANSPORT ARRANGEMENTS,27/06/2022,10113843569,2.30,VALE_OF_WH_PARKING_FEE
OXFORDSHIRE CC,ENVIRONMENT AND ECONOMY,HARD FM,VEHICLE FUEL,27/06/2022,10113843499,126.19,BP BENSON CONNECT
OXFORDSHIRE CC,ENVIRONMENT AND ECONOMY,HARD FM,CATERING PROVISIONS,27/06/2022,10113843507,317.05,LINCAT LTD
OXFORDSHIRE CC,ENVIRONMENT AND ECONOMY,HARD FM,HARDWARE AND CROCKERY,27/06/2022,10113843517,45.10,B & Q 1176
OXFORDSHIRE CC,"CHILDRENS, YOUNG PEOPLE AND FAMILIES",FAMILY SOLUTIONS PLUS NON-STAFF - NORTH,ENTERTAINMENT EXPENSES,27/06/2022,10113843579,19.99,THE LIGHT CINEMAS
OXFORDSHIRE CC,ENVIRONMENT AND ECONOMY,HARD FM,PHOTOCOPYING,27/06/2022,10113843525,84.96,WWW.KEYSIGNSUK.CO.UK
OXFORDSHIRE CC,"CHILDRENS, YOUNG PEOPLE AND FAMILIES",THAME E&A HOME,CATERING PROVISIONS,27/06/2022,10113843551,157.03,ASDA SUPERSTORE
OXFORDSHIRE CC,"CHILDRENS, YOUNG PEOPLE AND FAMILIES",THAME E&A HOME,CATERING PROVISIONS,27/06/2022,10113843559,6.50,CO-OP FOOD
OXFORDSHIRE CC,"CHILDRENS, YOUNG PEOPLE AND FAMILIES",THAME E&A HOME,CATERING PROVISIONS,27/06/2022,10113843565,16.05,SAINSBURYS S/MKTS
OXFORDSHIRE CC,"CHILDRENS, YOUNG PEOPLE AND FAMILIES",PAUSE PROGRAMME,CATERING PROVISIONS,27/06/2022,10113844099,5.44,SAINSBURYS SMKT
OXFORDSHIRE CC,"CHILDRENS, YOUNG PEOPLE AND FAMILIES",THAME E&A HOME,MANAGEMENT CONSULTANT FEES,27/06/2022,10113844745,159.00,TVLICENSING.CO.UK
OXFORDSHIRE CC,"CHILDRENS, YOUNG PEOPLE AND FAMILIES",THAME E&A HOME,MATERIALS,27/06/2022,10113844739,7.99,AMZNMKTPLACE
OXFORDSHIRE CC,"CHILDRENS, YOUNG PEOPLE AND FAMILIES",NTS UASC AGENCY,CATERING,27/06/2022,10113844751,3.48,SPAR SUPER STORE
OXFORDSHIRE CC,"CHILDRENS, YOUNG PEOPLE AND FAMILIES",QUALITY ASSURANCE CITY TEAM,MATERIALS,27/06/2022,10113845859,373.99,AMZNMKTPLACE AMAZON.CO
OXFORDSHIRE CC,"CHILDRENS, YOUNG PEOPLE AND FAMILIES","	LEAVING CARE CITY 2",OTHER TRANSPORT ARRANGEMENTS,27/06/2022,10113844573,4.30,STGCOACH/CTYLINK
OXFORDSHIRE CC,"CHILDRENS, YOUNG PEOPLE AND FAMILIES",FAMILY SOLUTIONS PLUS NON-STAFF � SOUTH,MATERIALS,27/06/2022,10113844661,6.34,AMZNMKTPLACE AMAZON.CO
OXFORDSHIRE CC,"CHILDRENS, YOUNG PEOPLE AND FAMILIES",FAMILY SOLUTIONS PLUS NON-STAFF � SOUTH,MATERIALS,27/06/2022,10113844649,32.00,ARGOS LTD
OXFORDSHIRE CC,"CHILDRENS, YOUNG PEOPLE AND FAMILIES",FAMILY SOLUTIONS PLUS NON-STAFF � SOUTH,MATERIALS,27/06/2022,10113844655,8.98,AMZNMKTPLACE AMAZON.CO
OXFORDSHIRE CC,CORPORATE CORE,"MARKETING, COMMUNICATIONS & ENGAGEMENT",IT SOFTWARE,27/06/2022,10113845135,167.44,ADOBE STOCK
OXFORDSHIRE CC,CORPORATE CORE,"MARKETING, COMMUNICATIONS & ENGAGEMENT","PUBLICITY, PROMOTIONS AND ADVERTISEMENT",27/06/2022,10113845137,500.00,GOOGLE ADS4896546035
OXFORDSHIRE CC,SOCIAL AND COMMUNITY SERVICES,ADULTS AT RISK,HIRE OF ACCOMMODATION AND FACILITIES,27/06/2022,10113845701,-158.00,HOTELSCOM9169173748860
OXFORDSHIRE CC,"CHILDRENS, YOUNG PEOPLE AND FAMILIES",EYNSHAM,MATERIALS,27/06/2022,10113845733,25.17,AMZNMKTPLACE
OXFORDSHIRE CC,"CHILDRENS, YOUNG PEOPLE AND FAMILIES","	LEAVING CARE NORTH",CLOTHING AND UNIFORMS,27/06/2022,10113845707,196.75,NIKE BICESTER 2051
OXFORDSHIRE CC,"CHILDRENS, YOUNG PEOPLE AND FAMILIES",EYNSHAM,MATERIALS,27/06/2022,10113845735,30.99,AMZNMKTPLACE
OXFORDSHIRE CC,"CHILDRENS, YOUNG PEOPLE AND FAMILIES","	LEAVING CARE NORTH",OTHER EXPENSES,27/06/2022,10113845711,6.09,MCDONALDS
OXFORDSHIRE CC,"CHILDRENS, YOUNG PEOPLE AND FAMILIES",EYNSHAM,CATERING PROVISIONS,27/06/2022,10113845723,170.99,TESCO STORES 2008
OXFORDSHIRE CC,"CHILDRENS, YOUNG PEOPLE AND FAMILIES",EYNSHAM,MATERIALS,27/06/2022,10113845739,3.70,AMZNMKTPLACE AMAZON.CO
OXFORDSHIRE CC,"CHILDRENS, YOUNG PEOPLE AND FAMILIES",EYNSHAM,MATERIALS,27/06/2022,10113845743,3.99,AMZNMKTPLACE AMAZON.CO
OXFORDSHIRE CC,"CHILDRENS, YOUNG PEOPLE AND FAMILIES",EYNSHAM,MATERIALS,27/06/2022,10113845729,26.99,AMZNMKTPLACE
OXFORDSHIRE CC,"CHILDRENS, YOUNG PEOPLE AND FAMILIES",EYNSHAM,CATERING PROVISIONS,27/06/2022,10113845747,7.50,MAYFIELDEGGS
OXFORDSHIRE CC,ENVIRONMENT AND ECONOMY,HARD FM,PHOTOCOPYING,27/06/2022,10113843477,52.38,WWW.KEYSIGNSUK.CO.UK
OXFORDSHIRE CC,ENVIRONMENT AND ECONOMY,HARD FM,HARDWARE AND CROCKERY,27/06/2022,10113843485,6.30,B AND Q
OXFORDSHIRE CC,"CHILDRENS, YOUNG PEOPLE AND FAMILIES","	FPT CITY",STAFF USE OF PUBLIC TRANSPORT,27/06/2022,10113844005,117.28,THETRAINLINE.COM
OXFORDSHIRE CC,"CHILDRENS, YOUNG PEOPLE AND FAMILIES",FAMILY SOLUTIONS PLUS NON-STAFF � SOUTH,OTHER TRANSPORT ARRANGEMENTS,27/06/2022,10113844665,48.30,SUMUP   GO GREEN TAXIS
OXFORDSHIRE CC,"CHILDRENS, YOUNG PEOPLE AND FAMILIES",FAMILY SOLUTIONS PLUS NON-STAFF � SOUTH,PAYMENTS TO TRANSPORT OPERATORS,27/06/2022,10113844669,720.62,BRITISH A
OXFORDSHIRE CC,"CHILDRENS, YOUNG PEOPLE AND FAMILIES",FAMILY SOLUTIONS PLUS NON-STAFF � SOUTH,PAYMENTS TO TRANSPORT OPERATORS,27/06/2022,10113844675,707.62,BRITISH A
OXFORDSHIRE CC,"CHILDRENS, YOUNG PEOPLE AND FAMILIES",FAMILY SOLUTIONS PLUS NON-STAFF � SOUTH,PAYMENTS TO TRANSPORT OPERATORS,27/06/2022,10113844681,720.62,BRITISH A
OXFORDSHIRE CC,"CHILDRENS, YOUNG PEOPLE AND FAMILIES",PAUSE PROGRAMME,MATERIALS,27/06/2022,10113844699,4.00,POUNDLAND LTD 1505
OXFORDSHIRE CC,"CHILDRENS, YOUNG PEOPLE AND FAMILIES",PAUSE PROGRAMME,CATERING,27/06/2022,10113844707,9.27,MCDONALDS
OXFORDSHIRE CC,"CHILDRENS, YOUNG PEOPLE AND FAMILIES",CHILDREN IN CARE NON-STAFFING - CENTRL 2,PAYMENTS TO TRANSPORT OPERATORS,27/06/2022,10113845235,23.43,THETRAINLINE.COM
OXFORDSHIRE CC,"CHILDRENS, YOUNG PEOPLE AND FAMILIES",CHILDREN IN CARE NON-STAFFING - CENTRL 2,OTHER TRANSPORT ARRANGEMENTS,27/06/2022,10113845243,10.00,OXFORDBUS.CO.UK
OXFORDSHIRE CC,"CHILDRENS, YOUNG PEOPLE AND FAMILIES",CHILDREN IN CARE NON-STAFFING - CENTRL 2,PAYMENTS TO TRANSPORT OPERATORS,27/06/2022,10113845251,23.43,TRAINLINE.COM
OXFORDSHIRE CC,"CHILDRENS, YOUNG PEOPLE AND FAMILIES",FAMILY SOLUTIONS PLUS NON-STAFF - NORTH,MATERIALS,27/06/2022,10113845085,10.99,AMAZON.CO.UK 274QJ0DB4
OXFORDSHIRE CC,ENVIRONMENT AND ECONOMY,"	LOWER WINDRUSH PROJ",MATERIALS,27/06/2022,10113845661,-138.02,SIGNLABS
OXFORDSHIRE CC,SOCIAL AND COMMUNITY SERVICES,CSS WANTAGE,MATERIALS,27/06/2022,10113843345,20.00,SAINSBURYS S/MKTS
OXFORDSHIRE CC,"CHILDRENS, YOUNG PEOPLE AND FAMILIES",CSS WALLINGFORD,CATERING PROVISIONS,27/06/2022,10113843351,19.85,WAITROSE 675
OXFORDSHIRE CC,SOCIAL AND COMMUNITY SERVICES,CSS - ABINGDON,DISABILITY AIDS AND EQUIPMENT,27/06/2022,10113843389,20.82,AMZNMKTPLACE
OXFORDSHIRE CC,SOCIAL AND COMMUNITY SERVICES,CSS WANTAGE,VEHICLE FUEL,27/06/2022,10113843399,21.50,SAINSBURYS PETROL
OXFORDSHIRE CC,"CHILDRENS, YOUNG PEOPLE AND FAMILIES",KINGFISHER,HIRE OF ACCOMMODATION AND FACILITIES,27/06/2022,10113843903,"9,500.00",PAYPAL  TAWFIQMOEVA
OXFORDSHIRE CC,"CHILDRENS, YOUNG PEOPLE AND FAMILIES",FAMILY SOLUTIONS PLUS NON-STAFF � SOUTH,MATERIALS,27/06/2022,10113843907,82.95,ARGOS LTD
OXFORDSHIRE CC,"CHILDRENS, YOUNG PEOPLE AND FAMILIES","	LEAVING CARE SOUTH",OTHER SERVICES,27/06/2022,10113843945,17.99,TESCO STORES 2008
OXFORDSHIRE CC,CORPORATE CORE,RESOURCING,PAYMENT TO GOVERNMENT DEPARTMENTS,27/06/2022,10113843929,"-1,000.00",C2E748600077V UKVI
OXFORDSHIRE CC,SOCIAL AND COMMUNITY SERVICES,CHILDREN IN CARE NON-STAFFING - NORTH,CATERING,27/06/2022,10113843951,4.68,BICESTER STARBUCK
OXFORDSHIRE CC,SOCIAL AND COMMUNITY SERVICES,SCHOOLS FM CATERING AREA 1,MATERIALS,27/06/2022,10113844549,12.00,AMZNMKTPLACE
OXFORDSHIRE CC,"CHILDRENS, YOUNG PEOPLE AND FAMILIES","	LEAVING CARE CITY 2",OTHER TRANSPORT ARRANGEMENTS,27/06/2022,10113844555,3.50,REDLINE BUSES LTD
OXFORDSHIRE CC,"CHILDRENS, YOUNG PEOPLE AND FAMILIES","	LEAVING CARE CITY 2",OTHER TRANSPORT ARRANGEMENTS,27/06/2022,10113844565,5.20,ARRIVA THE SHIRES LIMI
OXFORDSHIRE CC,ENVIRONMENT AND ECONOMY,BANBURY LIBRARY,"NEWSPAPERS, PERIODICALS AND PUBLICATIONS",27/06/2022,10113844513,47.99,GUARDIAN NEWS & MEDIA
OXFORDSHIRE CC,"CHILDRENS, YOUNG PEOPLE AND FAMILIES","	LEAVING CARE SOUTH",PAYMENTS TO TRANSPORT OPERATORS,27/06/2022,10113844525,37.49,THETRAINLINE.COM
OXFORDSHIRE CC,"CHILDRENS, YOUNG PEOPLE AND FAMILIES","	LEAVING CARE SOUTH",VEHICLE FUEL,27/06/2022,10113844531,50.01,ESSO ACORN SSTN
OXFORDSHIRE CC,SOCIAL AND COMMUNITY SERVICES,SCHOOLS FM CATERING AREA 1,MATERIALS,27/06/2022,10113844541,149.67,AMZNMKTPLACE
OXFORDSHIRE CC,CORPORATE CORE,"MARKETING, COMMUNICATIONS & ENGAGEMENT",PHOTOCOPYING,27/06/2022,10113845133,3.30,CANVA  03461-8377162
OXFORDSHIRE CC,"CHILDRENS, YOUNG PEOPLE AND FAMILIES",DIDCOT MOVE-ON HOME,MATERIALS,27/06/2022,10113845681,7.99,AMAZON PRIME 2783G3UX4
OXFORDSHIRE CC,SOCIAL AND COMMUNITY SERVICES,REVIEWING TEAM,HIRE OF ACCOMMODATION AND FACILITIES,27/06/2022,10113845695,86.40,THE OLDE BARN HOTEL
OXFORDSHIRE CC,SOCIAL AND COMMUNITY SERVICES,ADULTS AT RISK,HIRE OF ACCOMMODATION AND FACILITIES,27/06/2022,10113845699,-869.00,HOTELSCOM9169173669863
OXFORDSHIRE CC,"CHILDRENS, YOUNG PEOPLE AND FAMILIES",THAME E&A HOME,CATERING PROVISIONS,27/06/2022,10113843457,12.49,COST SAVER LOCAL
OXFORDSHIRE CC,ENVIRONMENT AND ECONOMY,"	ROW MAINT",VEHICLES AND PLANT - REPAIRS AND MAIN,27/06/2022,10113843411,238.99,IAN HAMILTON HYDRAULIC
OXFORDSHIRE CC,ENVIRONMENT AND ECONOMY,HOLDING CODE FOR REA,HARDWARE AND CROCKERY,27/06/2022,10113843419,13.46,TOOLSTATION LTD
OXFORDSHIRE CC,"CHILDRENS, YOUNG PEOPLE AND FAMILIES",KINGFISHER,TELEPHONE - EQUIPMENT,27/06/2022,10113843431,23.99,ARGOS LTD
OXFORDSHIRE CC,"CHILDRENS, YOUNG PEOPLE AND FAMILIES",KINGFISHER,CLIENT LODGINGS AND ACCOMMODATION,27/06/2022,10113843437,"1,939.00",PAYPAL  TAWFIQMOEVA
OXFORDSHIRE CC,"CHILDRENS, YOUNG PEOPLE AND FAMILIES",THAME E&A HOME,CATERING PROVISIONS,27/06/2022,10113843451,12.49,COST SAVER LOCAL
OXFORDSHIRE CC,ENVIRONMENT AND ECONOMY,HARD FM,HARDWARE AND CROCKERY,27/06/2022,10113843473,49.99,WWW.SCREWFIX.COM
OXFORDSHIRE CC,ENVIRONMENT AND ECONOMY,"	NAT TRAILS GENERAL",VEHICLE FUEL,27/06/2022,10113844987,42.45,MFG EYNSHAM
OXFORDSHIRE CC,"CHILDRENS, YOUNG PEOPLE AND FAMILIES",CNTL EARLY HELP-BRTN,MATERIALS,27/06/2022,10113845493,12.45,ARGOS LTD
OXFORDSHIRE CC,"CHILDRENS, YOUNG PEOPLE AND FAMILIES",CNTL EARLY HELP-BRTN,MATERIALS,27/06/2022,10113845497,159.99,AMAZON.CO.UK 274W84SH4
OXFORDSHIRE CC,"CHILDRENS, YOUNG PEOPLE AND FAMILIES",CNTL EARLY HELP-BRTN,HIRE OF ACCOMMODATION AND FACILITIES,27/06/2022,10113845499,145.50,HOLIDAY INN EXPRSS
OXFORDSHIRE CC,"CHILDRENS, YOUNG PEOPLE AND FAMILIES","	MALTFIELD HOUSE",CATERING PROVISIONS,27/06/2022,10113845503,44.75,SAINSBURY'S S/MKT
OXFORDSHIRE CC,"CHILDRENS, YOUNG PEOPLE AND FAMILIES","	MALTFIELD HOUSE",CATERING PROVISIONS,27/06/2022,10113845509,74.63,SAINSBURY'S S/MKT
OXFORDSHIRE CC,"CHILDRENS, YOUNG PEOPLE AND FAMILIES","	MALTFIELD HOUSE",CATERING PROVISIONS,27/06/2022,10113845511,43.20,SAINSBURYS S/MKTS
OXFORDSHIRE CC,"CHILDRENS, YOUNG PEOPLE AND FAMILIES",40 THE MOORS,HOSPITALITY EXPENSES,27/06/2022,10113845529,86.57,GURKHA VILLAGE
OXFORDSHIRE CC,"CHILDRENS, YOUNG PEOPLE AND FAMILIES",THAME E&A HOME,CATERING PROVISIONS,27/06/2022,10113843837,19.50,SAINSBURYS S/MKTS
OXFORDSHIRE CC,"CHILDRENS, YOUNG PEOPLE AND FAMILIES",THAME E&A HOME,CATERING PROVISIONS,27/06/2022,10113843845,5.53,TESCO STORES 2038
OXFORDSHIRE CC,"CHILDRENS, YOUNG PEOPLE AND FAMILIES",THAME E&A HOME,CATERING PROVISIONS,27/06/2022,10113843849,-5.53,TESCO STORES 2038
OXFORDSHIRE CC,SOCIAL AND COMMUNITY SERVICES,CSS - OXFORD,MATERIALS,27/06/2022,10113843871,32.09,ALDI STORES 775-142
OXFORDSHIRE CC,SOCIAL AND COMMUNITY SERVICES,CSS - OXFORD,CATERING PROVISIONS,27/06/2022,10113843875,83.77,ALDI STORES 775-142
OXFORDSHIRE CC,SOCIAL AND COMMUNITY SERVICES,CSS - OXFORD,CATERING PROVISIONS,27/06/2022,10113843877,10.06,ALDI STORES 775-142
OXFORDSHIRE CC,"CHILDRENS, YOUNG PEOPLE AND FAMILIES",FAMILY SOLUTIONS PLUS NON-STAFF - NORTH,OTHER TRANSPORT ARRANGEMENTS,27/06/2022,10113844383,70.00,PAYPAL  BNTAXIANYTI
OXFORDSHIRE CC,SOCIAL AND COMMUNITY SERVICES,WEST OXFORDSHIRE TEAM,HIRE OF ACCOMMODATION AND FACILITIES,27/06/2022,10113844423,300.00,BEST WESTERN HOTELS
OXFORDSHIRE CC,"CHILDRENS, YOUNG PEOPLE AND FAMILIES",UASC 16&17,OTHER EXPENSES,27/06/2022,10113844435,9.30,MAX SPIELMANN LTD
OXFORDSHIRE CC,SOCIAL AND COMMUNITY SERVICES,WEST OXFORDSHIRE TEAM,HIRE OF ACCOMMODATION AND FACILITIES,27/06/2022,10113844427,300.00,BEST WESTERN HOTELS
OXFORDSHIRE CC,"CHILDRENS, YOUNG PEOPLE AND FAMILIES",FIELDWORK UASC,OTHER EXPENSES,27/06/2022,10113844441,4.80,MAX SPIELMANN LTD
OXFORDSHIRE CC,"CHILDRENS, YOUNG PEOPLE AND FAMILIES",40 THE MOORS,VEHICLES AND PLANT - REPAIRS AND MAIN,27/06/2022,10113845537,80.00,WE FIX AND TRADE
OXFORDSHIRE CC,"CHILDRENS, YOUNG PEOPLE AND FAMILIES",40 THE MOORS,CATERING PROVISIONS,27/06/2022,10113845545,248.76,SAINSBURYS.CO.UK
OXFORDSHIRE CC,"CHILDRENS, YOUNG PEOPLE AND FAMILIES","	LOOKED AFTER SOUTH",ENTERTAINMENT EXPENSES,27/06/2022,10113845557,96.00,WWW.OUFC.CO.UK
OXFORDSHIRE CC,"CHILDRENS, YOUNG PEOPLE AND FAMILIES",40 THE MOORS,MATERIALS,27/06/2022,10113845577,89.99,ARGOS LTD
OXFORDSHIRE CC,"CHILDRENS, YOUNG PEOPLE AND FAMILIES",UASC 16&17,OTHER EXPENSES,27/06/2022,10113844447,6.30,MAX SPIELMANN LTD
OXFORDSHIRE CC,"CHILDRENS, YOUNG PEOPLE AND FAMILIES",UASC 16&17,RESIDENTIAL ACTIVITIES,27/06/2022,10113844457,33.99,THE GYM LIMITED
OXFORDSHIRE CC,"CHILDRENS, YOUNG PEOPLE AND FAMILIES",CHILDREN IN CARE NON-STAFFING - NORTH,CATERING,27/06/2022,10113844463,6.89,MCDONALDS
OXFORDSHIRE CC,"CHILDRENS, YOUNG PEOPLE AND FAMILIES",THAME E&A HOME,CATERING PROVISIONS,27/06/2022,10113844475,23.79,AL-KHIR GROCERS
OXFORDSHIRE CC,"CHILDRENS, YOUNG PEOPLE AND FAMILIES",FAMILY SOLUTIONS PLUS NON-STAFF - NORTH,MATERIALS,27/06/2022,10113845069,30.51,AMZNMKTPLACE AMAZON.CO
OXFORDSHIRE CC,"CHILDRENS, YOUNG PEOPLE AND FAMILIES",FAMILY SOLUTIONS PLUS NON-STAFF - NORTH,MATERIALS,27/06/2022,10113845073,8.47,AMZNMKTPLACE AMAZON.CO
OXFORDSHIRE CC,"CHILDRENS, YOUNG PEOPLE AND FAMILIES",FAMILY SOLUTIONS PLUS NON-STAFF - NORTH,MATERIALS,27/06/2022,10113845079,3.99,AMZNMKTPLACE AMAZON.CO
OXFORDSHIRE CC,ENVIRONMENT AND ECONOMY,LIBRARY BUSINESS SERVICES,CATERING PROVISIONS,27/06/2022,10113844259,134.00,SP THE CAKE SHOP
OXFORDSHIRE CC,"CHILDRENS, YOUNG PEOPLE AND FAMILIES","	LEAVING CARE NORTH",CATERING,27/06/2022,10113844843,11.20,ADEMS CAFE
OXFORDSHIRE CC,"CHILDRENS, YOUNG PEOPLE AND FAMILIES","	LEAVING CARE NORTH",CATERING PROVISIONS,27/06/2022,10113844847,10.00,SPAR
OXFORDSHIRE CC,"CHILDRENS, YOUNG PEOPLE AND FAMILIES",FIELDWORK UASC,MATERIALS,27/06/2022,10113844919,220.00,ARGOS LTD
OXFORDSHIRE CC,"CHILDRENS, YOUNG PEOPLE AND FAMILIES",FIELDWORK UASC,MATERIALS,27/06/2022,10113844925,220.00,ARGOS LTD
OXFORDSHIRE CC,"CHILDRENS, YOUNG PEOPLE AND FAMILIES","	LEAVING CARE NORTH",CATERING PROVISIONS,27/06/2022,10113844853,49.99,TESCO STORE 3373
OXFORDSHIRE CC,"CHILDRENS, YOUNG PEOPLE AND FAMILIES",FAMILY SOLUTIONS PLUS NON-STAFF - NORTH,MATERIALS,27/06/2022,10113844869,30.96,AMZNMKTPLACE
OXFORDSHIRE CC,"CHILDRENS, YOUNG PEOPLE AND FAMILIES","	SUPERVISED CONTACT",HIRE OF ACCOMMODATION AND FACILITIES,27/06/2022,10113844881,130.00,THE PARKWAY HOTEL DCC
OXFORDSHIRE CC,"CHILDRENS, YOUNG PEOPLE AND FAMILIES",FAMILY SOLUTIONS PLUS NON-STAFF - NORTH,MATERIALS,27/06/2022,10113844893,15.50,AMZNMKTPLACE
OXFORDSHIRE CC,"CHILDRENS, YOUNG PEOPLE AND FAMILIES",FIELDWORK UASC,MATERIALS,27/06/2022,10113844903,191.95,ARGOS LTD
OXFORDSHIRE CC,"CHILDRENS, YOUNG PEOPLE AND FAMILIES",FIELDWORK UASC,MATERIALS,27/06/2022,10113844909,355.00,ARGOS LTD
OXFORDSHIRE CC,SOCIAL AND COMMUNITY SERVICES,CSS WANTAGE,ENTERTAINMENT EXPENSES,27/06/2022,10113845401,32.10,WWW.BETTER.ORG.UK
OXFORDSHIRE CC,SOCIAL AND COMMUNITY SERVICES,CSS WANTAGE,ENTERTAINMENT EXPENSES,27/06/2022,10113845407,3.50,HOLLYWOOD BOWL
OXFORDSHIRE CC,SOCIAL AND COMMUNITY SERVICES,SCHOOLS FM CATERING AREA 2,CATERING PROVISIONS,27/06/2022,10113844953,9.50,SAINSBURYS S/MKTS
OXFORDSHIRE CC,ENVIRONMENT AND ECONOMY,"	FLEET OPERATIONS",CATERING PROVISIONS,27/06/2022,10113845479,14.24,MILK AND MORE (RECUR
OXFORDSHIRE CC,SOCIAL AND COMMUNITY SERVICES,CSS BICESTER,MATERIALS,27/06/2022,10113843743,33.98,AMZNMKTPLACE
OXFORDSHIRE CC,"CHILDRENS, YOUNG PEOPLE AND FAMILIES",MANAGEMENT RECHARGES,HIRED AND CONTRACTED SERVICES,27/06/2022,10113843711,8.49,AMZNMKTPLACE AMAZON.CO
OXFORDSHIRE CC,"CHILDRENS, YOUNG PEOPLE AND FAMILIES",MANAGEMENT RECHARGES,HIRED AND CONTRACTED SERVICES,27/06/2022,10113843715,83.09,AMZNMKTPLACE AMAZON.CO
OXFORDSHIRE CC,"CHILDRENS, YOUNG PEOPLE AND FAMILIES",MANAGEMENT RECHARGES,HIRED AND CONTRACTED SERVICES,27/06/2022,10113843723,32.97,AMZNMKTPLACE AMAZON.CO
OXFORDSHIRE CC,"CHILDRENS, YOUNG PEOPLE AND FAMILIES",MANAGEMENT RECHARGES,HIRED AND CONTRACTED SERVICES,27/06/2022,10113843729,8.98,AMZNMKTPLACE AMAZON.CO
OXFORDSHIRE CC,SOCIAL AND COMMUNITY SERVICES,CSS BICESTER,MATERIALS,27/06/2022,10113843737,16.99,AMZNMKTPLACE
OXFORDSHIRE CC,"CHILDRENS, YOUNG PEOPLE AND FAMILIES",PAUSE PROGRAMME,CATERING PROVISIONS,27/06/2022,10113844283,10.00,SAINSBURYS S/MKTS
OXFORDSHIRE CC,SOCIAL AND COMMUNITY SERVICES,CICC,CATERING,27/06/2022,10113843775,282.30,IZ  THE WATERSIDE
OXFORDSHIRE CC,SOCIAL AND COMMUNITY SERVICES,CICC,CATERING PROVISIONS,27/06/2022,10113843779,15.30,SAINSBURYS S/MKTS
OXFORDSHIRE CC,SOCIAL AND COMMUNITY SERVICES,CICC,CATERING PROVISIONS,27/06/2022,10113843783,66.00,SAINSBURYS.CO.UK
OXFORDSHIRE CC,"CHILDRENS, YOUNG PEOPLE AND FAMILIES",LOCALITY & COMMUNITY SUPPORT SERVICE,CATERING PROVISIONS,27/06/2022,10113843789,40.00,SAINSBURYS SMKTS
OXFORDSHIRE CC,"CHILDRENS, YOUNG PEOPLE AND FAMILIES",PAUSE PROGRAMME,CATERING,27/06/2022,10113844289,11.00,NEDS NOODLES
OXFORDSHIRE CC,"CHILDRENS, YOUNG PEOPLE AND FAMILIES",PAUSE PROGRAMME,CATERING,27/06/2022,10113844297,8.20,43013665 COSTA COFFEE
OXFORDSHIRE CC,ENVIRONMENT AND ECONOMY,HARD FM,VEHICLES AND PLANT - REPAIRS AND MAIN,27/06/2022,10113844317,349.98,HALFORDS AUTOCENTRE
OXFORDSHIRE CC,"CHILDRENS, YOUNG PEOPLE AND FAMILIES",KINGFISHER,CATERING,27/06/2022,10113844349,4.96,MCDONALDS
OXFORDSHIRE CC,"CHILDRENS, YOUNG PEOPLE AND FAMILIES",FAMILY SOLUTIONS PLUS NON-STAFF - NORTH,OTHER TRANSPORT ARRANGEMENTS,27/06/2022,10113844359,45.00,OXFORDBUS.CO.UK
OXFORDSHIRE CC,"CHILDRENS, YOUNG PEOPLE AND FAMILIES",FAMILY SOLUTIONS PLUS NON-STAFF - NORTH,OTHER TRANSPORT ARRANGEMENTS,27/06/2022,10113844369,45.00,OXFORDBUS.CO.UK
OXFORDSHIRE CC,"CHILDRENS, YOUNG PEOPLE AND FAMILIES",FAMILY SOLUTIONS PLUS NON-STAFF - NORTH,HIRE OF ACCOMMODATION AND FACILITIES,27/06/2022,10113844371,129.52,TRAVELODGE
OXFORDSHIRE CC,"CHILDRENS, YOUNG PEOPLE AND FAMILIES",FAMILY SOLUTIONS PLUS NON-STAFF - NORTH,OTHER TRANSPORT ARRANGEMENTS,27/06/2022,10113844379,65.00,PAYPAL  BNTAXIANYTI
OXFORDSHIRE CC,SOCIAL AND COMMUNITY SERVICES,SCHOOLS FM CATERING AREA 2,MATERIALS,27/06/2022,10113844955,11.78,AMZNMKTPLACE
OXFORDSHIRE CC,SOCIAL AND COMMUNITY SERVICES,SCHOOLS FM CATERING AREA 2,CATERING PROVISIONS,27/06/2022,10113844959,18.00,ASDA STORE 4442
OXFORDSHIRE CC,SOCIAL AND COMMUNITY SERVICES,SCHOOLS FM CATERING AREA 2,CATERING PROVISIONS,27/06/2022,10113844963,10.70,SAINSBURYS S/MKTS
OXFORDSHIRE CC,"CHILDRENS, YOUNG PEOPLE AND FAMILIES","	LOOKED AFTER CITY 1",MATERIALS,27/06/2022,10113844973,3.98,CARD FACTORY
OXFORDSHIRE CC,"CHILDRENS, YOUNG PEOPLE AND FAMILIES",ROSE HILL CC,MATERIALS,27/06/2022,10113843601,14.18,AMZNMKTPLACE
OXFORDSHIRE CC,"CHILDRENS, YOUNG PEOPLE AND FAMILIES",FSP NON-STAFFING - CENTRAL,HIRE OF ACCOMMODATION AND FACILITIES,27/06/2022,10113843605,222.83,TRAVELODGE
OXFORDSHIRE CC,"CHILDRENS, YOUNG PEOPLE AND FAMILIES",CHILDREN IN CARE NON-STAFFING - SOUTH,TRANSPORT TO SCHOOL,27/06/2022,10113843613,208.00,CURB
OXFORDSHIRE CC,"CHILDRENS, YOUNG PEOPLE AND FAMILIES",FAMILY SOLUTIONS PLUS NON-STAFF � SOUTH,EDUCATIONAL AND VOCATIONAL TRAINING ,27/06/2022,10113843621,198.40,PERFORM
OXFORDSHIRE CC,"CHILDRENS, YOUNG PEOPLE AND FAMILIES",THAME E&A HOME,CATERING PROVISIONS,27/06/2022,10113843649,4.75,SAINSBURYS S/MKTS
OXFORDSHIRE CC,"CHILDRENS, YOUNG PEOPLE AND FAMILIES","	OCCG GRANT",OTHER TRANSPORT ARRANGEMENTS,27/06/2022,10113844125,16.00,BUS TICKET OR EMT WIFI
OXFORDSHIRE CC,"CHILDRENS, YOUNG PEOPLE AND FAMILIES","	OCCG GRANT",MATERIALS,27/06/2022,10113844129,24.55,CARD FACTORY
OXFORDSHIRE CC,"CHILDRENS, YOUNG PEOPLE AND FAMILIES",KINGFISHER,OTHER EXPENSES,27/06/2022,10113844141,25.00,EYNSHAM BARBERS
OXFORDSHIRE CC,"CHILDRENS, YOUNG PEOPLE AND FAMILIES","	LOOKED AFTER NORTH",CATERING,27/06/2022,10113844169,2.78,MCDONALDS
OXFORDSHIRE CC,"CHILDRENS, YOUNG PEOPLE AND FAMILIES",CHILDREN IN CARE NON-STAFFING - NORTH,PAYMENT TO GOVERNMENT DEPARTMENTS,27/06/2022,10113844175,75.50,HM PASSPORT OFFICE
OXFORDSHIRE CC,"CHILDRENS, YOUNG PEOPLE AND FAMILIES",NTS UASC AGENCY,OTHER EXPENSES,27/06/2022,10113844757,30.00,ARGOS LTD
OXFORDSHIRE CC,"CHILDRENS, YOUNG PEOPLE AND FAMILIES",UASC 16&17,NON-STAFF SUBSISTENCE AND EXPENSES,27/06/2022,10113844771,10.00,LEBARA MOBILE LIMITED
OXFORDSHIRE CC,"CHILDRENS, YOUNG PEOPLE AND FAMILIES",UASC 16&17,NON-STAFF SUBSISTENCE AND EXPENSES,27/06/2022,10113844781,10.00,DELIGHT KEBAB HOUSE
OXFORDSHIRE CC,"CHILDRENS, YOUNG PEOPLE AND FAMILIES",WITNEY,CATERING PROVISIONS,27/06/2022,10113844823,22.31,ASDA STORES 4920
OXFORDSHIRE CC,"CHILDRENS, YOUNG PEOPLE AND FAMILIES",DIDCOT MOVE-ON HOME,CATERING PROVISIONS,27/06/2022,10113844797,8.90,SAINSBURYS SMKT
OXFORDSHIRE CC,"CHILDRENS, YOUNG PEOPLE AND FAMILIES",DIDCOT MOVE-ON HOME,CATERING PROVISIONS,27/06/2022,10113844801,15.75,SAINSBURYS SMKT
OXFORDSHIRE CC,"CHILDRENS, YOUNG PEOPLE AND FAMILIES",FAMILY SOLUTIONS PLUS NON-STAFF � SOUTH,MATERIALS,27/06/2022,10113844807,312.44,ARGOS LTD
OXFORDSHIRE CC,"CHILDRENS, YOUNG PEOPLE AND FAMILIES",FAMILY SOLUTIONS PLUS NON-STAFF � SOUTH,PURCHASE OF IT EQUIPMENT,27/06/2022,10113844815,194.03,MINICABIT
OXFORDSHIRE CC,"CHILDRENS, YOUNG PEOPLE AND FAMILIES","	LEAVING CARE NORTH",CATERING,27/06/2022,10113844833,18.65,MCDONALDS
OXFORDSHIRE CC,"CHILDRENS, YOUNG PEOPLE AND FAMILIES","	LEAVING CARE NORTH",MATERIALS,27/06/2022,10113844839,51.49,SPORTSDIRECT.COM
OXFORDSHIRE CC,"CHILDRENS, YOUNG PEOPLE AND FAMILIES",FSP NON-STAFFING - CENTRAL,HIRE OF ACCOMMODATION AND FACILITIES,27/06/2022,10113845333,115.00,HOLIDAY INN EXPRSS
OXFORDSHIRE CC,"CHILDRENS, YOUNG PEOPLE AND FAMILIES","	LEAVING CARE NORTH",MATERIALS,27/06/2022,10113845339,34.99,ARGOS LTD
OXFORDSHIRE CC,SOCIAL AND COMMUNITY SERVICES,CSS WITNEY,MATERIALS,27/06/2022,10113845371,60.99,AMZNMKTPLACE
OXFORDSHIRE CC,SOCIAL AND COMMUNITY SERVICES,CSS WITNEY,MATERIALS,27/06/2022,10113845377,8.49,AMZNMKTPLACE AMAZON.CO
OXFORDSHIRE CC,SOCIAL AND COMMUNITY SERVICES,CSS WITNEY,MATERIALS,27/06/2022,10113845383,6.98,AMZNMKTPLACE
OXFORDSHIRE CC,SOCIAL AND COMMUNITY SERVICES,CSS WITNEY,MATERIALS,27/06/2022,10113845387,7.99,AMZNMKTPLACE AMAZON.CO
OXFORDSHIRE CC,SOCIAL AND COMMUNITY SERVICES,CSS WANTAGE,ENTERTAINMENT EXPENSES,27/06/2022,10113845397,9.00,WWW.BETTER.ORG.UK
OXFORDSHIRE CC,"CHILDRENS, YOUNG PEOPLE AND FAMILIES",FIELDWORK UASC,CATERING PROVISIONS,27/06/2022,10113845879,10.40,CO-OPERATIVE FOOD
OXFORDSHIRE CC,"CHILDRENS, YOUNG PEOPLE AND FAMILIES",FSP NON-STAFFING - CENTRAL,HIRE OF ACCOMMODATION AND FACILITIES,27/06/2022,10113845891,125.00,HAMPTON BY HILTON OXFO
OXFORDSHIRE CC,"CHILDRENS, YOUNG PEOPLE AND FAMILIES",DIDCOT MOVE-ON HOME,CATERING EQUIPMENT,27/06/2022,10113845905,1.99,ALDI 99 775
OXFORDSHIRE CC,"CHILDRENS, YOUNG PEOPLE AND FAMILIES",DIDCOT MOVE-ON HOME,CATERING PROVISIONS,27/06/2022,10113845921,4.31,TESCO STORE 2413
OXFORDSHIRE CC,"CHILDRENS, YOUNG PEOPLE AND FAMILIES",DIDCOT MOVE-ON HOME,CATERING PROVISIONS,27/06/2022,10113845911,34.42,ALDI 99 775
OXFORDSHIRE CC,"CHILDRENS, YOUNG PEOPLE AND FAMILIES",DIDCOT MOVE-ON HOME,OTHER MISC INC,27/06/2022,10113845917,2.10,TESCO STORE 2413
OXFORDSHIRE CC,"CHILDRENS, YOUNG PEOPLE AND FAMILIES",DIDCOT MOVE-ON HOME,OTHER TRANSPORT ARRANGEMENTS,27/06/2022,10113845927,2.30,VALE_OF_WH_PARKING_FEE
OXFORDSHIRE CC,"CHILDRENS, YOUNG PEOPLE AND FAMILIES",FSP NON-STAFFING - CENTRAL,HIRE OF ACCOMMODATION AND FACILITIES,27/06/2022,10113845941,"1,248.41",PREMIER INN
OXFORDSHIRE CC,"CHILDRENS, YOUNG PEOPLE AND FAMILIES",FSP NON-STAFFING - CENTRAL,HIRE OF ACCOMMODATION AND FACILITIES,27/06/2022,10113845945,589.50,PREMIER INN
OXFORDSHIRE CC,CORPORATE CORE,LIBRARY COLLECTIONS,"BOOKS, DVDS AND CDS",27/06/2022,10113844213,306.14,OVERDRIVE DIST
OXFORDSHIRE CC,"CHILDRENS, YOUNG PEOPLE AND FAMILIES",FAMILY SOLUTIONS PLUS NON-STAFF - NORTH,MATERIALS,24/06/2022,10106185935,16.98,AMAZON.CO.UK 2799F3BY4
OXFORDSHIRE CC,"CHILDRENS, YOUNG PEOPLE AND FAMILIES",FSP NON-STAFFING - CENTRAL,"SUPPLIES, STATIONERY AND MATERIALS",24/06/2022,10106185939,180.27,EASYSTORAGE
OXFORDSHIRE CC,"CHILDRENS, YOUNG PEOPLE AND FAMILIES",THAME E&A HOME,MATERIALS,24/06/2022,10106185945,27.43,AMZNMKTPLACE AMAZON.CO
OXFORDSHIRE CC,"CHILDRENS, YOUNG PEOPLE AND FAMILIES","	LOOKED AFTER CITY 2",EDUCATIONAL AND VOCATIONAL TRAINING ,24/06/2022,10106186253,120.00,GATWICK AIRPORT LTD
OXFORDSHIRE CC,SOCIAL AND COMMUNITY SERVICES,CSS WITNEY,MATERIALS,24/06/2022,10106186265,43.96,AMZNMKTPLACE AMAZON.CO
OXFORDSHIRE CC,SOCIAL AND COMMUNITY SERVICES,CSS WITNEY,MATERIALS,24/06/2022,10106186267,8.99,AMZNMKTPLACE AMAZON.CO
OXFORDSHIRE CC,"CHILDRENS, YOUNG PEOPLE AND FAMILIES","	LEAVING CARE CITY 2",IT SOFTWARE,24/06/2022,10106185953,5.00,EMAP UK
OXFORDSHIRE CC,"CHILDRENS, YOUNG PEOPLE AND FAMILIES","	LEAVING CARE CITY 2",CATERING,24/06/2022,10106185955,9.20,ESQUIRES COFFEE HOUSE
OXFORDSHIRE CC,"CHILDRENS, YOUNG PEOPLE AND FAMILIES","	LEAVING CARE CITY 2",CATERING PROVISIONS,24/06/2022,10106185957,15.00,TESCO GIFT CARD
OXFORDSHIRE CC,"CHILDRENS, YOUNG PEOPLE AND FAMILIES",CHILDREN IN CARE NON-STAFFING - CENTRL 1,PAYMENT TO GOVERNMENT DEPARTMENTS,24/06/2022,10106185959,-36.00,GEN REGISTER OFFICE
OXFORDSHIRE CC,SOCIAL AND COMMUNITY SERVICES,CSS BICESTER,MATERIALS,24/06/2022,10106185965,43.97,AMZNMKTPLACE
OXFORDSHIRE CC,"CHILDRENS, YOUNG PEOPLE AND FAMILIES",MARKETING,MATERIALS,24/06/2022,10106185967,8.99,AMZNMKTPLACE AMAZON.CO
OXFORDSHIRE CC,SOCIAL AND COMMUNITY SERVICES,CSS WITNEY,MATERIALS,24/06/2022,10106186269,11.89,AMZNMKTPLACE AMAZON.CO
OXFORDSHIRE CC,SOCIAL AND COMMUNITY SERVICES,CSS WITNEY,GAS,24/06/2022,10106186271,572.45,ALLSTAR BUSINESS SOLUT
OXFORDSHIRE CC,SOCIAL AND COMMUNITY SERVICES,CSS WANTAGE,ENTERTAINMENT EXPENSES,24/06/2022,10106186273,14.00,HOLLYWOOD BOWL
OXFORDSHIRE CC,SOCIAL AND COMMUNITY SERVICES,CSS WANTAGE,ENTERTAINMENT EXPENSES,24/06/2022,10106186275,14.00,HOLLYWOOD BOWL
OXFORDSHIRE CC,"CHILDRENS, YOUNG PEOPLE AND FAMILIES",CNTL EARLY HELP-BRTN,POSTAGE AND DELIVERY,24/06/2022,10106186285,2.35,POST OFFICE COUNTER
OXFORDSHIRE CC,"CHILDRENS, YOUNG PEOPLE AND FAMILIES",CNTL EARLY HELP-BRTN,MATERIALS,24/06/2022,10106186287,99.00,AMAZON.CO.UK 270SD1HY4
OXFORDSHIRE CC,SOCIAL AND COMMUNITY SERVICES,CSS - OXFORD,MATERIALS,24/06/2022,10106185969,21.98,AMZNMKTPLACE
OXFORDSHIRE CC,"CHILDRENS, YOUNG PEOPLE AND FAMILIES","	SM QUALITY ASSURANCE",HIRE OF ACCOMMODATION AND FACILITIES,24/06/2022,10106185971,86.40,HOTEL AT BOOKING.COM
OXFORDSHIRE CC,SOCIAL AND COMMUNITY SERVICES,CICC,MATERIALS,24/06/2022,10106185973,13.58,AMAZON.CO.UK 275521BK4
OXFORDSHIRE CC,SOCIAL AND COMMUNITY SERVICES,CICC,MATERIALS,24/06/2022,10106185975,75.18,AMZNMKTPLACE
OXFORDSHIRE CC,"CHILDRENS, YOUNG PEOPLE AND FAMILIES",EDT,HIRE OF ACCOMMODATION AND FACILITIES,24/06/2022,10106185977,144.99,PREMIER INN
OXFORDSHIRE CC,"CHILDRENS, YOUNG PEOPLE AND FAMILIES",40 THE MOORS,HARDWARE AND CROCKERY,24/06/2022,10106186297,14.69,B AND Q
OXFORDSHIRE CC,"CHILDRENS, YOUNG PEOPLE AND FAMILIES",40 THE MOORS,MATERIALS,24/06/2022,10106186299,44.98,DECATHLON
OXFORDSHIRE CC,"CHILDRENS, YOUNG PEOPLE AND FAMILIES",40 THE MOORS,CATERING,24/06/2022,10106186301,48.38,ZTL JACOBS INN
OXFORDSHIRE CC,"CHILDRENS, YOUNG PEOPLE AND FAMILIES",KINGFISHER,CATERING,24/06/2022,10106186303,9.98,KFC
OXFORDSHIRE CC,"CHILDRENS, YOUNG PEOPLE AND FAMILIES","	LOOKED AFTER SOUTH",PAYMENT TO GOVERNMENT DEPARTMENTS,24/06/2022,10106186305,80.50,HM PASSPORT OFFICE
OXFORDSHIRE CC,"CHILDRENS, YOUNG PEOPLE AND FAMILIES",40 THE MOORS,"BOOKS, DVDS AND CDS",24/06/2022,10106186307,11.99,BLACKWELL'S
OXFORDSHIRE CC,"CHILDRENS, YOUNG PEOPLE AND FAMILIES",PAUSE PROGRAMME,CATERING PROVISIONS,24/06/2022,10106186169,8.00,TESCO STORE 2413
OXFORDSHIRE CC,"CHILDRENS, YOUNG PEOPLE AND FAMILIES",PAUSE PROGRAMME,CATERING PROVISIONS,24/06/2022,10106186171,5.20,TESCO STORES 5429
OXFORDSHIRE CC,"CHILDRENS, YOUNG PEOPLE AND FAMILIES",PAUSE PROGRAMME,CATERING PROVISIONS,24/06/2022,10106186173,5.90,IZ  PARSONS BAKERY
OXFORDSHIRE CC,"CHILDRENS, YOUNG PEOPLE AND FAMILIES",PAUSE PROGRAMME,CATERING,24/06/2022,10106186175,6.60,ZTL MUNCHIES OF STEVEN
OXFORDSHIRE CC,"CHILDRENS, YOUNG PEOPLE AND FAMILIES",PAUSE PROGRAMME,CATERING,24/06/2022,10106186177,9.00,ZTL MUNCHIES OF STEVEN
OXFORDSHIRE CC,ENVIRONMENT AND ECONOMY,"	ABBEY HOUSE",CATERING PROVISIONS,24/06/2022,10106186179,1.40,WAITROSE 211
OXFORDSHIRE CC,"CHILDRENS, YOUNG PEOPLE AND FAMILIES",FAMILY SOLUTIONS PLUS NON-STAFF - NORTH,OTHER TRANSPORT ARRANGEMENTS,24/06/2022,10106186189,155.00,STOWAWAY SERVICES LIMI
OXFORDSHIRE CC,"CHILDRENS, YOUNG PEOPLE AND FAMILIES","	LOOKED AFTER NORTH",TELEPHONE - CALLS,24/06/2022,10106186191,20.00,TESCO STORE 2413
OXFORDSHIRE CC,"CHILDRENS, YOUNG PEOPLE AND FAMILIES",DIDCOT MOVE-ON HOME,CATERING PROVISIONS,24/06/2022,10106186193,38.95,TESCO STORE 2413
OXFORDSHIRE CC,CORPORATE CORE,"MARKETING, COMMUNICATIONS & ENGAGEMENT",IT SOFTWARE,24/06/2022,10106186205,26.49,GOOGLE  GOOGLE PLAY AP
OXFORDSHIRE CC,SOCIAL AND COMMUNITY SERVICES,CSS WANTAGE,CLOTHING AND UNIFORMS,24/06/2022,10106185891,11.60,AMZNMKTPLACE AMAZON.CO
OXFORDSHIRE CC,SOCIAL AND COMMUNITY SERVICES,CSS WANTAGE,MATERIALS,24/06/2022,10106185893,21.00,AMZNMKTPLACE AMAZON.CO
OXFORDSHIRE CC,ENVIRONMENT AND ECONOMY,ELEC NPR ST LTG,OTHER TRANSPORT ARRANGEMENTS,24/06/2022,10106185895,12.00,WE THE CURIOUS (ENTERP
OXFORDSHIRE CC,SOCIAL AND COMMUNITY SERVICES,CSS - ABINGDON,DAY ACTIVITIES,24/06/2022,10106185907,3.00,WHEELS FOR ALL OXFORD
OXFORDSHIRE CC,ENVIRONMENT AND ECONOMY,MAINTENANCE STAFF,MATERIALS,24/06/2022,10106186227,26.09,AMZNMKTPLACE AMAZON.CO
OXFORDSHIRE CC,SOCIAL AND COMMUNITY SERVICES,"	VISUAL IMP. TEAM",MATERIALS,24/06/2022,10106186219,31.94,AMZNMKTPLACE
OXFORDSHIRE CC,SOCIAL AND COMMUNITY SERVICES,CSS - OXFORD,ENTERTAINMENT EXPENSES,24/06/2022,10106186223,10.70,WWW.BETTER.ORG.UK
OXFORDSHIRE CC,SOCIAL AND COMMUNITY SERVICES,CSS - OXFORD,ENTERTAINMENT EXPENSES,24/06/2022,10106186225,5.35,WWW.BETTER.ORG.UK
OXFORDSHIRE CC,"CHILDRENS, YOUNG PEOPLE AND FAMILIES",KINGFISHER,CATERING PROVISIONS,24/06/2022,10106185911,100.00,TESCO GIFT CARD
OXFORDSHIRE CC,"CHILDRENS, YOUNG PEOPLE AND FAMILIES",KINGFISHER,CATERING PROVISIONS,24/06/2022,10106185913,100.00,TESCO GIFT CARD
OXFORDSHIRE CC,"CHILDRENS, YOUNG PEOPLE AND FAMILIES",KINGFISHER,CATERING PROVISIONS,24/06/2022,10106185915,100.00,TESCO GIFT CARD
OXFORDSHIRE CC,"CHILDRENS, YOUNG PEOPLE AND FAMILIES","	LEAVING CARE CITY 1",CATERING PROVISIONS,24/06/2022,10106185927,40.80,SAINSBURYS S/MKTS
OXFORDSHIRE CC,"CHILDRENS, YOUNG PEOPLE AND FAMILIES",THAME E&A HOME,CATERING PROVISIONS,24/06/2022,10106185917,24.47,COST SAVER LOCAL
OXFORDSHIRE CC,ENVIRONMENT AND ECONOMY,HARD FM,HARDWARE AND CROCKERY,24/06/2022,10106185921,65.62,JEWSON WITNEY
OXFORDSHIRE CC,ENVIRONMENT AND ECONOMY,HARD FM,HARDWARE AND CROCKERY,24/06/2022,10106185923,352.58,CITY PLUMBING
OXFORDSHIRE CC,SOCIAL AND COMMUNITY SERVICES,CSS - OXFORD,CATERING PROVISIONS,24/06/2022,10106185925,16.37,ALDI STORES 775-142
OXFORDSHIRE CC,"CHILDRENS, YOUNG PEOPLE AND FAMILIES",CHILDREN IN CARE NON-STAFFING - CENTRL 2,CATERING PROVISIONS,24/06/2022,10106186231,85.78,ASDA STORES 5123
OXFORDSHIRE CC,"CHILDRENS, YOUNG PEOPLE AND FAMILIES","	LEAVING CARE CITY 1",OTHER EXPENSES,24/06/2022,10106185929,126.77,ALLPAY  ORBIT GROUP LI
OXFORDSHIRE CC,"CHILDRENS, YOUNG PEOPLE AND FAMILIES",FAMILY SOLUTIONS PLUS NON-STAFF - NORTH,MATERIALS,24/06/2022,10106185931,15.54,AMAZON.CO.UK 2713X3HE4
OXFORDSHIRE CC,"CHILDRENS, YOUNG PEOPLE AND FAMILIES",FAMILY SOLUTIONS PLUS NON-STAFF - NORTH,MATERIALS,24/06/2022,10106185933,8.49,AMAZON.CO.UK 2727N7HL4
OXFORDSHIRE CC,"CHILDRENS, YOUNG PEOPLE AND FAMILIES",PAUSE PROGRAMME,CATERING,24/06/2022,10106186059,5.30,ASDA LIVING CAFE
OXFORDSHIRE CC,ENVIRONMENT AND ECONOMY,HARD FM,HARDWARE AND CROCKERY,24/06/2022,10106186061,7.72,WICKES READING
OXFORDSHIRE CC,"CHILDRENS, YOUNG PEOPLE AND FAMILIES",DIDCOT MOVE-ON HOME,CATERING PROVISIONS,24/06/2022,10106186063,13.49,SAINSBURYS S/MKTS
OXFORDSHIRE CC,SOCIAL AND COMMUNITY SERVICES,LIBRARY PROJECTS,HARDWARE AND CROCKERY,24/06/2022,10106186369,22.49,SCREWFIX DIR LTD
OXFORDSHIRE CC,CORPORATE CORE,SCHOOLS FM CATERING AREA 1,VEHICLE FUEL,24/06/2022,10106186371,13.00,WITNEY ROAD GARAGE
OXFORDSHIRE CC,CORPORATE CORE,SCHOOLS FM CATERING AREA 1,CATERING PROVISIONS,24/06/2022,10106186373,54.50,POUNDSTRETCHER 322
OXFORDSHIRE CC,CORPORATE CORE,CATERING MANAGEMENT SOFT FM,MATERIALS,24/06/2022,10106186375,6.97,AMZNMKTPLACE
OXFORDSHIRE CC,CORPORATE CORE,CATERING MANAGEMENT SOFT FM,MATERIALS,24/06/2022,10106186377,31.48,AMZNMKTPLACE
OXFORDSHIRE CC,"CHILDRENS, YOUNG PEOPLE AND FAMILIES","	LEAVING CARE NORTH",VEHICLE FUEL,24/06/2022,10106186379,74.08,BP MOTO DONNINGTON PAR
OXFORDSHIRE CC,"CHILDRENS, YOUNG PEOPLE AND FAMILIES",FAMILY SOLUTIONS PLUS NON-STAFF - NORTH,CATERING PROVISIONS,24/06/2022,10106186381,1.35,SAINSBURYS S/MKTS
OXFORDSHIRE CC,"CHILDRENS, YOUNG PEOPLE AND FAMILIES",FAMILY SOLUTIONS PLUS NON-STAFF � SOUTH,TELEPHONE - EQUIPMENT,24/06/2022,10106186383,10.00,EE TOPUP  VESTA
OXFORDSHIRE CC,"CHILDRENS, YOUNG PEOPLE AND FAMILIES",SCHOOLS FM CATERING AREA 3,CATERING PROVISIONS,24/06/2022,10106186073,36.57,SAINSBURY'S S/MKT
OXFORDSHIRE CC,"CHILDRENS, YOUNG PEOPLE AND FAMILIES",UASC 16&17,CATERING PROVISIONS,24/06/2022,10106186075,4.60,SAINSBURYS S/MKTS
OXFORDSHIRE CC,"CHILDRENS, YOUNG PEOPLE AND FAMILIES",FAMILY SOLUTIONS PLUS NON-STAFF - NORTH,HIRE OF ACCOMMODATION AND FACILITIES,24/06/2022,10106186093,240.00,HOTEL AT BOOKING.COM
OXFORDSHIRE CC,"CHILDRENS, YOUNG PEOPLE AND FAMILIES",NTH EARLY HELP-WITNY,MATERIALS,24/06/2022,10106186095,4.99,AMZNMKTPLACE AMAZON.CO
OXFORDSHIRE CC,"CHILDRENS, YOUNG PEOPLE AND FAMILIES",CHILDREN IN CARE NON-STAFFING - NORTH,IT SERVICES,24/06/2022,10106186097,65.00,WE FIX & TRADE
OXFORDSHIRE CC,"CHILDRENS, YOUNG PEOPLE AND FAMILIES","	LEAVING CARE CITY 2",OTHER TRANSPORT ARRANGEMENTS,24/06/2022,10106186101,4.30,STGCOACH/CTYLINK
OXFORDSHIRE CC,"CHILDRENS, YOUNG PEOPLE AND FAMILIES","	LEAVING CARE CITY 2",OTHER TRANSPORT ARRANGEMENTS,24/06/2022,10106186103,15.00,STGCOACH/CTYLINK
OXFORDSHIRE CC,"CHILDRENS, YOUNG PEOPLE AND FAMILIES",WITNEY,CATERING PROVISIONS,24/06/2022,10106186105,30.39,SAINSBURY'S S/MKT
OXFORDSHIRE CC,"CHILDRENS, YOUNG PEOPLE AND FAMILIES",FAMILY SOLUTIONS PLUS NON-STAFF � SOUTH,MATERIALS,24/06/2022,10106186111,14.95,AMZNMKTPLACE AMAZON.CO
OXFORDSHIRE CC,"CHILDRENS, YOUNG PEOPLE AND FAMILIES",FAMILY SOLUTIONS PLUS NON-STAFF � SOUTH,CATERING PROVISIONS,24/06/2022,10106186113,39.94,LOCK AND KEY SHOP
OXFORDSHIRE CC,"CHILDRENS, YOUNG PEOPLE AND FAMILIES",THAME E&A HOME,MATERIALS,24/06/2022,10106186129,45.82,AMZNMKTPLACE AMAZON.CO
OXFORDSHIRE CC,"CHILDRENS, YOUNG PEOPLE AND FAMILIES",THAME E&A HOME,MATERIALS,24/06/2022,10106186131,6.99,AMZNMKTPLACE
OXFORDSHIRE CC,"CHILDRENS, YOUNG PEOPLE AND FAMILIES",THAME E&A HOME,VEHICLES AND PLANT - REPAIRS AND MAIN,24/06/2022,10106186133,500.00,1ST CHOICE DOMESTICS L
OXFORDSHIRE CC,"CHILDRENS, YOUNG PEOPLE AND FAMILIES",THAME E&A HOME,MATERIALS,24/06/2022,10106186135,7.60,CLINTONS-155
OXFORDSHIRE CC,"CHILDRENS, YOUNG PEOPLE AND FAMILIES",QUALITY ASSURANCE NORTH TEAM,PAYMENTS TO TRANSPORT OPERATORS,24/06/2022,10106186149,95.47,THETRAINLINE.COM
OXFORDSHIRE CC,SOCIAL AND COMMUNITY SERVICES,SCHOOLS FM CATERING AREA 2,CATERING,24/06/2022,10106186159,49.58,BOOKER LIMITED OXFORD
OXFORDSHIRE CC,"CHILDRENS, YOUNG PEOPLE AND FAMILIES","	LOOKED AFTER CITY 1",VEHICLE FUEL,24/06/2022,10106186161,48.04,BASILDON GARAGE
OXFORDSHIRE CC,ENVIRONMENT AND ECONOMY,"	NAT TRAILS GENERAL",CATERING PROVISIONS,24/06/2022,10106186167,2.90,CO OPERATIVE FOOD
OXFORDSHIRE CC,"CHILDRENS, YOUNG PEOPLE AND FAMILIES",THAME E&A HOME,MATERIALS,24/06/2022,10106185995,2.50,POUNDLAND LTD
OXFORDSHIRE CC,"CHILDRENS, YOUNG PEOPLE AND FAMILIES",THAME E&A HOME,CATERING,24/06/2022,10106185997,5.38,MCDONALDS
OXFORDSHIRE CC,"CHILDRENS, YOUNG PEOPLE AND FAMILIES","	LEAVING CARE NORTH",CATERING,24/06/2022,10106186007,6.70,43032510 COSTA COFFEE
OXFORDSHIRE CC,SOCIAL AND COMMUNITY SERVICES,ABINGDON LIBRARY,"NEWSPAPERS, PERIODICALS AND PUBLICATIONS",24/06/2022,10106186317,55.99,GUARDIAN NEWS & MEDIA
OXFORDSHIRE CC,"CHILDRENS, YOUNG PEOPLE AND FAMILIES",FSP NON-STAFFING - CENTRAL,HIRE OF ACCOMMODATION AND FACILITIES,24/06/2022,10106186319,93.81,TRAVELODGE
OXFORDSHIRE CC,"CHILDRENS, YOUNG PEOPLE AND FAMILIES",CHILDREN IN CARE NON-STAFFING - CENTRL 2,OTHER EXPENSES,24/06/2022,10106186321,39.99,AMZNMKTPLACE
OXFORDSHIRE CC,"CHILDRENS, YOUNG PEOPLE AND FAMILIES","	LEAVING CARE NORTH",OTHER EXPENSES,24/06/2022,10106186327,8.10,COMPANY OF WEAVERS
OXFORDSHIRE CC,CORPORATE CORE,INCOME TEAM,PAYMENT TO GOVERNMENT DEPARTMENTS,24/06/2022,10106186017,11.00,OXFORDSHIRE CC WEB1
OXFORDSHIRE CC,"CHILDRENS, YOUNG PEOPLE AND FAMILIES",40 THE MOORS,MATERIALS,24/06/2022,10106186019,9.98,AMZNMKTPLACE AMAZON.CO
OXFORDSHIRE CC,CORPORATE CORE,ICT OPERATIONS & MAI,IT SERVICES,24/06/2022,10106186329,"1,005.71",BROWSERSTACK.COM
OXFORDSHIRE CC,"CHILDRENS, YOUNG PEOPLE AND FAMILIES","	LOOKED AFTER CITY 2",MATERIALS,24/06/2022,10106186331,12.70,AMAZON.CO.UK 277842M34
OXFORDSHIRE CC,CORPORATE CORE,MOTOR FLEET,MOTOR IF FEES,24/06/2022,10106186337,95.40,SIDNEY H HOOPER & COMP
OXFORDSHIRE CC,"CHILDRENS, YOUNG PEOPLE AND FAMILIES",HOUSE PROJECT,CATERING PROVISIONS,24/06/2022,10106186043,25.00,CO-OPERATIVE FOOD
OXFORDSHIRE CC,"CHILDRENS, YOUNG PEOPLE AND FAMILIES",UASC POST 18,PAYMENT TO GOVERNMENT DEPARTMENTS,24/06/2022,10106186047,75.00,2MAA031270303 TD E-PMT
OXFORDSHIRE CC,"CHILDRENS, YOUNG PEOPLE AND FAMILIES",EYNSHAM,MATERIALS,24/06/2022,10106186355,6.99,TESCO SUBSCRIPTION
OXFORDSHIRE CC,CORPORATE CORE,,STATIONERY,24/06/2022,10106186357,37.92,LYRECO UK LTD
OXFORDSHIRE CC,CORPORATE CORE,,STATIONERY,24/06/2022,10106186359,90.00,LYRECO UK LTD
OXFORDSHIRE CC,CORPORATE CORE,,STATIONERY,24/06/2022,10106186361,16.97,LYRECO UK LTD
OXFORDSHIRE CC,ENVIRONMENT AND ECONOMY,"	MOUNT HOUSE",CATERING PROVISIONS,24/06/2022,10106186363,1.90,SAINSBURYS S/MKTS
OXFORDSHIRE CC,"CHILDRENS, YOUNG PEOPLE AND FAMILIES",FIELDWORK UASC,CATERING,24/06/2022,10106186365,5.00,BRANOS
OXFORDSHIRE CC,"CHILDRENS, YOUNG PEOPLE AND FAMILIES",KINGFISHER,CATERING PROVISIONS,24/06/2022,10106186367,-100.00,TESCO GIFT CARD
OXFORDSHIRE CC,"CHILDRENS, YOUNG PEOPLE AND FAMILIES","	LOOKED AFTER NORTH",VEHICLE FUEL,24/06/2022,10106186049,19.93,TESCO PFS 3418
OXFORDSHIRE CC,"CHILDRENS, YOUNG PEOPLE AND FAMILIES",FSP NON-STAFFING - CENTRAL,CATERING PROVISIONS,24/06/2022,10106186053,21.99,TESCO STORE 2064
OXFORDSHIRE CC,"CHILDRENS, YOUNG PEOPLE AND FAMILIES","	OCCG GRANT",OTHER TRANSPORT ARRANGEMENTS,24/06/2022,10106186055,1.00,CAR PARK CHARGES
OXFORDSHIRE CC,ENTERPRISEVC,,CAR LEASING - PRIVATE RENTALS,23/06/2022,10100805579,70.44,ENTERPRISE RENT-A-CAR
OXFORDSHIRE CC,"CHILDRENS, YOUNG PEOPLE AND FAMILIES",FIELDWORK UASC,CATERING PROVISIONS,23/06/2022,10100805585,16.91,SAINSBURYS S/MKTS
OXFORDSHIRE CC,"CHILDRENS, YOUNG PEOPLE AND FAMILIES",KINGFISHER,CATERING PROVISIONS,23/06/2022,10100805589,100.00,TESCO GIFT CARD
OXFORDSHIRE CC,CORPORATE CORE,SCHOOLS FM CATERING AREA 1,OTHER TRANSPORT ARRANGEMENTS,23/06/2022,10100805599,6.50,WORCESTER STREET CAR P
OXFORDSHIRE CC,SOCIAL AND COMMUNITY SERVICES,CSS - ABINGDON,CATERING PROVISIONS,23/06/2022,10100804603,19.40,WAITROSE 211
OXFORDSHIRE CC,ENVIRONMENT AND ECONOMY,HARD FM,HARDWARE AND CROCKERY,23/06/2022,10100804605,19.97,SCREWFIX DIR LTD
OXFORDSHIRE CC,ENVIRONMENT AND ECONOMY,HARD FM,HARDWARE AND CROCKERY,23/06/2022,10100804611,123.46,GENERAL BUILDING PLAST
OXFORDSHIRE CC,"CHILDRENS, YOUNG PEOPLE AND FAMILIES",UASC 16&17,HIRED AND CONTRACTED SERVICES,23/06/2022,10100804935,15.00,SUMUP   UK BEST BARBER
OXFORDSHIRE CC,"CHILDRENS, YOUNG PEOPLE AND FAMILIES",UASC 16&17,CATERING,23/06/2022,10100804939,5.49,KFC
OXFORDSHIRE CC,"CHILDRENS, YOUNG PEOPLE AND FAMILIES",UASC 16&17,CATERING PROVISIONS,23/06/2022,10100804943,3.50,TESCO STORES 4377
OXFORDSHIRE CC,CORPORATE CORE,SCHOOLS FM CATERING AREA 1,CATERING PROVISIONS,23/06/2022,10100805601,9.35,TESCO-STORES 2305
OXFORDSHIRE CC,CORPORATE CORE,CATERING MANAGEMENT SOFT FM,MATERIALS,23/06/2022,10100805625,39.99,CURRYS SWINDON
OXFORDSHIRE CC,"CHILDRENS, YOUNG PEOPLE AND FAMILIES","	OCCG GRANT",OTHER TRANSPORT ARRANGEMENTS,23/06/2022,10100804861,-16.00,BUS TICKET OR EMT WIFI
OXFORDSHIRE CC,"CHILDRENS, YOUNG PEOPLE AND FAMILIES",UASC POST 18,MATERIALS,23/06/2022,10100804879,439.66,CURRYS OXFORD
OXFORDSHIRE CC,"CHILDRENS, YOUNG PEOPLE AND FAMILIES",UASC POST 18,MATERIALS,23/06/2022,10100804883,439.66,CURRYS OXFORD
OXFORDSHIRE CC,"CHILDRENS, YOUNG PEOPLE AND FAMILIES",UASC POST 18,MATERIALS,23/06/2022,10100804887,439.66,CURRYS OXFORD
OXFORDSHIRE CC,CORPORATE CORE,,STATIONERY,23/06/2022,10100805543,168.07,LYRECO UK LTD
OXFORDSHIRE CC,ENTERPRISEVC,,CAR LEASING - PRIVATE RENTALS,23/06/2022,10100805549,51.95,ENTERPRISE RENT-A-CAR
OXFORDSHIRE CC,ENTERPRISEVC,,CAR LEASING - PRIVATE RENTALS,23/06/2022,10100805553,36.73,ENTERPRISE RENT-A-CAR
OXFORDSHIRE CC,ENTERPRISEVC,,CAR LEASING - PRIVATE RENTALS,23/06/2022,10100805557,62.86,ENTERPRISE RENT-A-CAR
OXFORDSHIRE CC,ENTERPRISEVC,,CAR LEASING - PRIVATE RENTALS,23/06/2022,10100805559,73.90,ENTERPRISE RENT-A-CAR
OXFORDSHIRE CC,"CHILDRENS, YOUNG PEOPLE AND FAMILIES",CHILDREN IN CARE NON-STAFFING - SOUTH,PAYMENTS TO TRANSPORT OPERATORS,23/06/2022,10100804559,105.50,TRAINLINE
OXFORDSHIRE CC,"CHILDRENS, YOUNG PEOPLE AND FAMILIES","	LEAVING CARE CITY 2",PAYMENT TO GOVERNMENT DEPARTMENTS,23/06/2022,10100804561,"1,000.00",OXFORD CITY COUNCIL
OXFORDSHIRE CC,"CHILDRENS, YOUNG PEOPLE AND FAMILIES","	LEAVING CARE CITY 2",PAYMENT TO GOVERNMENT DEPARTMENTS,23/06/2022,10100804563,392.17,OXFORD CITY COUNCIL
OXFORDSHIRE CC,"CHILDRENS, YOUNG PEOPLE AND FAMILIES",FIELDWORK UASC,OTHER TRANSPORT ARRANGEMENTS,23/06/2022,10100804895,16.00,STGCOACH/CTYLINK
OXFORDSHIRE CC,"CHILDRENS, YOUNG PEOPLE AND FAMILIES",FAMILY SOLUTIONS PLUS NON-STAFF - NORTH,TELEPHONE - EQUIPMENT,23/06/2022,10100804899,10.00,VESTA VODAFONE TOPUP
OXFORDSHIRE CC,ENVIRONMENT AND ECONOMY,HARD FM,HARDWARE AND CROCKERY,23/06/2022,10100804901,318.24,WWW.SCREWFIX.COM
OXFORDSHIRE CC,"CHILDRENS, YOUNG PEOPLE AND FAMILIES",DIDCOT MOVE-ON HOME,DOMESTIC SUPPLIES,23/06/2022,10100804907,1.05,SAINSBURYS S/MKTS
OXFORDSHIRE CC,SOCIAL AND COMMUNITY SERVICES,"	VISUAL IMP. TEAM",MATERIALS,23/06/2022,10100805219,17.36,AMZNMKTPLACE
OXFORDSHIRE CC,CORPORATE CORE,LIBRARY COLLECTIONS,"BOOKS, DVDS AND CDS",23/06/2022,10100805225,330.00,WF EDUCATION GROUP LTD
OXFORDSHIRE CC,CORPORATE CORE,OPERATIONS,MATERIALS,23/06/2022,10100805231,9.64,AMZNMKTPLACE
OXFORDSHIRE CC,CORPORATE CORE,OPERATIONS,MATERIALS,23/06/2022,10100805235,10.00,AMZNMKTPLACE
OXFORDSHIRE CC,CORPORATE CORE,OPERATIONS,MATERIALS,23/06/2022,10100805239,7.58,AMZNMKTPLACE
OXFORDSHIRE CC,CORPORATE CORE,OPERATIONS,MATERIALS,23/06/2022,10100805247,29.98,AMZNMKTPLACE
OXFORDSHIRE CC,CORPORATE CORE,OPERATIONS,MATERIALS,23/06/2022,10100805249,7.94,AMZNMKTPLACE
OXFORDSHIRE CC,ENTERPRISEVC,,CAR LEASING - PRIVATE RENTALS,23/06/2022,10100805561,26.75,ENTERPRISE RENT-A-CAR
OXFORDSHIRE CC,ENVIRONMENT AND ECONOMY,HOLDING CODE FOR REA,HARDWARE AND CROCKERY,23/06/2022,10100804579,48.70,WICKES BICESTER
OXFORDSHIRE CC,"CHILDRENS, YOUNG PEOPLE AND FAMILIES",THAME E&A HOME,VEHICLE FUEL,23/06/2022,10100804583,12.20,THAME BP SF CONNECT
OXFORDSHIRE CC,"CHILDRENS, YOUNG PEOPLE AND FAMILIES",THAME E&A HOME,CATERING PROVISIONS,23/06/2022,10100804587,12.49,COST SAVER LOCAL
OXFORDSHIRE CC,"CHILDRENS, YOUNG PEOPLE AND FAMILIES",DIDCOT MOVE-ON HOME,CATERING PROVISIONS,23/06/2022,10100804913,1.10,SAINSBURYS S/MKTS
OXFORDSHIRE CC,"CHILDRENS, YOUNG PEOPLE AND FAMILIES",DIDCOT MOVE-ON HOME,DOMESTIC SUPPLIES,23/06/2022,10100804915,52.50,DIDCOT CALOR AND P
OXFORDSHIRE CC,"CHILDRENS, YOUNG PEOPLE AND FAMILIES",DIDCOT MOVE-ON HOME,CATERING PROVISIONS,23/06/2022,10100804917,5.00,B&M 514 - DICOT
OXFORDSHIRE CC,"CHILDRENS, YOUNG PEOPLE AND FAMILIES",DIDCOT MOVE-ON HOME,CATERING PROVISIONS,23/06/2022,10100804921,13.97,TESCO STORE 2413
OXFORDSHIRE CC,"CHILDRENS, YOUNG PEOPLE AND FAMILIES",KINGFISHER,MATERIALS,23/06/2022,10100804931,37.50,THEWORKS.CO.UK
OXFORDSHIRE CC,ENVIRONMENT AND ECONOMY,"	COUNTY HALL",OTHER PREMISES RELATED COSTS,23/06/2022,10100805261,159.00,TVLICENSING.CO.UK
OXFORDSHIRE CC,ENTERPRISEVC,,CAR LEASING - PRIVATE RENTALS,23/06/2022,10100805565,46.93,ENTERPRISE RENT-A-CAR
OXFORDSHIRE CC,ENTERPRISEVC,,CAR LEASING - PRIVATE RENTALS,23/06/2022,10100805567,60.86,ENTERPRISE RENT-A-CAR
OXFORDSHIRE CC,ENTERPRISEVC,,CAR LEASING - PRIVATE RENTALS,23/06/2022,10100805571,26.53,ENTERPRISE RENT-A-CAR
OXFORDSHIRE CC,ENTERPRISEVC,,CAR LEASING - PRIVATE RENTALS,23/06/2022,10100805573,62.70,ENTERPRISE RENT-A-CAR
OXFORDSHIRE CC,ENTERPRISEVC,,CAR LEASING - PRIVATE RENTALS,23/06/2022,10100805577,79.31,ENTERPRISE RENT-A-CAR
OXFORDSHIRE CC,"CHILDRENS, YOUNG PEOPLE AND FAMILIES",40 THE MOORS,MATERIALS,23/06/2022,10100804787,17.58,AMZNMKTPLACE AMAZON.CO
OXFORDSHIRE CC,SHARED SERVICES,CSC SUPP & SERVICES,STATIONERY,23/06/2022,10100804793,55.98,AMZNMKTPLACE
OXFORDSHIRE CC,"CHILDRENS, YOUNG PEOPLE AND FAMILIES",FSP NON-STAFFING - CENTRAL,HIRE OF ACCOMMODATION AND FACILITIES,23/06/2022,10100805115,273.00,HOTEL AT BOOKING.COM
OXFORDSHIRE CC,"CHILDRENS, YOUNG PEOPLE AND FAMILIES",FSP NON-STAFFING - CENTRAL,HIRE OF ACCOMMODATION AND FACILITIES,23/06/2022,10100805119,222.49,PREMIER INN
OXFORDSHIRE CC,ENVIRONMENT AND ECONOMY,"	NAT TRAILS GENERAL",CATERING PROVISIONS,23/06/2022,10100805123,.70,CO OPERATIVE FOOD
OXFORDSHIRE CC,"CHILDRENS, YOUNG PEOPLE AND FAMILIES",PAUSE PROGRAMME,CATERING PROVISIONS,23/06/2022,10100805127,2.00,SAINSBURY'S DIDCOT
OXFORDSHIRE CC,"CHILDRENS, YOUNG PEOPLE AND FAMILIES",PAUSE PROGRAMME,CATERING,23/06/2022,10100805129,12.95,43034270 COSTA COFFEE
OXFORDSHIRE CC,"CHILDRENS, YOUNG PEOPLE AND FAMILIES",FAMILY SOLUTIONS PLUS NON-STAFF - NORTH,HIRE OF ACCOMMODATION AND FACILITIES,23/06/2022,10100805145,833.85,HOTEL AT BOOKING.COM
OXFORDSHIRE CC,"CHILDRENS, YOUNG PEOPLE AND FAMILIES",40 THE MOORS,ENTERTAINMENT EXPENSES,23/06/2022,10100805443,10.98,VUE ENTERTAINMENT LTD
OXFORDSHIRE CC,"CHILDRENS, YOUNG PEOPLE AND FAMILIES",FAMILY SOLUTIONS PLUS NON-STAFF - NORTH,HIRE OF ACCOMMODATION AND FACILITIES,23/06/2022,10100805149,25.00,CHURCH FARM
OXFORDSHIRE CC,CORPORATE CORE,"MARKETING, COMMUNICATIONS & ENGAGEMENT",EDUCATIONAL AND VOCATIONAL TRAINING ,23/06/2022,10100805169,123.74,"SCHOOL OF MOTION, INC."
OXFORDSHIRE CC,"CHILDRENS, YOUNG PEOPLE AND FAMILIES",DIDCOT MOVE-ON HOME,MATERIALS,23/06/2022,10100805479,7.99,AMAZON PRIME 278A84PU4
OXFORDSHIRE CC,SOCIAL AND COMMUNITY SERVICES,"	CENTRAL LIBRARY",MATERIALS,23/06/2022,10100805483,16.79,AMZNMKTPLACE AMAZON.CO
OXFORDSHIRE CC,SOCIAL AND COMMUNITY SERVICES,"	CENTRAL LIBRARY",MATERIALS,23/06/2022,10100805489,19.49,AMZNMKTPLACE
OXFORDSHIRE CC,"CHILDRENS, YOUNG PEOPLE AND FAMILIES",CHILDREN IN CARE NON-STAFFING - CENTRL 2,OTHER EXPENSES,23/06/2022,10100805493,7.00,PREMIER TENNIS
OXFORDSHIRE CC,SOCIAL AND COMMUNITY SERVICES,ADULTS AT RISK,HIRE OF ACCOMMODATION AND FACILITIES,23/06/2022,10100805497,948.00,HOTELSCOM9169173669863
OXFORDSHIRE CC,SOCIAL AND COMMUNITY SERVICES,ADULTS AT RISK,HIRE OF ACCOMMODATION AND FACILITIES,23/06/2022,10100805499,158.00,HOTELSCOM9169173748860
OXFORDSHIRE CC,"CHILDRENS, YOUNG PEOPLE AND FAMILIES","	LEAVING CARE SOUTH",OTHER EXPENSES,23/06/2022,10100805507,13.11,MCDONALDS
OXFORDSHIRE CC,"CHILDRENS, YOUNG PEOPLE AND FAMILIES",CSS WALLINGFORD,MATERIALS,23/06/2022,10100804547,32.98,AMZNMKTPLACE AMAZON.CO
OXFORDSHIRE CC,"CHILDRENS, YOUNG PEOPLE AND FAMILIES",CSS WALLINGFORD,MATERIALS,23/06/2022,10100804549,13.90,AMZNMKTPLACE
OXFORDSHIRE CC,"CHILDRENS, YOUNG PEOPLE AND FAMILIES",CSS WALLINGFORD,MATERIALS,23/06/2022,10100804553,15.49,AMZNMKTPLACE
OXFORDSHIRE CC,"CHILDRENS, YOUNG PEOPLE AND FAMILIES",NTS UASC AGENCY,BIRTHDAY ALLOWANCE,23/06/2022,10100805667,7.98,TESCO STORE 2994
OXFORDSHIRE CC,"CHILDRENS, YOUNG PEOPLE AND FAMILIES",NTS UASC AGENCY,BIRTHDAY ALLOWANCE,23/06/2022,10100805669,2.58,CARD FACTORY
OXFORDSHIRE CC,SOCIAL AND COMMUNITY SERVICES,"	HISTORY SERVICE",EQUIPMENT,23/06/2022,10100804703,421.68,CONSERVATION BY DE
OXFORDSHIRE CC,SOCIAL AND COMMUNITY SERVICES,CSS WALLINGFORD,CATERING PROVISIONS,23/06/2022,10100804707,12.00,WAITROSE 675
OXFORDSHIRE CC,ENVIRONMENT AND ECONOMY,"	FLEET OPERATIONS",ROAD FUND LICENCES AND MOTS,23/06/2022,10100805385,137.50,DVLA VEHICLE TAX
OXFORDSHIRE CC,"CHILDRENS, YOUNG PEOPLE AND FAMILIES",THAME E&A HOME,MATERIALS,23/06/2022,10100805063,8.49,AMZNMKTPLACE
OXFORDSHIRE CC,"CHILDRENS, YOUNG PEOPLE AND FAMILIES",THAME E&A HOME,MATERIALS,23/06/2022,10100805065,189.00,AMZNMKTPLACE
OXFORDSHIRE CC,"CHILDRENS, YOUNG PEOPLE AND FAMILIES",WITNEY,CATERING PROVISIONS,23/06/2022,10100805069,15.45,SAINSBURYS S/MKTS
OXFORDSHIRE CC,"CHILDRENS, YOUNG PEOPLE AND FAMILIES",FSP NON-STAFFING - CENTRAL,HIRE OF ACCOMMODATION AND FACILITIES,23/06/2022,10100805073,128.50,PREMIER INN
OXFORDSHIRE CC,SOCIAL AND COMMUNITY SERVICES,CSS BICESTER,CATERING PROVISIONS,23/06/2022,10100804731,6.56,SAINSBURYS S/MKTS
OXFORDSHIRE CC,SOCIAL AND COMMUNITY SERVICES,CSS - OXFORD,CATERING PROVISIONS,23/06/2022,10100804735,25.68,ALDI STORES 775-142
OXFORDSHIRE CC,SOCIAL AND COMMUNITY SERVICES,CSS - OXFORD,CATERING PROVISIONS,23/06/2022,10100804739,29.27,ALDI STORES 775-142
OXFORDSHIRE CC,"CHILDRENS, YOUNG PEOPLE AND FAMILIES",CNTL EARLY HELP-RHIL,CATERING PROVISIONS,23/06/2022,10100804743,.80,TESCO STORES 4377
OXFORDSHIRE CC,"CHILDRENS, YOUNG PEOPLE AND FAMILIES","	LEAVING CARE NORTH",OTHER TRANSPORT ARRANGEMENTS,23/06/2022,10100804747,7.30,STAGECOACH BUS
OXFORDSHIRE CC,"CHILDRENS, YOUNG PEOPLE AND FAMILIES",KINGFISHER,CATERING PROVISIONS,23/06/2022,10100804751,32.33,PAYPAL  DOMINOSPIZZ
OXFORDSHIRE CC,"CHILDRENS, YOUNG PEOPLE AND FAMILIES",KINGFISHER,MATERIALS,23/06/2022,10100804755,-3.95,ARGOS LTD
OXFORDSHIRE CC,"CHILDRENS, YOUNG PEOPLE AND FAMILIES",40 THE MOORS,CATERING PROVISIONS,23/06/2022,10100805421,15.80,LA PATISSERIE
OXFORDSHIRE CC,"CHILDRENS, YOUNG PEOPLE AND FAMILIES",FSP NON-STAFFING - CENTRAL,HIRE OF ACCOMMODATION AND FACILITIES,23/06/2022,10100804767,143.00,HOLIDAY INN EXPRSS
OXFORDSHIRE CC,"CHILDRENS, YOUNG PEOPLE AND FAMILIES",40 THE MOORS,MATERIALS,23/06/2022,10100804783,3.02,AMZNMKTPLACE AMAZON.CO
OXFORDSHIRE CC,"CHILDRENS, YOUNG PEOPLE AND FAMILIES","	LEAVING CARE NORTH",CATERING,23/06/2022,10100805081,6.79,MCDONALDS
OXFORDSHIRE CC,"CHILDRENS, YOUNG PEOPLE AND FAMILIES",FSP NON-STAFFING - CENTRAL,HIRE OF ACCOMMODATION AND FACILITIES,23/06/2022,10100805077,843.50,PREMIER INN
OXFORDSHIRE CC,"CHILDRENS, YOUNG PEOPLE AND FAMILIES","	LEAVING CARE NORTH",HIRE OF ACCOMMODATION AND FACILITIES,23/06/2022,10100805083,52.20,HOTEL ON BOOKING.COM
OXFORDSHIRE CC,"CHILDRENS, YOUNG PEOPLE AND FAMILIES",40 THE MOORS,CATERING PROVISIONS,23/06/2022,10100805425,202.12,SAINSBURYS.CO.UK
OXFORDSHIRE CC,"CHILDRENS, YOUNG PEOPLE AND FAMILIES",40 THE MOORS,CATERING PROVISIONS,23/06/2022,10100805429,-3.00,SAINSBURYS.CO.UK
OXFORDSHIRE CC,ENVIRONMENT AND ECONOMY,HARD FM,HARDWARE AND CROCKERY,23/06/2022,10100804615,185.11,SCREWFIX DIR LTD
OXFORDSHIRE CC,ENVIRONMENT AND ECONOMY,HARD FM,HARDWARE AND CROCKERY,23/06/2022,10100804619,31.00,WICKES OXFORD
OXFORDSHIRE CC,ENVIRONMENT AND ECONOMY,HARD FM,FURNITURE,23/06/2022,10100804621,122.43,247BLINDS.CO.UK
OXFORDSHIRE CC,ENVIRONMENT AND ECONOMY,COUNTY LIBRARY,GENERAL MAINTENANCE,23/06/2022,10100804625,208.42,WOLSELEY UK
OXFORDSHIRE CC,"CHILDRENS, YOUNG PEOPLE AND FAMILIES","	LEAVING CARE CITY 1",MATERIALS,23/06/2022,10100804633,24.00,ARGOS LTD
OXFORDSHIRE CC,ENVIRONMENT AND ECONOMY,BUS INFRASTRUCTURE MAINTENANCE,CLEANING MATERIALS,23/06/2022,10100804637,162.60,GRAFFITI REMOVAL LTD
OXFORDSHIRE CC,"CHILDRENS, YOUNG PEOPLE AND FAMILIES",THAME E&A HOME,CATERING PROVISIONS,23/06/2022,10100804965,2.85,SAINSBURYS S/MKTS
OXFORDSHIRE CC,"CHILDRENS, YOUNG PEOPLE AND FAMILIES",UASC 16&17,OTHER EXPENSES,23/06/2022,10100804969,21.99,TESCO STORE 2994
OXFORDSHIRE CC,"CHILDRENS, YOUNG PEOPLE AND FAMILIES",UASC 16&17,RESIDENTIAL ACTIVITIES,23/06/2022,10100804975,51.97,ALDI STORES 775-142
OXFORDSHIRE CC,"CHILDRENS, YOUNG PEOPLE AND FAMILIES",UASC 16&17,BIRTHDAY ALLOWANCE,23/06/2022,10100804979,.59,B&M 236 - COWLEY
OXFORDSHIRE CC,SOCIAL AND COMMUNITY SERVICES,SCHOOLS FM CATERING AREA 4,CATERING PROVISIONS,23/06/2022,10100804645,7.60,CO-OPERATIVE FOOD
OXFORDSHIRE CC,SOCIAL AND COMMUNITY SERVICES,SCHOOLS FM CATERING AREA 4,CATERING PROVISIONS,23/06/2022,10100804649,5.70,CO-OPERATIVE FOOD
OXFORDSHIRE CC,SOCIAL AND COMMUNITY SERVICES,SCHOOLS FM CATERING AREA 4,MATERIALS,23/06/2022,10100804651,17.70,AMZNMKTPLACE AMAZON.CO
OXFORDSHIRE CC,CORPORATE CORE,INSURANCE TEAM,PAYMENTS TO TRANSPORT OPERATORS,23/06/2022,10100805309,264.60,WWW.GWR.COM
OXFORDSHIRE CC,"CHILDRENS, YOUNG PEOPLE AND FAMILIES","	LEAVING CARE NORTH",CATERING,23/06/2022,10100805631,9.55,"DONINGTON, PRET A MANG"
OXFORDSHIRE CC,"CHILDRENS, YOUNG PEOPLE AND FAMILIES",THAME E&A HOME,MATERIALS,23/06/2022,10100805635,29.17,AMZNMKTPLACE
OXFORDSHIRE CC,SOCIAL AND COMMUNITY SERVICES,SCHOOLS FM CATERING AREA 4,MATERIALS,23/06/2022,10100804653,37.77,AMZNMKTPLACE
OXFORDSHIRE CC,"CHILDRENS, YOUNG PEOPLE AND FAMILIES","	LEAVING CARE CITY 2",CATERING PROVISIONS,23/06/2022,10100804661,26.34,LIDL GB ABINGDON
OXFORDSHIRE CC,CORPORATE CORE,SCHOOLS FM CATERING AREA 4,CATERING PROVISIONS,23/06/2022,10100804987,68.76,SAINSBURYS.CO.UK
OXFORDSHIRE CC,CORPORATE CORE,SCHOOLS FM CATERING AREA 4,CATERING PROVISIONS,23/06/2022,10100804983,24.84,SAINSBURYS S/MKTS
OXFORDSHIRE CC,"CHILDRENS, YOUNG PEOPLE AND FAMILIES","	LEAVING CARE SOUTH",CATERING,23/06/2022,10100804991,12.98,MCDONALDS
OXFORDSHIRE CC,"CHILDRENS, YOUNG PEOPLE AND FAMILIES","	LEAVING CARE CITY 2",OTHER TRANSPORT ARRANGEMENTS,23/06/2022,10100804995,2.00,STAGECOACH SERVICES
OXFORDSHIRE CC,"CHILDRENS, YOUNG PEOPLE AND FAMILIES","	LOOKED AFTER CITY 2",CAR LEASING - PRIVATE RENTALS,23/06/2022,10100805333,562.72,SIXT CAR RENTAL
OXFORDSHIRE CC,"CHILDRENS, YOUNG PEOPLE AND FAMILIES",ATV ADOPTION OXFORD,"SUPPLIES, STATIONERY AND MATERIALS",23/06/2022,10100804679,1.50,PAYPAL  ROYAL MAIL
OXFORDSHIRE CC,"CHILDRENS, YOUNG PEOPLE AND FAMILIES","	SM QUALITY ASSURANCE",HIRE OF ACCOMMODATION AND FACILITIES,23/06/2022,10100804687,104.50,PREMIER INN
OXFORDSHIRE CC,SOCIAL AND COMMUNITY SERVICES,SCHOOLS FM CATERING AREA 2,MATERIALS,23/06/2022,10100804691,58.45,AMZNMKTPLACE AMAZON.CO
OXFORDSHIRE CC,"CHILDRENS, YOUNG PEOPLE AND FAMILIES",FAMILY SOLUTIONS PLUS NON-STAFF � SOUTH,CATERING PROVISIONS,23/06/2022,10100805015,30.00,TESCO GIFT CARD
OXFORDSHIRE CC,"CHILDRENS, YOUNG PEOPLE AND FAMILIES",HOUSE PROJECT,HOSPITALITY EXPENSES,23/06/2022,10100805017,24.87,WHITE HORSE
OXFORDSHIRE CC,SOCIAL AND COMMUNITY SERVICES,CSS WITNEY,MATERIALS,23/06/2022,10100805353,15.98,AMZNMKTPLACE
OXFORDSHIRE CC,SOCIAL AND COMMUNITY SERVICES,CSS WITNEY,MATERIALS,23/06/2022,10100805357,9.99,AMZNMKTPLACE
OXFORDSHIRE CC,SOCIAL AND COMMUNITY SERVICES,CSS WITNEY,MATERIALS,23/06/2022,10100805359,22.58,AMZNMKTPLACE
OXFORDSHIRE CC,SOCIAL AND COMMUNITY SERVICES,CSS WANTAGE,VEHICLE EQUIPMENT AND EXPENSES - OTHER,23/06/2022,10100805365,14.85,WANTAGE MOTORIST CENTR
OXFORDSHIRE CC,"CHILDRENS, YOUNG PEOPLE AND FAMILIES",DIDCOT MOVE-ON HOME,CATERING PROVISIONS,22/06/2022,10095812857,6.82,HOME BARGAINS
OXFORDSHIRE CC,"CHILDRENS, YOUNG PEOPLE AND FAMILIES",FSP NON-STAFFING - CENTRAL,PAYMENTS TO TRANSPORT OPERATORS,22/06/2022,10095812863,70.60,WWW.GWR.COM
OXFORDSHIRE CC,ENVIRONMENT AND ECONOMY,HARD FM,HARDWARE AND CROCKERY,22/06/2022,10095812675,17.80,WICKES READING
OXFORDSHIRE CC,"CHILDRENS, YOUNG PEOPLE AND FAMILIES",FSP COUNTYWIDE POSTS,CATERING PROVISIONS,22/06/2022,10095812885,11.75,SAINSBURY'S S/MKT
OXFORDSHIRE CC,"CHILDRENS, YOUNG PEOPLE AND FAMILIES",PAUSE PROGRAMME,CATERING PROVISIONS,22/06/2022,10095812893,6.95,CO-OPERATIVE FOOD
OXFORDSHIRE CC,"CHILDRENS, YOUNG PEOPLE AND FAMILIES",PAUSE PROGRAMME,CATERING PROVISIONS,22/06/2022,10095812901,8.98,TESCO STORE 2413
OXFORDSHIRE CC,SOCIAL AND COMMUNITY SERVICES,ADULTS AT RISK,HIRE OF ACCOMMODATION AND FACILITIES,22/06/2022,10095813223,125.49,TRAVELODGE
OXFORDSHIRE CC,SOCIAL AND COMMUNITY SERVICES,ADULTS AT RISK,HIRE OF ACCOMMODATION AND FACILITIES,22/06/2022,10095813225,478.44,TRAVELODGE
OXFORDSHIRE CC,SOCIAL AND COMMUNITY SERVICES,CSS BICESTER,CATERING PROVISIONS,22/06/2022,10095812237,35.20,B&M 025 - BICESTER
OXFORDSHIRE CC,SOCIAL AND COMMUNITY SERVICES,CSS BICESTER,CATERING PROVISIONS,22/06/2022,10095812243,12.00,WILKO RETAIL LIMITED
OXFORDSHIRE CC,"CHILDRENS, YOUNG PEOPLE AND FAMILIES",THAME E&A HOME,CATERING PROVISIONS,22/06/2022,10095812249,2.85,COSTA THAME
OXFORDSHIRE CC,"CHILDRENS, YOUNG PEOPLE AND FAMILIES",KINGFISHER,CATERING,22/06/2022,10095812695,11.16,MCDONALDS
OXFORDSHIRE CC,"CHILDRENS, YOUNG PEOPLE AND FAMILIES",THAME E&A HOME,CATERING PROVISIONS,22/06/2022,10095812701,2.00,SAINSBURYS S/MKTS
OXFORDSHIRE CC,SOCIAL AND COMMUNITY SERVICES,ADULTS AT RISK,HIRE OF ACCOMMODATION AND FACILITIES,22/06/2022,10095813241,76.48,TRAVELODGE
OXFORDSHIRE CC,SOCIAL AND COMMUNITY SERVICES,ADULTS AT RISK,HIRE OF ACCOMMODATION AND FACILITIES,22/06/2022,10095813245,464.02,TRAVELODGE
OXFORDSHIRE CC,"CHILDRENS, YOUNG PEOPLE AND FAMILIES",FSP NON-STAFFING - CENTRAL,MATERIALS,22/06/2022,10095813253,40.24,AMAZON.CO.UK 2798U70D4
OXFORDSHIRE CC,CORPORATE CORE,,STATIONERY,22/06/2022,10095813367,31.68,LYRECO UK LTD
OXFORDSHIRE CC,CORPORATE CORE,,STATIONERY,22/06/2022,10095813371,166.06,LYRECO UK LTD
OXFORDSHIRE CC,CORPORATE CORE,,STATIONERY,22/06/2022,10095813375,144.00,LYRECO UK LTD
OXFORDSHIRE CC,CORPORATE CORE,,STATIONERY,22/06/2022,10095813377,30.34,LYRECO UK LTD
OXFORDSHIRE CC,CORPORATE CORE,CATERING MANAGEMENT SOFT FM,CATERING,22/06/2022,10095813381,130.92,BRAKES (STORED CARDS)
OXFORDSHIRE CC,"CHILDRENS, YOUNG PEOPLE AND FAMILIES",THAME E&A HOME,CATERING PROVISIONS,22/06/2022,10095812253,4.10,COSTA THAME
OXFORDSHIRE CC,"CHILDRENS, YOUNG PEOPLE AND FAMILIES",THAME E&A HOME,CATERING,22/06/2022,10095812259,3.30,SMARTS FISH BAR
OXFORDSHIRE CC,"CHILDRENS, YOUNG PEOPLE AND FAMILIES",UASC 16&17,OTHER TRANSPORT ARRANGEMENTS,22/06/2022,10095812265,22.50,WWW.THEKEY.CO.UK
OXFORDSHIRE CC,"CHILDRENS, YOUNG PEOPLE AND FAMILIES","	LOOKED AFTER CITY 1",DRUGS AND MEDICAL SUPPLIES,22/06/2022,10095812275,23.99,THE GYM LIMITED
OXFORDSHIRE CC,"CHILDRENS, YOUNG PEOPLE AND FAMILIES",CHILDREN IN CARE NON-STAFFING - CENTRL 2,MATERIALS,22/06/2022,10095812407,52.94,ARGOS LTD
OXFORDSHIRE CC,"CHILDRENS, YOUNG PEOPLE AND FAMILIES",FAMILY SOLUTIONS PLUS NON-STAFF � SOUTH,MATERIALS,22/06/2022,10095812415,-188.00,CURRYS ONLINE
OXFORDSHIRE CC,CORPORATE CORE,"	LEGAL SERVICES",EDUCATIONAL AND VOCATIONAL TRAINING ,22/06/2022,10095813017,"2,493.00",KAPLAN SQE LIMITED
OXFORDSHIRE CC,CORPORATE CORE,,STATIONERY,22/06/2022,10095813361,15.89,LYRECO UK LTD
OXFORDSHIRE CC,CORPORATE CORE,,STATIONERY,22/06/2022,10095813363,25.82,LYRECO UK LTD
OXFORDSHIRE CC,CORPORATE CORE,,STATIONERY,22/06/2022,10095813365,200.11,LYRECO UK LTD
OXFORDSHIRE CC,"CHILDRENS, YOUNG PEOPLE AND FAMILIES",FAMILY SOLUTIONS PLUS NON-STAFF - NORTH,PAYMENTS TO TRANSPORT OPERATORS,22/06/2022,10095813483,64.19,THETRAINLINE.COM
OXFORDSHIRE CC,"CHILDRENS, YOUNG PEOPLE AND FAMILIES",FAMILY SOLUTIONS PLUS NON-STAFF - NORTH,OTHER TRANSPORT ARRANGEMENTS,22/06/2022,10095813487,220.00,SQ  1ST CALL SWINDON T
OXFORDSHIRE CC,"CHILDRENS, YOUNG PEOPLE AND FAMILIES",FAMILY SOLUTIONS PLUS NON-STAFF - NORTH,OTHER TRANSPORT ARRANGEMENTS,22/06/2022,10095813489,72.00,SQ  1ST CALL SWINDON T
OXFORDSHIRE CC,"CHILDRENS, YOUNG PEOPLE AND FAMILIES",FAMILY SOLUTIONS PLUS NON-STAFF - NORTH,PAYMENTS TO TRANSPORT OPERATORS,22/06/2022,10095813493,32.39,TRAINLINE.COM
OXFORDSHIRE CC,SOCIAL AND COMMUNITY SERVICES,SCHOOLS FM CATERING AREA 2,MATERIALS,22/06/2022,10095812449,12.99,AMZNMKTPLACE
OXFORDSHIRE CC,"CHILDRENS, YOUNG PEOPLE AND FAMILIES","	LOOKED AFTER SOUTH",POSTAGE AND DELIVERY,22/06/2022,10095813175,2.35,POST OFFICE COUNTER
OXFORDSHIRE CC,SOCIAL AND COMMUNITY SERVICES,CSS - BANBURY,CATERING PROVISIONS,22/06/2022,10095812465,67.22,SAINSBURYS.CO.UK
OXFORDSHIRE CC,"CHILDRENS, YOUNG PEOPLE AND FAMILIES","	LAC PUPIL PREMIUM",PURCHASE OF IT EQUIPMENT,22/06/2022,10095812823,323.95,AMZNMKTPLACE
OXFORDSHIRE CC,"CHILDRENS, YOUNG PEOPLE AND FAMILIES",THAME E&A HOME,MATERIALS,22/06/2022,10095812853,8.49,AMZNMKTPLACE
OXFORDSHIRE CC,"CHILDRENS, YOUNG PEOPLE AND FAMILIES",40 THE MOORS,MATERIALS,22/06/2022,10095813195,13.94,ARGOS LTD
OXFORDSHIRE CC,"CHILDRENS, YOUNG PEOPLE AND FAMILIES",FAMILY SOLUTIONS PLUS NON-STAFF � SOUTH,CATERING PROVISIONS,22/06/2022,10095813523,70.00,TESCO GIFT CARD
OXFORDSHIRE CC,SOCIAL AND COMMUNITY SERVICES,CSS - OXFORD,CATERING PROVISIONS,22/06/2022,10095812505,13.45,ALDI STORES 775-142
OXFORDSHIRE CC,SOCIAL AND COMMUNITY SERVICES,CSS - OXFORD,CATERING PROVISIONS,22/06/2022,10095812509,7.50,TESCO STORE 2994
OXFORDSHIRE CC,"CHILDRENS, YOUNG PEOPLE AND FAMILIES",THAME E&A HOME,MATERIALS,22/06/2022,10095812515,98.00,SP SABERSPRO
OXFORDSHIRE CC,"CHILDRENS, YOUNG PEOPLE AND FAMILIES",CHILDREN IN CARE NON-STAFFING - SOUTH,HIRE OF ACCOMMODATION AND FACILITIES,22/06/2022,10095812193,97.50,PREMIER INN
OXFORDSHIRE CC,SHARED SERVICES,CSC SUPP & SERVICES,PURCHASE OF IT EQUIPMENT,22/06/2022,10095812581,21.99,AMZNMKTPLACE AMAZON.CO
OXFORDSHIRE CC,"CHILDRENS, YOUNG PEOPLE AND FAMILIES",PAUSE PROGRAMME,MATERIALS,22/06/2022,10095812623,8.28,AMZNMKTPLACE
OXFORDSHIRE CC,"CHILDRENS, YOUNG PEOPLE AND FAMILIES","	OCCG GRANT",CATERING PROVISIONS,22/06/2022,10095812629,6.05,CO-OPERATIVE FOOD
OXFORDSHIRE CC,"CHILDRENS, YOUNG PEOPLE AND FAMILIES","	OCCG GRANT",OTHER TRANSPORT ARRANGEMENTS,22/06/2022,10095812633,16.00,BUS TICKET OR EMT WIFI
OXFORDSHIRE CC,"CHILDRENS, YOUNG PEOPLE AND FAMILIES",CHILDREN IN CARE NON-STAFFING - SOUTH,CATERING PROVISIONS,22/06/2022,10095813305,250.00,SAINSBURYS SMKT
OXFORDSHIRE CC,"CHILDRENS, YOUNG PEOPLE AND FAMILIES",CHILDREN IN CARE NON-STAFFING - SOUTH,CATERING PROVISIONS,22/06/2022,10095813307,150.00,SAINSBURYS SMKT
OXFORDSHIRE CC,"CHILDRENS, YOUNG PEOPLE AND FAMILIES","	LEAVING CARE CITY 1",CATERING PROVISIONS,22/06/2022,10095812361,3.50,TESCO STORES 2008
OXFORDSHIRE CC,CORPORATE CORE,REGISTRAR,MATERIALS,22/06/2022,10095812653,13.99,AMZNMKTPLACE
OXFORDSHIRE CC,"CHILDRENS, YOUNG PEOPLE AND FAMILIES","	OCCG GRANT",MATERIALS,22/06/2022,10095812657,24.00,TIMPSON LTD
OXFORDSHIRE CC,ENVIRONMENT AND ECONOMY,LIBRARY BUSINESS SERVICES,EQUIPMENT,22/06/2022,10095812661,14.99,AMZNMKTPLACE
OXFORDSHIRE CC,ENVIRONMENT AND ECONOMY,LIB ICT SUPPRT&MAINT,EQUIPMENT,22/06/2022,10095812665,-194.00,AMZ BUY DIRECT 2 YOU
OXFORDSHIRE CC,ENVIRONMENT AND ECONOMY,HOLDING CODE FOR REA,MATERIALS,22/06/2022,10095812223,121.52,AMZNMKTPLACE
OXFORDSHIRE CC,"CHILDRENS, YOUNG PEOPLE AND FAMILIES",KINGFISHER,HOSPITALITY EXPENSES,22/06/2022,10095812231,10.00,THAME BARNS CENTRE
OXFORDSHIRE CC,"CHILDRENS, YOUNG PEOPLE AND FAMILIES","	LEAVING CARE CITY 1",VEHICLE FUEL,22/06/2022,10095812365,3.00,ESSO MARCHAM ROAD SERV
OXFORDSHIRE CC,"CHILDRENS, YOUNG PEOPLE AND FAMILIES",FAMILY SOLUTIONS PLUS NON-STAFF - NORTH,PAYMENTS TO TRANSPORT OPERATORS,22/06/2022,10095812371,17.40,WWW.GWR.COM
OXFORDSHIRE CC,"CHILDRENS, YOUNG PEOPLE AND FAMILIES",FAMILY SOLUTIONS PLUS NON-STAFF � SOUTH,POSTAGE AND DELIVERY,22/06/2022,10095812385,7.60,POST OFFICE COUNTER
OXFORDSHIRE CC,CORPORATE CORE,SKILLS & LEARNING,IT SOFTWARE,22/06/2022,10095813005,720.00,SLI DO
OXFORDSHIRE CC,CORPORATE CORE,,STATIONERY,22/06/2022,10095813355,27.67,LYRECO UK LTD
OXFORDSHIRE CC,CORPORATE CORE,,STATIONERY,22/06/2022,10095813359,22.75,LYRECO UK LTD
OXFORDSHIRE CC,ENVIRONMENT AND ECONOMY,HARD FM,GENERAL MAINTENANCE,22/06/2022,10095813467,44.00,WOLSELEY UK
OXFORDSHIRE CC,ENVIRONMENT AND ECONOMY,HARD FM,GENERAL MAINTENANCE,22/06/2022,10095813471,68.40,WOLSELEY UK
OXFORDSHIRE CC,"CHILDRENS, YOUNG PEOPLE AND FAMILIES",FAMILY SOLUTIONS PLUS NON-STAFF � SOUTH,EDUCATIONAL AND VOCATIONAL TRAINING ,22/06/2022,10095813477,58.50,PERFORM
OXFORDSHIRE CC,"CHILDRENS, YOUNG PEOPLE AND FAMILIES","	LEAVING CARE CITY 1",OTHER TRANSPORT ARRANGEMENTS,22/06/2022,10095812353,2.90,GUNWHARF QUAYS
OXFORDSHIRE CC,"CHILDRENS, YOUNG PEOPLE AND FAMILIES","	LEAVING CARE CITY 1",CATERING,22/06/2022,10095812349,38.10,FRANKIE & BENNYS 5259
OXFORDSHIRE CC,"CHILDRENS, YOUNG PEOPLE AND FAMILIES","	LEAVING CARE CITY 1",CATERING PROVISIONS,22/06/2022,10095812357,36.00,ASDA STORE 4442
OXFORDSHIRE CC,"CHILDRENS, YOUNG PEOPLE AND FAMILIES",UASC 16&17,OTHER TRANSPORT ARRANGEMENTS,22/06/2022,10095812767,25.00,WWW.THEKEY.CO.UK
OXFORDSHIRE CC,"CHILDRENS, YOUNG PEOPLE AND FAMILIES",UASC 16&17,NON-STAFF SUBSISTENCE AND EXPENSES,22/06/2022,10095812771,2.55,SAINSBURYS S/MKTS
OXFORDSHIRE CC,"CHILDRENS, YOUNG PEOPLE AND FAMILIES",THAME E&A HOME,ENTERTAINMENT EXPENSES,22/06/2022,10095812775,9.70,THAME LEISURE CENTRE
OXFORDSHIRE CC,CORPORATE CORE,SCHOOLS FM CATERING AREA 4,CATERING PROVISIONS,22/06/2022,10095812779,17.81,CO-OPERATIVE FOOD
OXFORDSHIRE CC,CORPORATE CORE,STAFF ENGAGEMENT,MATERIALS,22/06/2022,10095813119,20.69,AMAZON.CO.UK 276U14A54
OXFORDSHIRE CC,CORPORATE CORE,STAFF ENGAGEMENT,MATERIALS,22/06/2022,10095813123,20.69,AMAZON.CO.UK 272MA2104
OXFORDSHIRE CC,CORPORATE CORE,STAFF ENGAGEMENT,MATERIALS,22/06/2022,10095813127,20.69,AMAZON.CO.UK 2735L51Y4
OXFORDSHIRE CC,CORPORATE CORE,STAFF ENGAGEMENT,MATERIALS,22/06/2022,10095813131,20.69,AMAZON.CO.UK 276H971J4
OXFORDSHIRE CC,CORPORATE CORE,STAFF ENGAGEMENT,MATERIALS,22/06/2022,10095813133,20.69,AMAZON.CO.UK 279675194
OXFORDSHIRE CC,"CHILDRENS, YOUNG PEOPLE AND FAMILIES","	LEAVING CARE NORTH",CATERING,22/06/2022,10095813465,11.28,LEON SKELTON PARK 1493
OXFORDSHIRE CC,SOCIAL AND COMMUNITY SERVICES,CSS WANTAGE,DAY ACTIVITIES,22/06/2022,10095812147,75.00,WWW.BEAULIEU.CO.UK
OXFORDSHIRE CC,"CHILDRENS, YOUNG PEOPLE AND FAMILIES","	LEAVING CARE SOUTH",CATERING PROVISIONS,22/06/2022,10095812783,9.70,WAITROSE 692
OXFORDSHIRE CC,SOCIAL AND COMMUNITY SERVICES,SCHOOLS FM CATERING AREA 1,MATERIALS,22/06/2022,10095812789,46.76,AMZNMKTPLACE
OXFORDSHIRE CC,"CHILDRENS, YOUNG PEOPLE AND FAMILIES","	LEAVING CARE CITY 2",PAYMENTS TO TRANSPORT OPERATORS,22/06/2022,10095812795,11.00,MILTON KEYNES SST
OXFORDSHIRE CC,"CHILDRENS, YOUNG PEOPLE AND FAMILIES","	LEAVING CARE CITY 2",CATERING,22/06/2022,10095812797,8.53,KFC ABINGDON STREET
OXFORDSHIRE CC,ENVIRONMENT AND ECONOMY,"	FLEET OPERATIONS",POSTAGE AND DELIVERY,22/06/2022,10095813137,5.55,POST OFFICE COUNTER
OXFORDSHIRE CC,ENVIRONMENT AND ECONOMY,"	FLEET OPERATIONS",POSTAGE AND DELIVERY,22/06/2022,10095813141,3.35,POST OFFICE COUNTER
OXFORDSHIRE CC,"CHILDRENS, YOUNG PEOPLE AND FAMILIES",CSS WALLINGFORD,CATERING PROVISIONS,22/06/2022,10095812151,6.40,WAITROSE 675
OXFORDSHIRE CC,"CHILDRENS, YOUNG PEOPLE AND FAMILIES",CSS WALLINGFORD,MATERIALS,22/06/2022,10095812153,12.97,AMZNMKTPLACE
OXFORDSHIRE CC,"CHILDRENS, YOUNG PEOPLE AND FAMILIES",CSS WALLINGFORD,MATERIALS,22/06/2022,10095812155,12.99,AMZNMKTPLACE
OXFORDSHIRE CC,"CHILDRENS, YOUNG PEOPLE AND FAMILIES",FSP NON-STAFFING - CENTRAL,OTHER TRANSPORT ARRANGEMENTS,22/06/2022,10095812173,2.30,STGCOACH/CTYLINK
OXFORDSHIRE CC,CORPORATE CORE,MOTOR FLEET,MOTOR IF OWN DAMAGE,22/06/2022,10095813289,604.72,ENTERPRISE RENT A CAR
OXFORDSHIRE CC,"CHILDRENS, YOUNG PEOPLE AND FAMILIES",THAME E&A HOME,MATERIALS,22/06/2022,10095813293,59.47,AMZNMKTPLACE AMAZON.CO
OXFORDSHIRE CC,"CHILDRENS, YOUNG PEOPLE AND FAMILIES",KINGFISHER,CATERING,22/06/2022,10095813297,11.58,MCDONALDS
OXFORDSHIRE CC,"CHILDRENS, YOUNG PEOPLE AND FAMILIES",CHILDREN IN CARE NON-STAFFING - SOUTH,MATERIALS,22/06/2022,10095813301,14.00,ARGOS DIDCOT
OXFORDSHIRE CC,"CHILDRENS, YOUNG PEOPLE AND FAMILIES","	LOOKED AFTER CITY 1",HIRE OF ACCOMMODATION AND FACILITIES,22/06/2022,10095812277,402.86,TRAVELODGE
OXFORDSHIRE CC,ENVIRONMENT AND ECONOMY,HARD FM,EQUIPMENT,22/06/2022,10095812281,27.82,W F SENATE
OXFORDSHIRE CC,ENVIRONMENT AND ECONOMY,HARD FM,HARDWARE AND CROCKERY,22/06/2022,10095812285,21.98,WWW.SCREWFIX.COM
OXFORDSHIRE CC,ENVIRONMENT AND ECONOMY,HARD FM,HARDWARE AND CROCKERY,22/06/2022,10095812287,144.27,TOOLSTATION LTD
OXFORDSHIRE CC,ENVIRONMENT AND ECONOMY,HARD FM,HARDWARE AND CROCKERY,22/06/2022,10095812289,71.36,GENERAL BUILDING PLAST
OXFORDSHIRE CC,"CHILDRENS, YOUNG PEOPLE AND FAMILIES",THAME E&A HOME,CATERING,22/06/2022,10095812703,7.42,MCDONALDS
OXFORDSHIRE CC,"CHILDRENS, YOUNG PEOPLE AND FAMILIES",FAMILY SOLUTIONS PLUS NON-STAFF - NORTH,OTHER TRANSPORT ARRANGEMENTS,22/06/2022,10095812709,82.00,NATIONAL EXPRESS LIMIT
OXFORDSHIRE CC,"CHILDRENS, YOUNG PEOPLE AND FAMILIES","	LOOKED AFTER CITY 2",HIRE OF ACCOMMODATION AND FACILITIES,22/06/2022,10095813061,111.90,HOTEL MERCURE
OXFORDSHIRE CC,"CHILDRENS, YOUNG PEOPLE AND FAMILIES","	LEAVING CARE NORTH",OTHER TRANSPORT ARRANGEMENTS,22/06/2022,10095813067,30.00,OXFORDBUS.CO.UK
OXFORDSHIRE CC,"CHILDRENS, YOUNG PEOPLE AND FAMILIES","	LEAVING CARE SOUTH",OTHER EXPENSES,22/06/2022,10095813263,14.10,SWOON GELATO
OXFORDSHIRE CC,"CHILDRENS, YOUNG PEOPLE AND FAMILIES",EYNSHAM,CATERING PROVISIONS,22/06/2022,10095813269,131.87,TESCO STORES 2008
OXFORDSHIRE CC,"CHILDRENS, YOUNG PEOPLE AND FAMILIES",FIELDWORK UASC,HIRED AND CONTRACTED SERVICES,22/06/2022,10095813397,18.08,REGINA HAIR SALON
OXFORDSHIRE CC,"CHILDRENS, YOUNG PEOPLE AND FAMILIES",FIELDWORK UASC,CATERING PROVISIONS,22/06/2022,10095813401,73.28,ASDA STORE 4442
OXFORDSHIRE CC,"CHILDRENS, YOUNG PEOPLE AND FAMILIES",FIELDWORK UASC,CATERING PROVISIONS,22/06/2022,10095813403,19.00,ASDA STORE 4442
OXFORDSHIRE CC,"CHILDRENS, YOUNG PEOPLE AND FAMILIES",FIELDWORK UASC,CATERING PROVISIONS,22/06/2022,10095813407,22.99,ASDA STORE 4442
OXFORDSHIRE CC,ENVIRONMENT AND ECONOMY,HARD FM,HARDWARE AND CROCKERY,22/06/2022,10095812293,14.42,SCREWFIX DIR LTD
OXFORDSHIRE CC,ENVIRONMENT AND ECONOMY,HARD FM,HARDWARE AND CROCKERY,22/06/2022,10095812295,54.50,JOHN NICHOLLS KIDLINGT
OXFORDSHIRE CC,ENVIRONMENT AND ECONOMY,HARD FM,VEHICLE FUEL,22/06/2022,10095812299,114.52,BELLINGERS S.STN
OXFORDSHIRE CC,ENVIRONMENT AND ECONOMY,COUNTY LIBRARY,GENERAL MAINTENANCE,22/06/2022,10095812307,108.66,WOLSELEY UK
OXFORDSHIRE CC,ENVIRONMENT AND ECONOMY,COUNTY LIBRARY,OTHER TRANSPORT ARRANGEMENTS,22/06/2022,10095812313,3.90,NCP BANBURY MARLBOROUG
OXFORDSHIRE CC,"CHILDRENS, YOUNG PEOPLE AND FAMILIES",THAME E&A HOME,CATERING PROVISIONS,22/06/2022,10095812739,10.00,SAINSBURYS S/MKTS
OXFORDSHIRE CC,SOCIAL AND COMMUNITY SERVICES,CSS WITNEY,CATERING PROVISIONS,22/06/2022,10095813087,57.80,SAINSBURYS.CO.UK
OXFORDSHIRE CC,SOCIAL AND COMMUNITY SERVICES,CSS WANTAGE,CATERING PROVISIONS,22/06/2022,10095813093,23.00,SAINSBURYS S/MKTS
OXFORDSHIRE CC,"CHILDRENS, YOUNG PEOPLE AND FAMILIES",FIELDWORK UASC,CATERING PROVISIONS,22/06/2022,10095813413,-18.00,ASDA STORE 4442
OXFORDSHIRE CC,"CHILDRENS, YOUNG PEOPLE AND FAMILIES",FIELDWORK UASC,CATERING,22/06/2022,10095813411,9.70,BODRUM FOOD AND CATERI
OXFORDSHIRE CC,CORPORATE CORE,SCHOOLS FM CATERING AREA 1,HARDWARE AND CROCKERY,22/06/2022,10095813421,85.50,B & Q 1176
OXFORDSHIRE CC,CORPORATE CORE,SCHOOLS FM CATERING AREA 1,HARDWARE AND CROCKERY,22/06/2022,10095813425,59.96,SCREWFIX DIR LTD
OXFORDSHIRE CC,CORPORATE CORE,SCHOOLS FM CATERING AREA 1,CATERING PROVISIONS,22/06/2022,10095813429,6.70,CO-OPERATIVE FOOD
OXFORDSHIRE CC,"CHILDRENS, YOUNG PEOPLE AND FAMILIES",DIDCOT MOVE-ON HOME,CATERING PROVISIONS,22/06/2022,10095813433,3.90,SAINSBURYS S/MKTS
OXFORDSHIRE CC,"CHILDRENS, YOUNG PEOPLE AND FAMILIES","	LEAVING CARE NORTH",CATERING,22/06/2022,10095812323,7.59,MCDONALDS
OXFORDSHIRE CC,"CHILDRENS, YOUNG PEOPLE AND FAMILIES","	LEAVING CARE NORTH",MATERIALS,22/06/2022,10095812327,49.99,AMAZON.CO.UK 277WO5T64
OXFORDSHIRE CC,"CHILDRENS, YOUNG PEOPLE AND FAMILIES","	LEAVING CARE CITY 1",CATERING PROVISIONS,22/06/2022,10095812333,4.95,CO-OPERATIVE FOOD
OXFORDSHIRE CC,"CHILDRENS, YOUNG PEOPLE AND FAMILIES","	LEAVING CARE CITY 1",CATERING PROVISIONS,22/06/2022,10095812339,3.50,SAINSBURY'S S/MKT
OXFORDSHIRE CC,"CHILDRENS, YOUNG PEOPLE AND FAMILIES","	LEAVING CARE CITY 1",CATERING PROVISIONS,22/06/2022,10095812343,12.50,SAINSBURYS S/MKTS
OXFORDSHIRE CC,"CHILDRENS, YOUNG PEOPLE AND FAMILIES",FAMILY SOLUTIONS PLUS STAFFING - SOUTH,MATERIALS,22/06/2022,10095812757,14.99,ARGOS LTD
OXFORDSHIRE CC,"CHILDRENS, YOUNG PEOPLE AND FAMILIES",UASC 16&17,RESIDENTIAL ACTIVITIES,22/06/2022,10095812761,18.99,THE GYM LIMITED
OXFORDSHIRE CC,SOCIAL AND COMMUNITY SERVICES,CSS WANTAGE,MATERIALS,22/06/2022,10095813097,8.67,AMAZON.CO.UK 277LR7PI4
OXFORDSHIRE CC,"CHILDRENS, YOUNG PEOPLE AND FAMILIES",DIDCOT MOVE-ON HOME,ENTERTAINMENT EXPENSES,22/06/2022,10095813435,41.42,CINEWORLD DID CP
OXFORDSHIRE CC,"CHILDRENS, YOUNG PEOPLE AND FAMILIES",DIDCOT MOVE-ON HOME,CATERING PROVISIONS,22/06/2022,10095813439,41.55,TESCO STORES 2008
OXFORDSHIRE CC,"CHILDRENS, YOUNG PEOPLE AND FAMILIES",DIDCOT MOVE-ON HOME,CATERING PROVISIONS,22/06/2022,10095813443,8.00,TESCO STORES 2008
OXFORDSHIRE CC,"CHILDRENS, YOUNG PEOPLE AND FAMILIES",40 THE MOORS,CATERING PROVISIONS,22/06/2022,10095813447,8.55,SAINSBURYS S/MKTS
OXFORDSHIRE CC,CORPORATE CORE,"MARKETING, COMMUNICATIONS & ENGAGEMENT",IT SOFTWARE,21/06/2022,10091622957,26.49,GOOGLE  GOOGLE PLAY AP
OXFORDSHIRE CC,ENVIRONMENT AND ECONOMY,"	OXFORDSHIRE MUSEUM",LICENCES,21/06/2022,10091622977,23.00,WEST OXFORDSHIRE D
OXFORDSHIRE CC,CORPORATE CORE,"	CORPORATE FINANCE",PAYMENTS TO TRANSPORT OPERATORS,21/06/2022,10091622981,161.00,WWW.GWR.COM
OXFORDSHIRE CC,"CHILDRENS, YOUNG PEOPLE AND FAMILIES","	LEAVING CARE NORTH",MATERIALS,21/06/2022,10091622983,59.16,AMZNMKTPLACE
OXFORDSHIRE CC,"CHILDRENS, YOUNG PEOPLE AND FAMILIES",DIDCOT MOVE-ON HOME,CATERING PROVISIONS,21/06/2022,10091623093,48.97,TESCO STORE 2413
OXFORDSHIRE CC,"CHILDRENS, YOUNG PEOPLE AND FAMILIES",DIDCOT MOVE-ON HOME,CATERING PROVISIONS,21/06/2022,10091623095,6.50,Q GARDENS FARM SHOP
OXFORDSHIRE CC,"CHILDRENS, YOUNG PEOPLE AND FAMILIES","	BUSINESS DEVELOPMENT","SUPPLIES, STATIONERY AND MATERIALS",21/06/2022,10091623099,495.00,IKEA LTD SHOP ONLINE
OXFORDSHIRE CC,"CHILDRENS, YOUNG PEOPLE AND FAMILIES",40 THE MOORS,CATERING,21/06/2022,10091623097,66.90,EASTERN KITCHEN
OXFORDSHIRE CC,"CHILDRENS, YOUNG PEOPLE AND FAMILIES","	LEAVING CARE NORTH",RESIDENTIAL ACTIVITIES,21/06/2022,10091622783,30.00,WWW.CONSOL.EU
OXFORDSHIRE CC,"CHILDRENS, YOUNG PEOPLE AND FAMILIES",THAME E&A HOME,CATERING PROVISIONS,21/06/2022,10091622781,-1.35,TESCO STORES 2038
OXFORDSHIRE CC,"CHILDRENS, YOUNG PEOPLE AND FAMILIES",KINGFISHER,HIRE OF ACCOMMODATION AND FACILITIES,21/06/2022,10091622793,105.00,THE JAM FACTORY
OXFORDSHIRE CC,"CHILDRENS, YOUNG PEOPLE AND FAMILIES",KINGFISHER,HIRE OF ACCOMMODATION AND FACILITIES,21/06/2022,10091622795,"2,555.85",YOKO PROPERTY LTD
OXFORDSHIRE CC,"CHILDRENS, YOUNG PEOPLE AND FAMILIES","	LEAVING CARE SOUTH",OTHER TRANSPORT ARRANGEMENTS,21/06/2022,10091622907,3.90,WAVERLEY BOROUGH COUNC
OXFORDSHIRE CC,"CHILDRENS, YOUNG PEOPLE AND FAMILIES","	LEAVING CARE SOUTH",CATERING,21/06/2022,10091622909,7.50,STARBUCKS
OXFORDSHIRE CC,"CHILDRENS, YOUNG PEOPLE AND FAMILIES","	LEAVING CARE SOUTH",VEHICLE FUEL,21/06/2022,10091622911,63.81,ESSO ACORN SSTN
OXFORDSHIRE CC,SOCIAL AND COMMUNITY SERVICES,SCHOOLS FM CATERING AREA 1,CATERING PROVISIONS,21/06/2022,10091622913,12.45,TESCO STORES 4480
OXFORDSHIRE CC,"CHILDRENS, YOUNG PEOPLE AND FAMILIES",UASC 16&17,HIRE OF ACCOMMODATION AND FACILITIES,21/06/2022,10091622903,122.38,TRAVELODGE
OXFORDSHIRE CC,"CHILDRENS, YOUNG PEOPLE AND FAMILIES",UASC 16&17,NON-STAFF SUBSISTENCE AND EXPENSES,21/06/2022,10091622905,2.25,TESCO STORES 4377
OXFORDSHIRE CC,"CHILDRENS, YOUNG PEOPLE AND FAMILIES",WITNEY,CATERING,21/06/2022,10091622919,19.20,PEKIN CHEF
OXFORDSHIRE CC,"CHILDRENS, YOUNG PEOPLE AND FAMILIES",CHILDREN IN CARE NON-STAFFING - NORTH,CATERING PROVISIONS,21/06/2022,10091623101,27.10,SAINSBURYS S/MKTS
OXFORDSHIRE CC,"CHILDRENS, YOUNG PEOPLE AND FAMILIES",NTH EARLY HELP-BNRBY,CATERING PROVISIONS,21/06/2022,10091623103,2.70,TESCO STORE 2064
OXFORDSHIRE CC,ENVIRONMENT AND ECONOMY,HARD FM,GENERAL MAINTENANCE,21/06/2022,10091623105,103.64,WOLSELEY UK
OXFORDSHIRE CC,"CHILDRENS, YOUNG PEOPLE AND FAMILIES",FAMILY SOLUTIONS PLUS NON-STAFF - NORTH,PAYMENTS TO TRANSPORT OPERATORS,21/06/2022,10091623107,6.82,THETRAINLINE.COM
OXFORDSHIRE CC,"CHILDRENS, YOUNG PEOPLE AND FAMILIES",FAMILY SOLUTIONS PLUS NON-STAFF - NORTH,PAYMENTS TO TRANSPORT OPERATORS,21/06/2022,10091623109,6.82,TRAINLINE.COM
OXFORDSHIRE CC,"CHILDRENS, YOUNG PEOPLE AND FAMILIES",FAMILY SOLUTIONS PLUS NON-STAFF - NORTH,PAYMENTS TO TRANSPORT OPERATORS,21/06/2022,10091623111,6.92,TRAINLINE.COM
OXFORDSHIRE CC,"CHILDRENS, YOUNG PEOPLE AND FAMILIES","	LEAVING CARE NORTH",PAYMENT TO GOVERNMENT DEPARTMENTS,21/06/2022,10091622933,11.00,OXFORDSHIRE CC MOTO1
OXFORDSHIRE CC,"CHILDRENS, YOUNG PEOPLE AND FAMILIES",PAUSE PROGRAMME,MATERIALS,21/06/2022,10091622941,4.99,THE CRAFTERS EMPORIUM
OXFORDSHIRE CC,"CHILDRENS, YOUNG PEOPLE AND FAMILIES","	DISABILITIES TEAM-C",PAYMENT TO GOVERNMENT DEPARTMENTS,21/06/2022,10091622735,14.00,GEN REGISTER OFFICE
OXFORDSHIRE CC,SOCIAL AND COMMUNITY SERVICES,CSS BICESTER,CATERING PROVISIONS,21/06/2022,10091622737,67.01,TESCO STORE 2162
OXFORDSHIRE CC,"CHILDRENS, YOUNG PEOPLE AND FAMILIES","	LEAVING CARE CITY 1",OTHER EXPENSES,21/06/2022,10091622739,21.00,NOW TV
OXFORDSHIRE CC,CORPORATE CORE,LIBRARY COLLECTIONS,"BOOKS, DVDS AND CDS",21/06/2022,10091622841,314.02,OVERDRIVE DIST
OXFORDSHIRE CC,CORPORATE CORE,LIBRARY COLLECTIONS,"BOOKS, DVDS AND CDS",21/06/2022,10091622843,239.18,OVERDRIVE DIST
OXFORDSHIRE CC,CORPORATE CORE,LIBRARY COLLECTIONS,"BOOKS, DVDS AND CDS",21/06/2022,10091622845,50.00,WATERSTONES
OXFORDSHIRE CC,CORPORATE CORE,LIBRARY COLLECTIONS,"BOOKS, DVDS AND CDS",21/06/2022,10091622847,100.00,WATERSTONES
OXFORDSHIRE CC,ENVIRONMENT AND ECONOMY,LIB ICT SUPPRT&MAINT,EQUIPMENT,21/06/2022,10091622851,155.42,AMAZON.CO.UK 271MY2JL4
OXFORDSHIRE CC,ENVIRONMENT AND ECONOMY,LIB ICT SUPPRT&MAINT,EQUIPMENT,21/06/2022,10091622853,155.42,AMAZON.CO.UK 2712T8ZK4
OXFORDSHIRE CC,"CHILDRENS, YOUNG PEOPLE AND FAMILIES",UASC UNDER 16,RESIDENTIAL ACTIVITIES,21/06/2022,10091622857,48.00,TK MAXX
OXFORDSHIRE CC,"CHILDRENS, YOUNG PEOPLE AND FAMILIES",FAMILY SOLUTIONS PLUS NON-STAFF - NORTH,HIRE OF ACCOMMODATION AND FACILITIES,21/06/2022,10091622859,73.42,TRAVELODGE
OXFORDSHIRE CC,"CHILDRENS, YOUNG PEOPLE AND FAMILIES",FSP NON-STAFFING - CENTRAL,PAYMENTS TO TRANSPORT OPERATORS,21/06/2022,10091623047,40.20,WWW.GWR.COM
OXFORDSHIRE CC,"CHILDRENS, YOUNG PEOPLE AND FAMILIES",FSP NON-STAFFING - CENTRAL,PAYMENTS TO TRANSPORT OPERATORS,21/06/2022,10091623049,47.30,WWW.GWR.COM
OXFORDSHIRE CC,"CHILDRENS, YOUNG PEOPLE AND FAMILIES",FSP NON-STAFFING - CENTRAL,MATERIALS,21/06/2022,10091623051,11.64,AMAZON.CO.UK 270CW1JM4
OXFORDSHIRE CC,SOCIAL AND COMMUNITY SERVICES,SOUTH OXFORDSHIRE TEAM,POSTAGE AND DELIVERY,21/06/2022,10091623053,7.95,ROYAL MAIL GROUP LTD
OXFORDSHIRE CC,"CHILDRENS, YOUNG PEOPLE AND FAMILIES",KINGFISHER,INSURANCE COSTS,21/06/2022,10091622865,2.55,COSTA GROVE
OXFORDSHIRE CC,"CHILDRENS, YOUNG PEOPLE AND FAMILIES",UASC 16&17,CATERING PROVISIONS,21/06/2022,10091622867,2.20,TESCO STORES 4377
OXFORDSHIRE CC,"CHILDRENS, YOUNG PEOPLE AND FAMILIES",UASC 16&17,CATERING,21/06/2022,10091622869,8.00,DELIGHT KEBAB HOUSE
OXFORDSHIRE CC,"CHILDRENS, YOUNG PEOPLE AND FAMILIES",UASC 16&17,CATERING,21/06/2022,10091622871,2.55,COSTA TEMPLARS
OXFORDSHIRE CC,"CHILDRENS, YOUNG PEOPLE AND FAMILIES",FAMILY SOLUTIONS PLUS NON-STAFF - NORTH,FURNITURE,21/06/2022,10091622873,403.00,IKEA LTD SHOP ONLINE
OXFORDSHIRE CC,"CHILDRENS, YOUNG PEOPLE AND FAMILIES",FAMILY SOLUTIONS PLUS NON-STAFF - NORTH,HIRE OF ACCOMMODATION AND FACILITIES,21/06/2022,10091622875,460.80,HOTEL AT BOOKING.COM
OXFORDSHIRE CC,"CHILDRENS, YOUNG PEOPLE AND FAMILIES",CHILDREN IN CARE NON-STAFFING - SOUTH,MATERIALS,21/06/2022,10091623061,4.99,ROBERT DYAS HOLDNG LTD
OXFORDSHIRE CC,"CHILDRENS, YOUNG PEOPLE AND FAMILIES",CSS - DIDCOT,CATERING PROVISIONS,21/06/2022,10091622773,13.34,ALDI 99 775
OXFORDSHIRE CC,"CHILDRENS, YOUNG PEOPLE AND FAMILIES",THAME E&A HOME,CATERING PROVISIONS,21/06/2022,10091622775,3.29,ALDI 49 775
OXFORDSHIRE CC,"CHILDRENS, YOUNG PEOPLE AND FAMILIES",THAME E&A HOME,FURNITURE,21/06/2022,10091622777,173.00,IKEA LTD SHOP ONLINE
OXFORDSHIRE CC,"CHILDRENS, YOUNG PEOPLE AND FAMILIES",THAME E&A HOME,CATERING PROVISIONS,21/06/2022,10091622779,216.98,TESCO STORES 2038
OXFORDSHIRE CC,"CHILDRENS, YOUNG PEOPLE AND FAMILIES",CSS WALLINGFORD,MATERIALS,21/06/2022,10091622687,58.22,AMZNMKTPLACE
OXFORDSHIRE CC,"CHILDRENS, YOUNG PEOPLE AND FAMILIES",TRANSPORT COSTS,TRANSPORT TO SCHOOL,21/06/2022,10091622691,83.50,STAGECOACH SERVICE
OXFORDSHIRE CC,"CHILDRENS, YOUNG PEOPLE AND FAMILIES",CHILDREN IN CARE NON-STAFFING - SOUTH,PAYMENT TO GOVERNMENT DEPARTMENTS,21/06/2022,10091622693,42.00,GEN REGISTER OFFICE
OXFORDSHIRE CC,CORPORATE CORE,CATERING MANAGEMENT SOFT FM,CATERING,21/06/2022,10091622699,32.46,BOOKER LIMITED OXFORD
OXFORDSHIRE CC,CORPORATE CORE,CATERING MANAGEMENT SOFT FM,CATERING,21/06/2022,10091622699,73.81,BOOKER LIMITED OXFORD
OXFORDSHIRE CC,CORPORATE CORE,INCOME TEAM,PAYMENT TO GOVERNMENT DEPARTMENTS,21/06/2022,10091622803,11.00,OXFORDSHIRE CC WEB1
OXFORDSHIRE CC,"CHILDRENS, YOUNG PEOPLE AND FAMILIES",NTH EARLY HELP-WITNY,GAS,21/06/2022,10091622817,34.36,ALLSTAR BUSINESS SOLUT
OXFORDSHIRE CC,"CHILDRENS, YOUNG PEOPLE AND FAMILIES",40 THE MOORS,MATERIALS,21/06/2022,10091622809,19.99,ARGOS LTD
OXFORDSHIRE CC,"CHILDRENS, YOUNG PEOPLE AND FAMILIES",EYNSHAM,CATERING,21/06/2022,10091622701,22.00,TESCO STORE 2994
OXFORDSHIRE CC,"CHILDRENS, YOUNG PEOPLE AND FAMILIES",THAME E&A HOME,VEHICLE FUEL,21/06/2022,10091622709,.44,TESCO PFS 3443
OXFORDSHIRE CC,"CHILDRENS, YOUNG PEOPLE AND FAMILIES","	LOOKED AFTER CITY 1",TRANSPORT TO SCHOOL,21/06/2022,10091622719,79.00,WWW.THEKEY.CO.UK
OXFORDSHIRE CC,"CHILDRENS, YOUNG PEOPLE AND FAMILIES",PAUSE PROGRAMME,POSTAGE AND DELIVERY,21/06/2022,10091622825,5.55,POST OFFICE COUNTER
OXFORDSHIRE CC,"CHILDRENS, YOUNG PEOPLE AND FAMILIES",HOUSE PROJECT,HOSPITALITY EXPENSES,21/06/2022,10091622829,1.80,THE UP IN ARMS PUB
OXFORDSHIRE CC,"CHILDRENS, YOUNG PEOPLE AND FAMILIES",CHILDREN IN CARE NON-STAFFING - NORTH,PAYMENT TO GOVERNMENT DEPARTMENTS,21/06/2022,10091622837,-35.00,GEN REGISTER OFFICE
OXFORDSHIRE CC,CORPORATE CORE,LIBRARY COLLECTIONS,"BOOKS, DVDS AND CDS",21/06/2022,10091622839,539.50,OVERDRIVE DIST
OXFORDSHIRE CC,"CHILDRENS, YOUNG PEOPLE AND FAMILIES",40 THE MOORS,"BOOKS, DVDS AND CDS",21/06/2022,10091623027,8.99,BLACKWELL'S
OXFORDSHIRE CC,SOCIAL AND COMMUNITY SERVICES,OLDER ADULTS MH TEAM,HIRE OF ACCOMMODATION AND FACILITIES,21/06/2022,10091623035,147.00,PREMIER INN
OXFORDSHIRE CC,"CHILDRENS, YOUNG PEOPLE AND FAMILIES",CNTL EARLY HELP-BRTN,VEHICLE FUEL,21/06/2022,10091623039,2.70,TESCO PFS 2488
OXFORDSHIRE CC,ENVIRONMENT AND ECONOMY,HARD FM,HARDWARE AND CROCKERY,21/06/2022,10091622723,6.65,OXON FASTENING SYSTEMS
OXFORDSHIRE CC,ENVIRONMENT AND ECONOMY,HARD FM,VEHICLES AND PLANT - REPAIRS AND MAIN,21/06/2022,10091622721,15.00,HALFORDS ON LINE
OXFORDSHIRE CC,ENVIRONMENT AND ECONOMY,HARD FM,MATERIALS,21/06/2022,10091622725,20.50,HALFORDS 0988
OXFORDSHIRE CC,"CHILDRENS, YOUNG PEOPLE AND FAMILIES","	LEAVING CARE NORTH",DRUGS AND MEDICAL SUPPLIES,21/06/2022,10091622727,23.00,BOOTS 0453
OXFORDSHIRE CC,"CHILDRENS, YOUNG PEOPLE AND FAMILIES","	LEAVING CARE NORTH",FURNITURE,21/06/2022,10091622729,76.00,DUNELM (SOFT FURNISHIN
OXFORDSHIRE CC,"CHILDRENS, YOUNG PEOPLE AND FAMILIES","	LEAVING CARE NORTH",FURNITURE,21/06/2022,10091622731,49.60,DUNELM (SOFT FURNISHIN
OXFORDSHIRE CC,"CHILDRENS, YOUNG PEOPLE AND FAMILIES","	DISABILITIES TEAM-C",PAYMENT TO GOVERNMENT DEPARTMENTS,21/06/2022,10091622733,14.00,GEN REGISTER OFFICE
OXFORDSHIRE CC,"CHILDRENS, YOUNG PEOPLE AND FAMILIES",EYNSHAM,CATERING PROVISIONS,20/06/2022,10084540571,7.70,CO-OPERATIVE FOOD
OXFORDSHIRE CC,"CHILDRENS, YOUNG PEOPLE AND FAMILIES",FAMILY SOLUTIONS PLUS NON-STAFF � SOUTH,MATERIALS,20/06/2022,10084540621,108.60,ARGOS LTD
OXFORDSHIRE CC,"CHILDRENS, YOUNG PEOPLE AND FAMILIES",FAMILY SOLUTIONS PLUS NON-STAFF � SOUTH,MATERIALS,20/06/2022,10084540627,23.98,AMZNMKTPLACE
OXFORDSHIRE CC,"CHILDRENS, YOUNG PEOPLE AND FAMILIES",FAMILY SOLUTIONS PLUS NON-STAFF � SOUTH,MATERIALS,20/06/2022,10084540631,23.00,ARGOS LTD
OXFORDSHIRE CC,"CHILDRENS, YOUNG PEOPLE AND FAMILIES",THAME E&A HOME,CATERING PROVISIONS,20/06/2022,10084540659,27.05,CO-OPERATIVE FOOD
OXFORDSHIRE CC,"CHILDRENS, YOUNG PEOPLE AND FAMILIES",THAME E&A HOME,CATERING PROVISIONS,20/06/2022,10084540671,4.00,SAINSBURYS SUPERMA
OXFORDSHIRE CC,"CHILDRENS, YOUNG PEOPLE AND FAMILIES",THAME E&A HOME,MATERIALS,20/06/2022,10084540677,27.10,HOBBYCRAFT
OXFORDSHIRE CC,"CHILDRENS, YOUNG PEOPLE AND FAMILIES",THAME E&A HOME,CATERING,20/06/2022,10084540679,5.95,GREGGS PLC
OXFORDSHIRE CC,"CHILDRENS, YOUNG PEOPLE AND FAMILIES",THAME E&A HOME,CATERING,20/06/2022,10084540681,21.10,AYLESBURY WIMPY
OXFORDSHIRE CC,"CHILDRENS, YOUNG PEOPLE AND FAMILIES",THAME E&A HOME,DRUGS AND MEDICAL SUPPLIES,20/06/2022,10084540685,3.99,"BOOTS,AYLESBURY"
OXFORDSHIRE CC,"CHILDRENS, YOUNG PEOPLE AND FAMILIES",THAME E&A HOME,CATERING,20/06/2022,10084540687,9.20,FRESKA
OXFORDSHIRE CC,SOCIAL AND COMMUNITY SERVICES,SCHOOLS FM CATERING AREA 4,MATERIALS,20/06/2022,10084540703,16.80,AMZNMKTPLACE
OXFORDSHIRE CC,"CHILDRENS, YOUNG PEOPLE AND FAMILIES","	LEAVING CARE CITY 1",ENTERTAINMENT EXPENSES,20/06/2022,10084540741,300.00,EAST LODGE FARM
OXFORDSHIRE CC,"CHILDRENS, YOUNG PEOPLE AND FAMILIES",MANAGEMENT RECHARGES,HIRED AND CONTRACTED SERVICES,20/06/2022,10084540759,15.00,MARLBOROUGH BRIDGE S/S
OXFORDSHIRE CC,"CHILDRENS, YOUNG PEOPLE AND FAMILIES",MANAGEMENT RECHARGES,HIRED AND CONTRACTED SERVICES,20/06/2022,10084540765,163.85,ASDA STORES
OXFORDSHIRE CC,"CHILDRENS, YOUNG PEOPLE AND FAMILIES",MANAGEMENT RECHARGES,HIRED AND CONTRACTED SERVICES,20/06/2022,10084540771,34.10,TESCO STORES 6331
OXFORDSHIRE CC,SOCIAL AND COMMUNITY SERVICES,CSS BICESTER,MATERIALS,20/06/2022,10084540785,9.98,AMZNMKTPLACE
OXFORDSHIRE CC,SOCIAL AND COMMUNITY SERVICES,PROPERTY CLEANING,CATERING PROVISIONS,20/06/2022,10084540793,8.01,MILK AND MORE (RECUR
OXFORDSHIRE CC,"CHILDRENS, YOUNG PEOPLE AND FAMILIES",EDT,HIRE OF ACCOMMODATION AND FACILITIES,20/06/2022,10084540851,224.36,TRAVELODGE
OXFORDSHIRE CC,"CHILDRENS, YOUNG PEOPLE AND FAMILIES",DISABILITIES TEAM S,OTHER TRANSPORT ARRANGEMENTS,20/06/2022,10084540859,199.75,OXFORD BUS TICKETS
OXFORDSHIRE CC,CORPORATE CORE,BUSINESS INTELLECTUAL PROPERTY CENTRE,MATERIALS,20/06/2022,10084541713,7.99,AMAZON PRIME 270JJ3CC4
OXFORDSHIRE CC,CORPORATE CORE,SCHOOLS FM CATERING AREA 4,CATERING PROVISIONS,20/06/2022,10084541727,39.00,SAINSBURYS.CO.UK
OXFORDSHIRE CC,CORPORATE CORE,SCHOOLS FM CATERING AREA 4,CATERING PROVISIONS,20/06/2022,10084541741,30.00,ICELAND FOODS
OXFORDSHIRE CC,"CHILDRENS, YOUNG PEOPLE AND FAMILIES",UASC 16&17,CATERING PROVISIONS,20/06/2022,10084542511,9.91,TESCO STORE 2994
OXFORDSHIRE CC,"CHILDRENS, YOUNG PEOPLE AND FAMILIES",STH EARLY HELP-DDCOT,CATERING PROVISIONS,20/06/2022,10084542515,25.00,TESCO STORE 2994
OXFORDSHIRE CC,"CHILDRENS, YOUNG PEOPLE AND FAMILIES",FSP NON-STAFFING - CENTRAL,HIRE OF ACCOMMODATION AND FACILITIES,20/06/2022,10084542519,512.00,OXFORD SPIRES
OXFORDSHIRE CC,"CHILDRENS, YOUNG PEOPLE AND FAMILIES",STH EARLY HELP-DDCOT,HIRE OF ACCOMMODATION AND FACILITIES,20/06/2022,10084542527,512.00,OXFORD SPIRES
OXFORDSHIRE CC,"CHILDRENS, YOUNG PEOPLE AND FAMILIES",UASC 16&17,CATERING PROVISIONS,20/06/2022,10084542529,6.34,TESCO STORE 2994
OXFORDSHIRE CC,SOCIAL AND COMMUNITY SERVICES,CSS WITNEY,MATERIALS,20/06/2022,10084542547,9.99,AMZNMKTPLACE AMAZON.CO
OXFORDSHIRE CC,SOCIAL AND COMMUNITY SERVICES,CSS WITNEY,MATERIALS,20/06/2022,10084542549,54.95,AMZNMKTPLACE AMAZON.CO
OXFORDSHIRE CC,SOCIAL AND COMMUNITY SERVICES,CSS WITNEY,MATERIALS,20/06/2022,10084542555,53.45,AMZNMKTPLACE
OXFORDSHIRE CC,SOCIAL AND COMMUNITY SERVICES,CSS WITNEY,MATERIALS,20/06/2022,10084542563,65.90,AMZNMKTPLACE
OXFORDSHIRE CC,CORPORATE CORE,STAFF ENGAGEMENT,MATERIALS,20/06/2022,10084542613,110.00,AFORDAWARDS.CO.UK
OXFORDSHIRE CC,ENVIRONMENT AND ECONOMY,"	FLEET OPERATIONS",CATERING PROVISIONS,20/06/2022,10084542627,14.24,MILK AND MORE (RECUR
OXFORDSHIRE CC,"CHILDRENS, YOUNG PEOPLE AND FAMILIES",EYNSHAM,CATERING,20/06/2022,10084540401,14.50,CO-OPERATIVE FOOD
OXFORDSHIRE CC,"CHILDRENS, YOUNG PEOPLE AND FAMILIES","	OSCB",MATERIALS,20/06/2022,10084540411,33.99,AMAZON.CO.UK 273770CN4
OXFORDSHIRE CC,"CHILDRENS, YOUNG PEOPLE AND FAMILIES","	OSCB",MATERIALS,20/06/2022,10084540415,2.99,AMZNMKTPLACE AMAZON.CO
OXFORDSHIRE CC,"CHILDRENS, YOUNG PEOPLE AND FAMILIES",CSS WANTAGE,CATERING PROVISIONS,20/06/2022,10084540467,4.40,TESCO STORES 2008
OXFORDSHIRE CC,"CHILDRENS, YOUNG PEOPLE AND FAMILIES","	LOOKED AFTER CITY 1",RESIDENTIAL ACTIVITIES,20/06/2022,10084540507,18.99,THE GYM LIMITED
OXFORDSHIRE CC,ENVIRONMENT AND ECONOMY,HARD FM,EQUIPMENT,20/06/2022,10084540515,22.80,W F SENATE
OXFORDSHIRE CC,ENVIRONMENT AND ECONOMY,HARD FM,EQUIPMENT,20/06/2022,10084540521,48.00,W F SENATE
OXFORDSHIRE CC,ENVIRONMENT AND ECONOMY,HARD FM,HARDWARE AND CROCKERY,20/06/2022,10084540529,16.90,HOMEBASE LTD 091
OXFORDSHIRE CC,ENVIRONMENT AND ECONOMY,HARD FM,IT SERVICES,20/06/2022,10084540537,83.96,SQ  FALCON SIGNS
OXFORDSHIRE CC,"CHILDRENS, YOUNG PEOPLE AND FAMILIES",FAMILY SOLUTIONS PLUS NON-STAFF - NORTH,MATERIALS,20/06/2022,10084540583,19.94,ARGOS LTD
OXFORDSHIRE CC,ENVIRONMENT AND ECONOMY,COUNTY LIBRARY,GENERAL MAINTENANCE,20/06/2022,10084540545,49.60,WOLSELEY UK
OXFORDSHIRE CC,"CHILDRENS, YOUNG PEOPLE AND FAMILIES","	LOOKED AFTER SOUTH",ENTERTAINMENT EXPENSES,20/06/2022,10084540597,57.98,AMZNMKTPLACE AMAZON.CO
OXFORDSHIRE CC,"CHILDRENS, YOUNG PEOPLE AND FAMILIES",CHILDREN IN CARE NON-STAFFING - SOUTH,MATERIALS,20/06/2022,10084540599,88.38,AMZNMKTPLACE
OXFORDSHIRE CC,"CHILDRENS, YOUNG PEOPLE AND FAMILIES","	LEAVING CARE CITY 1",OTHER EXPENSES,20/06/2022,10084540561,418.05,T K MAXX
OXFORDSHIRE CC,SOCIAL AND COMMUNITY SERVICES,"	MUSEUMS COLLECTIONS",CATERING PROVISIONS,20/06/2022,10084542327,3.50,MILK AND MORE (RECUR
OXFORDSHIRE CC,ENVIRONMENT AND ECONOMY,HARD FM,GENERAL MAINTENANCE,20/06/2022,10084543367,20.58,WOLSELEY UK
OXFORDSHIRE CC,"CHILDRENS, YOUNG PEOPLE AND FAMILIES",NTS UASC AGENCY,DOMESTIC AND CLEANING EQUIPMENT,20/06/2022,10084543393,4.00,POUNDLAND LTD 1366
OXFORDSHIRE CC,"CHILDRENS, YOUNG PEOPLE AND FAMILIES",THAME E&A HOME,RESIDENTIAL ACTIVITIES,20/06/2022,10084543377,4.60,EVERYONE ACTIVE-DOM
OXFORDSHIRE CC,ENVIRONMENT AND ECONOMY,"	NAT TRAILS GENERAL",PAYMENT TO GOVERNMENT DEPARTMENTS,20/06/2022,10084543381,3.00,LAND REGISTRY ECOM CCC
OXFORDSHIRE CC,"CHILDRENS, YOUNG PEOPLE AND FAMILIES",NTS UASC AGENCY,BIRTHDAY ALLOWANCE,20/06/2022,10084543401,15.29,B&M 515 - ABINGDON
OXFORDSHIRE CC,"CHILDRENS, YOUNG PEOPLE AND FAMILIES",NTS UASC AGENCY,BIRTHDAY ALLOWANCE,20/06/2022,10084543407,2.00,TESCO STORES 2008
OXFORDSHIRE CC,"CHILDRENS, YOUNG PEOPLE AND FAMILIES",NTS UASC AGENCY,DAY ACTIVITIES,20/06/2022,10084543413,3.05,HOLLAND & BARRETT
OXFORDSHIRE CC,"CHILDRENS, YOUNG PEOPLE AND FAMILIES","	LEAVING CARE SOUTH",OTHER TRANSPORT ARRANGEMENTS,20/06/2022,10084543423,33.00,WWW.THEKEY.CO.UK
OXFORDSHIRE CC,"CHILDRENS, YOUNG PEOPLE AND FAMILIES",UASC 16&17,TRANSPORT TO SCHOOL,20/06/2022,10084541597,59.25,OXFORDBUS.CO.UK
OXFORDSHIRE CC,"CHILDRENS, YOUNG PEOPLE AND FAMILIES",WITNEY,MATERIALS,20/06/2022,10084541537,16.00,WITNEY INSIDE SAINSBUR
OXFORDSHIRE CC,"CHILDRENS, YOUNG PEOPLE AND FAMILIES",WITNEY,CATERING PROVISIONS,20/06/2022,10084541541,77.42,SAINSBURYS S/MKTS
OXFORDSHIRE CC,"CHILDRENS, YOUNG PEOPLE AND FAMILIES",UASC 16&17,MATERIALS,20/06/2022,10084541601,18.99,SPORTSDIRECT 218
OXFORDSHIRE CC,"CHILDRENS, YOUNG PEOPLE AND FAMILIES",UASC 16&17,MATERIALS,20/06/2022,10084541601,20.48,SPORTSDIRECT 218
OXFORDSHIRE CC,"CHILDRENS, YOUNG PEOPLE AND FAMILIES",UASC 16&17,MATERIALS,20/06/2022,10084541601,29.99,SPORTSDIRECT 218
OXFORDSHIRE CC,"CHILDRENS, YOUNG PEOPLE AND FAMILIES",UASC 16&17,MATERIALS,20/06/2022,10084541601,.00,SPORTSDIRECT 218
OXFORDSHIRE CC,"CHILDRENS, YOUNG PEOPLE AND FAMILIES",FAMILY SOLUTIONS PLUS NON-STAFF � SOUTH,HIRE OF ACCOMMODATION AND FACILITIES,20/06/2022,10084541545,"1,174.82",TRAVELODGE
OXFORDSHIRE CC,"CHILDRENS, YOUNG PEOPLE AND FAMILIES",WITNEY,MATERIALS,20/06/2022,10084541549,55.00,ARGOS LTD
OXFORDSHIRE CC,"CHILDRENS, YOUNG PEOPLE AND FAMILIES",FAMILY SOLUTIONS PLUS NON-STAFF - NORTH,HIRE OF ACCOMMODATION AND FACILITIES,20/06/2022,10084541575,733.00,PREMIER INN
OXFORDSHIRE CC,"CHILDRENS, YOUNG PEOPLE AND FAMILIES",FAMILY SOLUTIONS PLUS NON-STAFF - NORTH,OTHER TRANSPORT ARRANGEMENTS,20/06/2022,10084541605,72.00,STAGECOACH SERVICE
OXFORDSHIRE CC,"CHILDRENS, YOUNG PEOPLE AND FAMILIES",UASC 16&17,CLOTHING AND UNIFORMS,20/06/2022,10084541583,90.00,J D SPORTS
OXFORDSHIRE CC,"CHILDRENS, YOUNG PEOPLE AND FAMILIES",UASC 16&17,CLOTHING AND UNIFORMS,20/06/2022,10084541589,10.00,J D SPORTS
OXFORDSHIRE CC,ENVIRONMENT AND ECONOMY,MUSEUM CAFE,EQUIPMENT,20/06/2022,10084542421,679.00,AO RETAIL LIMITED
OXFORDSHIRE CC,"CHILDRENS, YOUNG PEOPLE AND FAMILIES",CSS - DIDCOT,CATERING EQUIPMENT,20/06/2022,10084540903,3.00,B&M 514 - DICOT
OXFORDSHIRE CC,"CHILDRENS, YOUNG PEOPLE AND FAMILIES",CSS - DIDCOT,CATERING PROVISIONS,20/06/2022,10084540909,9.30,TESCO STORE 2413
OXFORDSHIRE CC,"CHILDRENS, YOUNG PEOPLE AND FAMILIES",THAME E&A HOME,CATERING PROVISIONS,20/06/2022,10084540919,156.06,TESCO STORES 2038
OXFORDSHIRE CC,"CHILDRENS, YOUNG PEOPLE AND FAMILIES",THAME E&A HOME,MATERIALS,20/06/2022,10084540925,9.99,AMZNMKTPLACE
OXFORDSHIRE CC,"CHILDRENS, YOUNG PEOPLE AND FAMILIES",FAMILY SOLUTIONS PLUS NON-STAFF - NORTH,PAYMENT TO GOVERNMENT DEPARTMENTS,20/06/2022,10084541609,14.00,GEN REGISTER OFFICE
OXFORDSHIRE CC,"CHILDRENS, YOUNG PEOPLE AND FAMILIES","	LOOKED AFTER NORTH",OTHER TRANSPORT ARRANGEMENTS,20/06/2022,10084541615,3.10,DERBION CENTRE
OXFORDSHIRE CC,"CHILDRENS, YOUNG PEOPLE AND FAMILIES",THAME E&A HOME,HARDWARE AND CROCKERY,20/06/2022,10084541627,65.98,HADDENHAM GARDEN CEN L
OXFORDSHIRE CC,SOCIAL AND COMMUNITY SERVICES,CHILDREN IN CARE NON-STAFFING - NORTH,CATERING,20/06/2022,10084542429,7.20,MCDONALDS
OXFORDSHIRE CC,"CHILDRENS, YOUNG PEOPLE AND FAMILIES",FSP NON-STAFFING - CENTRAL,OTHER TRANSPORT ARRANGEMENTS,20/06/2022,10084542503,35.00,DIRECT CARS
OXFORDSHIRE CC,"CHILDRENS, YOUNG PEOPLE AND FAMILIES",FSP NON-STAFFING - CENTRAL,OTHER TRANSPORT ARRANGEMENTS,20/06/2022,10084542507,100.00,DIRECT CARS
OXFORDSHIRE CC,SOCIAL AND COMMUNITY SERVICES,LIBRARY PROJECTS,MATERIALS,20/06/2022,10084543279,44.49,AMZNMKTPLACE AMAZON.CO
OXFORDSHIRE CC,CORPORATE CORE,SCHOOLS FM CATERING AREA 1,CATERING PROVISIONS,20/06/2022,10084543287,3.75,TESCO-STORES 2305
OXFORDSHIRE CC,"CHILDRENS, YOUNG PEOPLE AND FAMILIES",DIDCOT MOVE-ON HOME,CATERING PROVISIONS,20/06/2022,10084543293,41.40,TESCO STORE 2413
OXFORDSHIRE CC,ENVIRONMENT AND ECONOMY,LIB ICT SUPPRT&MAINT,EQUIPMENT,20/06/2022,10084541411,-142.51,AMZ AMAZON.CO.UK
OXFORDSHIRE CC,ENVIRONMENT AND ECONOMY,LIB ICT SUPPRT&MAINT,EQUIPMENT,20/06/2022,10084541415,194.00,AMZNMKTPLACE
OXFORDSHIRE CC,"CHILDRENS, YOUNG PEOPLE AND FAMILIES",FIELDWORK UASC,OTHER TRANSPORT ARRANGEMENTS,20/06/2022,10084541457,4.20,OXFORDBUS.CO.UK
OXFORDSHIRE CC,"CHILDRENS, YOUNG PEOPLE AND FAMILIES","	RIVERSIDE CENTRE",MATERIALS,20/06/2022,10084541461,7.99,HOME BARGAINS
OXFORDSHIRE CC,"CHILDRENS, YOUNG PEOPLE AND FAMILIES","	RIVERSIDE CENTRE",HARDWARE AND CROCKERY,20/06/2022,10084541465,14.70,WICKES OXFORD
OXFORDSHIRE CC,CORPORATE CORE,OPERATIONS,EQUIPMENT,20/06/2022,10084542241,123.98,AMZNMKTPLACE
OXFORDSHIRE CC,CORPORATE CORE,OPERATIONS,MATERIALS,20/06/2022,10084542231,8.38,AMZNMKTPLACE
OXFORDSHIRE CC,CORPORATE CORE,OPERATIONS,MATERIALS,20/06/2022,10084542237,4.29,AMZNMKTPLACE AMAZON.CO
OXFORDSHIRE CC,CORPORATE CORE,OPERATIONS,EQUIPMENT,20/06/2022,10084542249,123.98,AMZNMKTPLACE
OXFORDSHIRE CC,CORPORATE CORE,OPERATIONS,MATERIALS,20/06/2022,10084542253,8.72,AMZNMKTPLACE AMAZON.CO
OXFORDSHIRE CC,CORPORATE CORE,OPERATIONS,EQUIPMENT,20/06/2022,10084542259,123.98,AMZNMKTPLACE
OXFORDSHIRE CC,"CHILDRENS, YOUNG PEOPLE AND FAMILIES",DIDCOT MOVE-ON HOME,CLEANING MATERIALS,20/06/2022,10084543297,7.10,TESCO STORE 2413
OXFORDSHIRE CC,"CHILDRENS, YOUNG PEOPLE AND FAMILIES",KINGFISHER,CATERING,20/06/2022,10084543323,5.89,MCDONALDS
OXFORDSHIRE CC,CORPORATE CORE,CATERING MANAGEMENT SOFT FM,POSTAGE AND DELIVERY,20/06/2022,10084543329,2.35,POST OFFICE COUNTER
OXFORDSHIRE CC,"CHILDRENS, YOUNG PEOPLE AND FAMILIES","	LEAVING CARE NORTH",MATERIALS,20/06/2022,10084543341,40.00,JD SPORTS INTERNET
OXFORDSHIRE CC,"CHILDRENS, YOUNG PEOPLE AND FAMILIES",UASC 16&17,CATERING,20/06/2022,10084543351,17.59,CAPRINOS PIZZA NORTHWE
OXFORDSHIRE CC,"CHILDRENS, YOUNG PEOPLE AND FAMILIES",UASC 16&17,CATERING,20/06/2022,10084543355,17.49,CAPRINOS PIZZA NORTHWE
OXFORDSHIRE CC,ENVIRONMENT AND ECONOMY,HARD FM,VEHICLE FUEL,20/06/2022,10084543361,121.38,BELLINGERS S.STN
OXFORDSHIRE CC,"CHILDRENS, YOUNG PEOPLE AND FAMILIES",DIDCOT MOVE-ON HOME,"SUPPLIES, STATIONERY AND MATERIALS",20/06/2022,10084541473,6.00,SAINSBURYS S/MKTS
OXFORDSHIRE CC,"CHILDRENS, YOUNG PEOPLE AND FAMILIES",DIDCOT MOVE-ON HOME,CATERING,20/06/2022,10084541479,49.40,SUNRISE
OXFORDSHIRE CC,"CHILDRENS, YOUNG PEOPLE AND FAMILIES",DIDCOT MOVE-ON HOME,DOMESTIC AND CLEANING EQUIPMENT,20/06/2022,10084541485,8.50,SAINSBURYS S/MKTS
OXFORDSHIRE CC,"CHILDRENS, YOUNG PEOPLE AND FAMILIES",DIDCOT MOVE-ON HOME,CATERING PROVISIONS,20/06/2022,10084541489,1.91,SAINSBURYS S/MKTS
OXFORDSHIRE CC,"CHILDRENS, YOUNG PEOPLE AND FAMILIES",DIDCOT MOVE-ON HOME,"SUPPLIES, STATIONERY AND MATERIALS",20/06/2022,10084541497,3.50,SAINSBURYS S/MKTS
OXFORDSHIRE CC,"CHILDRENS, YOUNG PEOPLE AND FAMILIES",KINGFISHER,CATERING,20/06/2022,10084541513,8.47,MCDONALDS
OXFORDSHIRE CC,CORPORATE CORE,OPERATIONS,EQUIPMENT,20/06/2022,10084542265,123.98,AMZNMKTPLACE
OXFORDSHIRE CC,CORPORATE CORE,OPERATIONS,EQUIPMENT,20/06/2022,10084542271,61.99,AMZNMKTPLACE
OXFORDSHIRE CC,CORPORATE CORE,OPERATIONS,EQUIPMENT,20/06/2022,10084542279,123.98,AMZNMKTPLACE
OXFORDSHIRE CC,"CHILDRENS, YOUNG PEOPLE AND FAMILIES",FAMILY SOLUTIONS PLUS NON-STAFF - NORTH,MATERIALS,20/06/2022,10084542007,25.00,JD SPORTS INTERNET
OXFORDSHIRE CC,"CHILDRENS, YOUNG PEOPLE AND FAMILIES",DIDCOT MOVE-ON HOME,CATERING PROVISIONS,20/06/2022,10084542025,34.49,SAINSBURYS S/MKTS
OXFORDSHIRE CC,"CHILDRENS, YOUNG PEOPLE AND FAMILIES",DIDCOT MOVE-ON HOME,CATERING PROVISIONS,20/06/2022,10084542031,37.69,TESCO STORE 2413
OXFORDSHIRE CC,"CHILDRENS, YOUNG PEOPLE AND FAMILIES",EYNSHAM,CATERING PROVISIONS,20/06/2022,10084543007,7.50,MAYFIELDEGGS
OXFORDSHIRE CC,"CHILDRENS, YOUNG PEOPLE AND FAMILIES",EYNSHAM,CATERING PROVISIONS,20/06/2022,10084542995,188.54,TESCO STORES 2008
OXFORDSHIRE CC,"CHILDRENS, YOUNG PEOPLE AND FAMILIES","	LOOKED AFTER NORTH",CATERING PROVISIONS,20/06/2022,10084543057,6.00,SAINSBURYS S/MKTS
OXFORDSHIRE CC,"CHILDRENS, YOUNG PEOPLE AND FAMILIES",EYNSHAM,CATERING PROVISIONS,20/06/2022,10084543071,27.95,SAINSBURYS S/MKTS
OXFORDSHIRE CC,"CHILDRENS, YOUNG PEOPLE AND FAMILIES",CHILDREN IN CARE NON-STAFFING - SOUTH,MATERIALS,20/06/2022,10084543087,8.99,AMAZON.CO.UK 274NG6FX4
OXFORDSHIRE CC,"CHILDRENS, YOUNG PEOPLE AND FAMILIES",UASC 16&17,RESIDENTIAL ACTIVITIES,20/06/2022,10084541301,50.99,SPORTSDIRECT 218
OXFORDSHIRE CC,"CHILDRENS, YOUNG PEOPLE AND FAMILIES",PAUSE PROGRAMME,POSTAGE AND DELIVERY,20/06/2022,10084541275,5.55,POST OFFICE COUNTER
OXFORDSHIRE CC,"CHILDRENS, YOUNG PEOPLE AND FAMILIES","	OCCG GRANT",BIRTHDAY ALLOWANCE,20/06/2022,10084541305,3.25,SAINSBURYS S/MKTS
OXFORDSHIRE CC,"CHILDRENS, YOUNG PEOPLE AND FAMILIES","	OCCG GRANT",BIRTHDAY ALLOWANCE,20/06/2022,10084541309,10.00,SPORTSDIRECT 218
OXFORDSHIRE CC,"CHILDRENS, YOUNG PEOPLE AND FAMILIES",UASC 16&17,OTHER EXPENSES,20/06/2022,10084541313,3.00,OXFORD BUS COMPANY
OXFORDSHIRE CC,"CHILDRENS, YOUNG PEOPLE AND FAMILIES",PAUSE PROGRAMME,CATERING PROVISIONS,20/06/2022,10084541279,17.00,TESCO STORE 2994
OXFORDSHIRE CC,"CHILDRENS, YOUNG PEOPLE AND FAMILIES",HOUSE PROJECT,CATERING PROVISIONS,20/06/2022,10084541285,5.97,GLOBE NEWS
OXFORDSHIRE CC,"CHILDRENS, YOUNG PEOPLE AND FAMILIES",HOUSE PROJECT,OTHER TRANSPORT ARRANGEMENTS,20/06/2022,10084541289,18.00,WESTGATE OXFORD CAR PA
OXFORDSHIRE CC,CORPORATE CORE,"MARKETING, COMMUNICATIONS & ENGAGEMENT","BOOKS, DVDS AND CDS",20/06/2022,10084542125,16.06,GETAUDIOGRAM.COM
OXFORDSHIRE CC,CORPORATE CORE,"MARKETING, COMMUNICATIONS & ENGAGEMENT",MATERIALS,20/06/2022,10084542131,24.98,LINKEDIN-707 1302606
OXFORDSHIRE CC,SOCIAL AND COMMUNITY SERVICES,BICESTER LIBRARY,OTHER TRANSPORT ARRANGEMENTS,20/06/2022,10084543095,130.30,BICESTER POST OFFICE
OXFORDSHIRE CC,"CHILDRENS, YOUNG PEOPLE AND FAMILIES","	DIRECTOR'S OFFICE",PAYMENTS TO VOLUNTARY BODIES,20/06/2022,10084543121,100.00,JUSTGIVING
OXFORDSHIRE CC,"CHILDRENS, YOUNG PEOPLE AND FAMILIES",EYNSHAM,MATERIALS,20/06/2022,10084543187,189.99,AMZNMKTPLACE AMAZON.CO
OXFORDSHIRE CC,"CHILDRENS, YOUNG PEOPLE AND FAMILIES",EYNSHAM,MATERIALS,20/06/2022,10084543195,5.98,AMZNMKTPLACE
OXFORDSHIRE CC,"CHILDRENS, YOUNG PEOPLE AND FAMILIES",VULNERABLE LEARNERS,EDUCATIONAL AND VOCATIONAL TRAINING ,20/06/2022,10084541355,78.00,EARLY EXCELLENCE LTD
OXFORDSHIRE CC,"CHILDRENS, YOUNG PEOPLE AND FAMILIES","	LOOKED AFTER NORTH",CATERING,20/06/2022,10084541337,8.50,MCDONALDS
OXFORDSHIRE CC,"CHILDRENS, YOUNG PEOPLE AND FAMILIES",CHILDREN IN CARE NON-STAFFING - NORTH,PAYMENT TO GOVERNMENT DEPARTMENTS,20/06/2022,10084541341,76.00,GEN REGISTER OFFICE
OXFORDSHIRE CC,"CHILDRENS, YOUNG PEOPLE AND FAMILIES",CHILDREN IN CARE NON-STAFFING - NORTH,PAYMENT TO GOVERNMENT DEPARTMENTS,20/06/2022,10084541343,-31.50,GEN REGISTER OFFICE
OXFORDSHIRE CC,"CHILDRENS, YOUNG PEOPLE AND FAMILIES",CHILDREN IN CARE NON-STAFFING - NORTH,PAYMENT TO GOVERNMENT DEPARTMENTS,20/06/2022,10084541345,-31.50,GEN REGISTER OFFICE
OXFORDSHIRE CC,"CHILDRENS, YOUNG PEOPLE AND FAMILIES",0-5 STDS & PROGRESS,MATERIALS,20/06/2022,10084541351,11.89,AMZNMKTPLACE AMAZON.CO
OXFORDSHIRE CC,"CHILDRENS, YOUNG PEOPLE AND FAMILIES",VULNERABLE LEARNERS,EDUCATIONAL AND VOCATIONAL TRAINING ,20/06/2022,10084541361,78.00,EARLY EXCELLENCE LTD
OXFORDSHIRE CC,"CHILDRENS, YOUNG PEOPLE AND FAMILIES",40 THE MOORS,CATERING,20/06/2022,10084541107,34.00,TIFFINS
OXFORDSHIRE CC,"CHILDRENS, YOUNG PEOPLE AND FAMILIES",FAMILY SOLUTIONS PLUS NON-STAFF � SOUTH,OTHER TRANSPORT ARRANGEMENTS,20/06/2022,10084541889,183.30,ARRIVA UK BUS
OXFORDSHIRE CC,"CHILDRENS, YOUNG PEOPLE AND FAMILIES",FAMILY SOLUTIONS PLUS NON-STAFF � SOUTH,OTHER TRANSPORT ARRANGEMENTS,20/06/2022,10084541893,167.00,STAGECOACH SERVICE
OXFORDSHIRE CC,"CHILDRENS, YOUNG PEOPLE AND FAMILIES","	LEAVING CARE NORTH",CATERING,20/06/2022,10084541901,13.90,BICESTER STARBUCK
OXFORDSHIRE CC,"CHILDRENS, YOUNG PEOPLE AND FAMILIES","	SUPERVISED CONTACT",PAYMENTS TO TRANSPORT OPERATORS,20/06/2022,10084541911,68.16,THETRAINLINE.COM
OXFORDSHIRE CC,"CHILDRENS, YOUNG PEOPLE AND FAMILIES","	SUPERVISED CONTACT",MATERIALS,20/06/2022,10084541915,-304.99,ARGOS LTD
OXFORDSHIRE CC,"CHILDRENS, YOUNG PEOPLE AND FAMILIES",CHILDREN IN CARE NON-STAFFING - NORTH,HIRE OF ACCOMMODATION AND FACILITIES,20/06/2022,10084541921,58.32,HOTEL AT BOOKING.COM
OXFORDSHIRE CC,"CHILDRENS, YOUNG PEOPLE AND FAMILIES",CHILDREN IN CARE NON-STAFFING - NORTH,CATERING PROVISIONS,20/06/2022,10084541927,11.20,CO-OPERATIVE FOOD
OXFORDSHIRE CC,ENVIRONMENT AND ECONOMY,"	COUNTY PRINT FINSHRS",SUBSCRIPTIONS,20/06/2022,10084541943,396.50,HIGHSTREETVOUCHERS
OXFORDSHIRE CC,SOCIAL AND COMMUNITY SERVICES,ADULTS AT RISK,HIRE OF ACCOMMODATION AND FACILITIES,20/06/2022,10084542881,320.23,TRAVELODGE
OXFORDSHIRE CC,SOCIAL AND COMMUNITY SERVICES,CHILDREN IN CARE NON-STAFFING - NORTH,MATERIALS,20/06/2022,10084541171,44.99,ARGOS(INSIDE SAINSBURY
OXFORDSHIRE CC,SOCIAL AND COMMUNITY SERVICES,CHILDREN IN CARE NON-STAFFING - NORTH,SUBSCRIPTIONS,20/06/2022,10084541181,35.19,TENPIN LTD - 150
OXFORDSHIRE CC,SOCIAL AND COMMUNITY SERVICES,CHILDREN IN CARE NON-STAFFING - NORTH,MATERIALS,20/06/2022,10084541185,12.49,ARGOS DIDCOT
OXFORDSHIRE CC,"CHILDRENS, YOUNG PEOPLE AND FAMILIES","	LEAVING CARE NORTH",PAYMENTS TO TRANSPORT OPERATORS,20/06/2022,10084541193,18.69,TRAINLINE.COM
OXFORDSHIRE CC,"CHILDRENS, YOUNG PEOPLE AND FAMILIES","	LEAVING CARE NORTH",OTHER TRANSPORT ARRANGEMENTS,20/06/2022,10084541199,2.50,OXFORD BUS COMPANY
OXFORDSHIRE CC,SOCIAL AND COMMUNITY SERVICES,SCHOOLS FM CATERING AREA 2,MATERIALS,20/06/2022,10084541957,6.99,AMZNMKTPLACE AMAZON.CO
OXFORDSHIRE CC,SOCIAL AND COMMUNITY SERVICES,SCHOOLS FM CATERING AREA 2,CATERING PROVISIONS,20/06/2022,10084541953,19.30,SAINSBURYS S/MKTS
OXFORDSHIRE CC,SOCIAL AND COMMUNITY SERVICES,SCHOOLS FM CATERING AREA 2,MATERIALS,20/06/2022,10084541961,6.99,AMZNMKTPLACE AMAZON.CO
OXFORDSHIRE CC,"CHILDRENS, YOUNG PEOPLE AND FAMILIES",FSP NON-STAFFING - CENTRAL,CLOTHING AND UNIFORMS,20/06/2022,10084541983,59.98,SPORTSDIRECT.COM
OXFORDSHIRE CC,"CHILDRENS, YOUNG PEOPLE AND FAMILIES",FSP NON-STAFFING - CENTRAL,HIRE OF ACCOMMODATION AND FACILITIES,20/06/2022,10084541985,363.00,PREMIER INN
OXFORDSHIRE CC,"CHILDRENS, YOUNG PEOPLE AND FAMILIES",PAUSE PROGRAMME,CATERING PROVISIONS,20/06/2022,10084541991,7.00,TESCO STORE 2413
OXFORDSHIRE CC,SOCIAL AND COMMUNITY SERVICES,OLDER ADULTS MH TEAM,HIRE OF ACCOMMODATION AND FACILITIES,20/06/2022,10084542939,114.00,PREMIER INN
OXFORDSHIRE CC,"CHILDRENS, YOUNG PEOPLE AND FAMILIES",BULLINGDON PRISON,MATERIALS,20/06/2022,10084542971,-5.93,AMZ BARGAIN GENIE UK
OXFORDSHIRE CC,SOCIAL AND COMMUNITY SERVICES,ADULTS AT RISK,HIRE OF ACCOMMODATION AND FACILITIES,20/06/2022,10084542979,162.14,TRAVELODGE
OXFORDSHIRE CC,"CHILDRENS, YOUNG PEOPLE AND FAMILIES","	LEAVING CARE SOUTH",OTHER EXPENSES,20/06/2022,10084542989,179.00,LIDL GB  BICESTER
OXFORDSHIRE CC,SOCIAL AND COMMUNITY SERVICES,CHILDREN IN CARE NON-STAFFING - NORTH,ENTERTAINMENT EXPENSES,20/06/2022,10084541231,12.77,BTPROD
OXFORDSHIRE CC,"CHILDRENS, YOUNG PEOPLE AND FAMILIES","	LEAVING CARE NORTH",LAUNDRY AND DRY CLEANING,20/06/2022,10084541207,187.20,BMA VARSITY LTD
OXFORDSHIRE CC,"CHILDRENS, YOUNG PEOPLE AND FAMILIES","	LEAVING CARE NORTH",CATERING PROVISIONS,20/06/2022,10084541211,2.70,LIDL GB OXFORD
OXFORDSHIRE CC,SOCIAL AND COMMUNITY SERVICES,CHILDREN IN CARE NON-STAFFING - NORTH,PAYMENTS TO TRANSPORT OPERATORS,20/06/2022,10084541239,20.70,CHILTERN RALIWAYS
OXFORDSHIRE CC,SOCIAL AND COMMUNITY SERVICES,CHILDREN IN CARE NON-STAFFING - NORTH,PAYMENTS TO TRANSPORT OPERATORS,20/06/2022,10084541245,20.70,CHILTERN RALIWAYS
OXFORDSHIRE CC,"CHILDRENS, YOUNG PEOPLE AND FAMILIES","	LOOKED AFTER CITY 2",VEHICLE FUEL,20/06/2022,10084541253,45.60,SAINSBURYS SUPERMA
OXFORDSHIRE CC,"CHILDRENS, YOUNG PEOPLE AND FAMILIES","	LEAVING CARE NORTH",CATERING PROVISIONS,20/06/2022,10084541215,9.55,SAINSBURYS S/MKTS
OXFORDSHIRE CC,"CHILDRENS, YOUNG PEOPLE AND FAMILIES",THAME E&A HOME,CLOTHING AND UNIFORMS,20/06/2022,10084540933,36.49,NEXT DIRECTORY
OXFORDSHIRE CC,ENVIRONMENT AND ECONOMY,WASTE REDUCTION GEN,"PUBLICITY, PROMOTIONS AND ADVERTISEMENT",20/06/2022,10084540941,35.00,FACEBK FA4XPFP8M2
OXFORDSHIRE CC,ENVIRONMENT AND ECONOMY,WASTE REDUCTION GEN,HARDWARE AND CROCKERY,20/06/2022,10084540943,20.99,WWW.SCREWFIX.COM
OXFORDSHIRE CC,SOCIAL AND COMMUNITY SERVICES,CSS - OXFORD,CATERING PROVISIONS,20/06/2022,10084540951,10.99,ALDI STORES 775-142
OXFORDSHIRE CC,"CHILDRENS, YOUNG PEOPLE AND FAMILIES",KINGFISHER,ENTERTAINMENT EXPENSES,20/06/2022,10084541009,124.00,PAYPAL  MERLINENTER
OXFORDSHIRE CC,"CHILDRENS, YOUNG PEOPLE AND FAMILIES",KINGFISHER,CATERING PROVISIONS,20/06/2022,10084541013,100.00,TESCO GIFT CARD
OXFORDSHIRE CC,"CHILDRENS, YOUNG PEOPLE AND FAMILIES",KINGFISHER,MATERIALS,20/06/2022,10084541017,92.95,ARGOS LTD
OXFORDSHIRE CC,"CHILDRENS, YOUNG PEOPLE AND FAMILIES","	LEAVING CARE CITY 2",OTHER TRANSPORT ARRANGEMENTS,20/06/2022,10084541759,4.30,STGCOACH/CTYLINK
OXFORDSHIRE CC,"CHILDRENS, YOUNG PEOPLE AND FAMILIES","	LEAVING CARE SOUTH",CATERING,20/06/2022,10084541749,14.75,OWENS CAFE
OXFORDSHIRE CC,"CHILDRENS, YOUNG PEOPLE AND FAMILIES",WITNEY,CATERING PROVISIONS,20/06/2022,10084541779,21.89,SAINSBURY'S S/MKT
OXFORDSHIRE CC,"CHILDRENS, YOUNG PEOPLE AND FAMILIES","	LEAVING CARE SOUTH",TELEPHONE - EQUIPMENT,20/06/2022,10084541791,108.34,VODAFONE LTD
OXFORDSHIRE CC,"CHILDRENS, YOUNG PEOPLE AND FAMILIES",HOUSE PROJECT,MATERIALS,20/06/2022,10084541809,11.90,ROBERT DYAS HOLDNG LTD
OXFORDSHIRE CC,"CHILDRENS, YOUNG PEOPLE AND FAMILIES",HOUSE PROJECT,OTHER TRANSPORT ARRANGEMENTS,20/06/2022,10084541813,4.00,WESTGATE OXFORD CAR PA
OXFORDSHIRE CC,"CHILDRENS, YOUNG PEOPLE AND FAMILIES","	MALTFIELD HOUSE",CATERING PROVISIONS,20/06/2022,10084542663,28.85,SAINSBURYS S/MKTS
OXFORDSHIRE CC,"CHILDRENS, YOUNG PEOPLE AND FAMILIES",40 THE MOORS,CATERING PROVISIONS,20/06/2022,10084542721,12.61,ALDI 77 775
OXFORDSHIRE CC,"CHILDRENS, YOUNG PEOPLE AND FAMILIES",40 THE MOORS,VEHICLE FUEL,20/06/2022,10084542725,16.00,BLENHEIM SERVICE STATI
OXFORDSHIRE CC,"CHILDRENS, YOUNG PEOPLE AND FAMILIES",40 THE MOORS,CATERING PROVISIONS,20/06/2022,10084542745,82.10,TESCO STORE 2994
OXFORDSHIRE CC,"CHILDRENS, YOUNG PEOPLE AND FAMILIES",40 THE MOORS,CATERING PROVISIONS,20/06/2022,10084542753,12.40,SAINSBURY'S S/MKT
OXFORDSHIRE CC,"CHILDRENS, YOUNG PEOPLE AND FAMILIES",40 THE MOORS,CATERING PROVISIONS,20/06/2022,10084542757,283.47,SAINSBURYS.CO.UK
OXFORDSHIRE CC,"CHILDRENS, YOUNG PEOPLE AND FAMILIES",KINGFISHER,CLOTHING AND UNIFORMS,20/06/2022,10084541023,179.95,PAYPAL  NIKE COM
OXFORDSHIRE CC,"CHILDRENS, YOUNG PEOPLE AND FAMILIES",FSP NON-STAFFING - CENTRAL,PAYMENTS TO TRANSPORT OPERATORS,20/06/2022,10084541065,57.80,WWW.GWR.COM
OXFORDSHIRE CC,"CHILDRENS, YOUNG PEOPLE AND FAMILIES",FSP NON-STAFFING - CENTRAL,PAYMENTS TO TRANSPORT OPERATORS,20/06/2022,10084541069,57.80,WWW.GWR.COM
OXFORDSHIRE CC,"CHILDRENS, YOUNG PEOPLE AND FAMILIES",40 THE MOORS,POSTAGE AND DELIVERY,20/06/2022,10084541089,20.00,POST OFFICE COUNTER
OXFORDSHIRE CC,"CHILDRENS, YOUNG PEOPLE AND FAMILIES",HOUSE PROJECT,CATERING PROVISIONS,20/06/2022,10084541815,3.40,PPOINT_ SUNSHINE CORPO
OXFORDSHIRE CC,"CHILDRENS, YOUNG PEOPLE AND FAMILIES",DIDCOT MOVE-ON HOME,CATERING PROVISIONS,20/06/2022,10084541879,19.35,ALDI 99 775
OXFORDSHIRE CC,"CHILDRENS, YOUNG PEOPLE AND FAMILIES",DIDCOT MOVE-ON HOME,CATERING PROVISIONS,20/06/2022,10084541885,34.99,ALDI 99 775
OXFORDSHIRE CC,"CHILDRENS, YOUNG PEOPLE AND FAMILIES",40 THE MOORS,CLOTHING AND UNIFORMS,20/06/2022,10084542761,56.00,PRIMARK 440
OXFORDSHIRE CC,"CHILDRENS, YOUNG PEOPLE AND FAMILIES",40 THE MOORS,CATERING PROVISIONS,20/06/2022,10084542765,-4.60,SAINSBURYS.CO.UK
OXFORDSHIRE CC,"CHILDRENS, YOUNG PEOPLE AND FAMILIES",40 THE MOORS,MATERIALS,20/06/2022,10084542837,184.95,ARGOS LTD
OXFORDSHIRE CC,"CHILDRENS, YOUNG PEOPLE AND FAMILIES",40 THE MOORS,TELEPHONE - EQUIPMENT,20/06/2022,10084542841,5.33,PAYPAL  FONEFUNSHOP ON
OXFORDSHIRE CC,"CHILDRENS, YOUNG PEOPLE AND FAMILIES",40 THE MOORS,ENTERTAINMENT EXPENSES,20/06/2022,10084542847,18.00,ODEON CINEMAS
OXFORDSHIRE CC,"CHILDRENS, YOUNG PEOPLE AND FAMILIES",40 THE MOORS,CATERING,20/06/2022,10084541093,17.40,POSH FISH
OXFORDSHIRE CC,"CHILDRENS, YOUNG PEOPLE AND FAMILIES",40 THE MOORS,CATERING PROVISIONS,20/06/2022,10084541097,15.77,LEMON AND GARDEN
OXFORDSHIRE CC,"CHILDRENS, YOUNG PEOPLE AND FAMILIES",40 THE MOORS,CATERING PROVISIONS,20/06/2022,10084541099,7.45,CO-OPERATIVE FOOD
OXFORDSHIRE CC,"CHILDRENS, YOUNG PEOPLE AND FAMILIES",40 THE MOORS,CATERING PROVISIONS,20/06/2022,10084541103,7.60,TESCO STORE 2788
OXFORDSHIRE CC,"CHILDRENS, YOUNG PEOPLE AND FAMILIES",HOUSE PROJECT,CATERING PROVISIONS,17/06/2022,8308711818,11.70,SAINSBURYS S/MKTS
OXFORDSHIRE CC,"CHILDRENS, YOUNG PEOPLE AND FAMILIES",CHILDREN IN CARE NON-STAFFING - NORTH,OTHER TRANSPORT ARRANGEMENTS,17/06/2022,8308711824,7.10,M6 TOLL
OXFORDSHIRE CC,"CHILDRENS, YOUNG PEOPLE AND FAMILIES",CHILDREN IN CARE NON-STAFFING - NORTH,HIRE OF ACCOMMODATION AND FACILITIES,17/06/2022,8308711826,65.55,BARRY ROBINSON LEI
OXFORDSHIRE CC,ENVIRONMENT AND ECONOMY,MAJOR INFRASTRUCTURE DELIVERY,PAYMENT TO GOVERNMENT DEPARTMENTS,17/06/2022,8308711830,77.25,DIDCOT TOWN CNL
OXFORDSHIRE CC,"CHILDRENS, YOUNG PEOPLE AND FAMILIES",FAMILY SOLUTIONS PLUS NON-STAFF - NORTH,CLOTHING AND UNIFORMS,17/06/2022,8308711884,25.00,SPORTSDIRECT.COM
OXFORDSHIRE CC,"CHILDRENS, YOUNG PEOPLE AND FAMILIES",FAMILY SOLUTIONS PLUS NON-STAFF - NORTH,"SUPPLIES, STATIONERY AND MATERIALS",17/06/2022,8308711886,10.00,VOUCHER EXPRESS
OXFORDSHIRE CC,SOCIAL AND COMMUNITY SERVICES,CSS WITNEY,MATERIALS,17/06/2022,8308712118,108.81,AMZNMKTPLACE
OXFORDSHIRE CC,SOCIAL AND COMMUNITY SERVICES,CSS WITNEY,MATERIALS,17/06/2022,8308712122,65.97,AMZNMKTPLACE
OXFORDSHIRE CC,SOCIAL AND COMMUNITY SERVICES,CSS WITNEY,MATERIALS,17/06/2022,8308712126,76.93,AMZNMKTPLACE
OXFORDSHIRE CC,SOCIAL AND COMMUNITY SERVICES,CSS WITNEY,MATERIALS,17/06/2022,8308712128,8.99,AMZNMKTPLACE
OXFORDSHIRE CC,SOCIAL AND COMMUNITY SERVICES,CSS WITNEY,MATERIALS,17/06/2022,8308712132,45.60,AMZNMKTPLACE
OXFORDSHIRE CC,SOCIAL AND COMMUNITY SERVICES,CSS WITNEY,MATERIALS,17/06/2022,8308712136,10.39,AMZNMKTPLACE
OXFORDSHIRE CC,SOCIAL AND COMMUNITY SERVICES,CSS WITNEY,MATERIALS,17/06/2022,8308712140,12.99,AMZNMKTPLACE
OXFORDSHIRE CC,"CHILDRENS, YOUNG PEOPLE AND FAMILIES","	MALTFIELD HOUSE",MATERIALS,17/06/2022,8308712206,17.98,SPORTSDIRECT.COM
OXFORDSHIRE CC,"CHILDRENS, YOUNG PEOPLE AND FAMILIES",40 THE MOORS,CATERING PROVISIONS,17/06/2022,8308712216,30.16,OXFORD PEARTREE KFC
OXFORDSHIRE CC,ENVIRONMENT AND ECONOMY,HARD FM,HARDWARE AND CROCKERY,17/06/2022,8308711304,17.98,WWW.SCREWFIX.COM
OXFORDSHIRE CC,ENVIRONMENT AND ECONOMY,HARD FM,HARDWARE AND CROCKERY,17/06/2022,8308711310,8.54,B & Q 1176
OXFORDSHIRE CC,ENVIRONMENT AND ECONOMY,HARD FM,HARDWARE AND CROCKERY,17/06/2022,8308711316,41.50,WICKES OXFORD
OXFORDSHIRE CC,ENVIRONMENT AND ECONOMY,"	COUNTY PRINT FINSHRS",MATERIALS,17/06/2022,8308711332,39.98,AMZNMKTPLACE
OXFORDSHIRE CC,SOCIAL AND COMMUNITY SERVICES,CSS - OXFORD,CATERING PROVISIONS,17/06/2022,8308711340,26.55,ALDI STORES 775-142
OXFORDSHIRE CC,SOCIAL AND COMMUNITY SERVICES,CSS BICESTER,CATERING PROVISIONS,17/06/2022,8308711344,22.95,ICELAND
OXFORDSHIRE CC,"CHILDRENS, YOUNG PEOPLE AND FAMILIES",LEGAL BUDGET,PAYMENTS TO TRANSPORT OPERATORS,17/06/2022,8308711350,"1,041.79",OPODO
OXFORDSHIRE CC,"CHILDRENS, YOUNG PEOPLE AND FAMILIES",NTH EARLY HELP-BNRBY,CATERING PROVISIONS,17/06/2022,8308711354,3.58,NISA LOCAL
OXFORDSHIRE CC,"CHILDRENS, YOUNG PEOPLE AND FAMILIES",FAMILY SOLUTIONS PLUS NON-STAFF � SOUTH,CATERING PROVISIONS,17/06/2022,8308711374,2.95,B&M 515 - ABINGDON
OXFORDSHIRE CC,"CHILDRENS, YOUNG PEOPLE AND FAMILIES",FAMILY TIME COSTS,POSTAGE AND DELIVERY,17/06/2022,8308711378,8.25,POST OFFICE COUNTER
OXFORDSHIRE CC,"CHILDRENS, YOUNG PEOPLE AND FAMILIES",CHILDREN IN CARE NON-STAFFING - CENTRL 1,CAR LEASING - PRIVATE RENTALS,17/06/2022,8308711394,105.00,ENTERPRISE RENT-A-CAR
OXFORDSHIRE CC,"CHILDRENS, YOUNG PEOPLE AND FAMILIES",CHILDREN IN CARE NON-STAFFING - CENTRL 1,PAYMENT TO GOVERNMENT DEPARTMENTS,17/06/2022,8308711398,38.00,GEN REGISTER OFFICE
OXFORDSHIRE CC,"CHILDRENS, YOUNG PEOPLE AND FAMILIES",CHILDREN IN CARE NON-STAFFING - CENTRL 1,PAYMENT TO GOVERNMENT DEPARTMENTS,17/06/2022,8308711400,14.00,GEN REGISTER OFFICE
OXFORDSHIRE CC,"CHILDRENS, YOUNG PEOPLE AND FAMILIES",CHILDREN IN CARE NON-STAFFING - CENTRL 1,PAYMENT TO GOVERNMENT DEPARTMENTS,17/06/2022,8308711406,112.00,GEN REGISTER OFFICE
OXFORDSHIRE CC,"CHILDRENS, YOUNG PEOPLE AND FAMILIES",CHILDREN IN CARE NON-STAFFING - CENTRL 1,PAYMENT TO GOVERNMENT DEPARTMENTS,17/06/2022,8308711410,-7.50,GEN REGISTER OFFICE
OXFORDSHIRE CC,"CHILDRENS, YOUNG PEOPLE AND FAMILIES",MANAGEMENT RECHARGES,HIRED AND CONTRACTED SERVICES,17/06/2022,8308711416,60.00,COTSWOLD WILDLIFE PARK
OXFORDSHIRE CC,"CHILDRENS, YOUNG PEOPLE AND FAMILIES",MANAGEMENT RECHARGES,HIRED AND CONTRACTED SERVICES,17/06/2022,8308711424,191.30,ASDA STORES
OXFORDSHIRE CC,"CHILDRENS, YOUNG PEOPLE AND FAMILIES",CSS - DIDCOT,CATERING PROVISIONS,17/06/2022,8308711484,21.46,ALDI 99 775
OXFORDSHIRE CC,"CHILDRENS, YOUNG PEOPLE AND FAMILIES",THAME E&A HOME,CATERING,17/06/2022,8308711488,10.10,MCDONALDS
OXFORDSHIRE CC,ENVIRONMENT AND ECONOMY,WASTE REDUCTION GEN,OTHER TRAINING COURSES AND QUALIFICATION,17/06/2022,8308711496,924.00,WWW.LETSRECYCLE.COM
OXFORDSHIRE CC,SOCIAL AND COMMUNITY SERVICES,CSS - OXFORD,CATERING PROVISIONS,17/06/2022,8308711512,66.79,ALDI STORES 775-142
OXFORDSHIRE CC,SOCIAL AND COMMUNITY SERVICES,CSS - OXFORD,CATERING PROVISIONS,17/06/2022,8308711518,36.35,ALDI STORES 775-142
OXFORDSHIRE CC,"CHILDRENS, YOUNG PEOPLE AND FAMILIES","	LEAVING CARE NORTH",CATERING,17/06/2022,8308711522,9.90,MCDONALDS
OXFORDSHIRE CC,"CHILDRENS, YOUNG PEOPLE AND FAMILIES",FSP NON-STAFFING - CENTRAL,HIRE OF ACCOMMODATION AND FACILITIES,17/06/2022,8308711532,238.13,TRAVELODGE
OXFORDSHIRE CC,"CHILDRENS, YOUNG PEOPLE AND FAMILIES",40 THE MOORS,OTHER TRANSPORT ARRANGEMENTS,17/06/2022,8308711538,40.00,OXFORD BUS CO
OXFORDSHIRE CC,"CHILDRENS, YOUNG PEOPLE AND FAMILIES",40 THE MOORS,OTHER TRANSPORT ARRANGEMENTS,17/06/2022,8308711542,20.00,WWW.THEKEY.CO.UK
OXFORDSHIRE CC,SOCIAL AND COMMUNITY SERVICES,CHILDREN IN CARE NON-STAFFING - NORTH,VEHICLE FUEL,17/06/2022,8308711550,28.09,SHELL ABERDEEN AIRPORT
OXFORDSHIRE CC,SOCIAL AND COMMUNITY SERVICES,CHILDREN IN CARE NON-STAFFING - NORTH,MATERIALS,17/06/2022,8308711558,31.65,AMAZON.CO.UK 2C2603IO4
OXFORDSHIRE CC,"CHILDRENS, YOUNG PEOPLE AND FAMILIES","	LEAVING CARE NORTH",CATERING PROVISIONS,17/06/2022,8308711562,5.50,TESCO STORE 2064
OXFORDSHIRE CC,"CHILDRENS, YOUNG PEOPLE AND FAMILIES",PAUSE PROGRAMME,CATERING,17/06/2022,8308711796,14.28,MCDONALDS
OXFORDSHIRE CC,ENVIRONMENT AND ECONOMY,"	ABBEY HOUSE",CATERING PROVISIONS,17/06/2022,8308711874,1.40,WAITROSE 211
OXFORDSHIRE CC,CORPORATE CORE,"MARKETING, COMMUNICATIONS & ENGAGEMENT",IT SOFTWARE,17/06/2022,8308711912,8.49,GOOGLE  GOOGLE PLAY AP
OXFORDSHIRE CC,ENVIRONMENT AND ECONOMY,"	WASTE MNGMNT GEN",PRINTING,17/06/2022,8308711974,167.00,EMAP PUBLISHING LTD
OXFORDSHIRE CC,SOCIAL AND COMMUNITY SERVICES,CSS WITNEY,MATERIALS,17/06/2022,8308712144,11.40,AMZNMKTPLACE
OXFORDSHIRE CC,SOCIAL AND COMMUNITY SERVICES,CSS WITNEY,MATERIALS,17/06/2022,8308712148,15.98,AMZNMKTPLACE
OXFORDSHIRE CC,SOCIAL AND COMMUNITY SERVICES,CSS WITNEY,MATERIALS,17/06/2022,8308712152,7.99,AMZNMKTPLACE
OXFORDSHIRE CC,SOCIAL AND COMMUNITY SERVICES,CSS WANTAGE,ENTERTAINMENT EXPENSES,17/06/2022,8308712156,14.00,HOLLYWOOD BOWL
OXFORDSHIRE CC,SOCIAL AND COMMUNITY SERVICES,CSS WANTAGE,ENTERTAINMENT EXPENSES,17/06/2022,8308712160,17.50,HOLLYWOOD BOWL
OXFORDSHIRE CC,SOCIAL AND COMMUNITY SERVICES,CSS WANTAGE,MATERIALS,17/06/2022,8308712162,8.91,AMZNMKTPLACE AMAZON.CO
OXFORDSHIRE CC,SOCIAL AND COMMUNITY SERVICES,CSS WANTAGE,ENTERTAINMENT EXPENSES,17/06/2022,8308712166,9.00,WWW.BETTER.ORG.UK
OXFORDSHIRE CC,SOCIAL AND COMMUNITY SERVICES,CSS WANTAGE,ENTERTAINMENT EXPENSES,17/06/2022,8308712168,42.80,WWW.BETTER.ORG.UK
OXFORDSHIRE CC,SOCIAL AND COMMUNITY SERVICES,CSS WANTAGE,CATERING PROVISIONS,17/06/2022,8308712172,92.75,ASDA GROCERIES ONLINE
OXFORDSHIRE CC,SOCIAL AND COMMUNITY SERVICES,CSS WANTAGE,CATERING PROVISIONS,17/06/2022,8308711202,31.78,TESCO STORES 2008
OXFORDSHIRE CC,"CHILDRENS, YOUNG PEOPLE AND FAMILIES",CSS WALLINGFORD,CATERING PROVISIONS,17/06/2022,8308711208,14.55,WAITROSE 675
OXFORDSHIRE CC,ENVIRONMENT AND ECONOMY,ELEC NPR ST LTG,MATERIALS,17/06/2022,8308711212,159.99,AMZNMKTPLACE AMAZON.CO
OXFORDSHIRE CC,SOCIAL AND COMMUNITY SERVICES,CSS - ABINGDON,HARDWARE AND CROCKERY,17/06/2022,8308711252,.98,TOOLSTATION LTD
OXFORDSHIRE CC,ENVIRONMENT AND ECONOMY,HOLDING CODE FOR REA,HARDWARE AND CROCKERY,17/06/2022,8308711266,76.04,WWW.SCREWFIX.COM
OXFORDSHIRE CC,"CHILDRENS, YOUNG PEOPLE AND FAMILIES",CSS WANTAGE,LAUNDRY AND DRY CLEANING,17/06/2022,8308711274,25.00,SUMUP   ADVANCED CAR W
OXFORDSHIRE CC,"CHILDRENS, YOUNG PEOPLE AND FAMILIES",KINGFISHER,HIRE OF ACCOMMODATION AND FACILITIES,17/06/2022,8308711278,"5,671.40",PAYPAL  VRBO
OXFORDSHIRE CC,"CHILDRENS, YOUNG PEOPLE AND FAMILIES",THAME E&A HOME,CATERING,17/06/2022,8308711284,6.98,MCDONALDS
OXFORDSHIRE CC,CORPORATE CORE,SCHOOLS FM CATERING AREA 1,CATERING PROVISIONS,17/06/2022,8308712452,26.90,CO-OPERATIVE FOOD
OXFORDSHIRE CC,"CHILDRENS, YOUNG PEOPLE AND FAMILIES",DIDCOT MOVE-ON HOME,CATERING PROVISIONS,17/06/2022,8308712456,17.00,SAINSBURYS S/MKTS
OXFORDSHIRE CC,"CHILDRENS, YOUNG PEOPLE AND FAMILIES",DIDCOT MOVE-ON HOME,CATERING PROVISIONS,17/06/2022,8308712462,16.60,SAINSBURYS S/MKTS
OXFORDSHIRE CC,"CHILDRENS, YOUNG PEOPLE AND FAMILIES",DIDCOT MOVE-ON HOME,CATERING PROVISIONS,17/06/2022,8308712464,1.90,SAINSBURYS S/MKTS
OXFORDSHIRE CC,"CHILDRENS, YOUNG PEOPLE AND FAMILIES",40 THE MOORS,CATERING PROVISIONS,17/06/2022,8308712470,25.40,SAINSBURY'S S/MKT
OXFORDSHIRE CC,"CHILDRENS, YOUNG PEOPLE AND FAMILIES",NTS UASC AGENCY,CLEANING MATERIALS,17/06/2022,8308712518,4.79,SAVERS HEALTH & BEAUTY
OXFORDSHIRE CC,"CHILDRENS, YOUNG PEOPLE AND FAMILIES",PAUSE PROGRAMME,OTHER TRANSPORT ARRANGEMENTS,17/06/2022,8308711592,4.20,OXFORDBUS.CO.UK
OXFORDSHIRE CC,"CHILDRENS, YOUNG PEOPLE AND FAMILIES",PAUSE PROGRAMME,OTHER TRANSPORT ARRANGEMENTS,17/06/2022,8308711598,3.80,STAGECOACH BUS
OXFORDSHIRE CC,"CHILDRENS, YOUNG PEOPLE AND FAMILIES","	OCCG GRANT",CATERING,17/06/2022,8308711602,3.00,TESCO STORES
OXFORDSHIRE CC,"CHILDRENS, YOUNG PEOPLE AND FAMILIES","	OCCG GRANT",VEHICLE FUEL,17/06/2022,8308711608,15.01,BELLINGERS S.STN
OXFORDSHIRE CC,"CHILDRENS, YOUNG PEOPLE AND FAMILIES",FSP NON-STAFFING - CENTRAL,PAYMENTS TO TRANSPORT OPERATORS,17/06/2022,8308711614,41.90,BANBURY STATION T/O
OXFORDSHIRE CC,"CHILDRENS, YOUNG PEOPLE AND FAMILIES","	LOOKED AFTER NORTH",CATERING PROVISIONS,17/06/2022,8308711618,22.68,SPAR
OXFORDSHIRE CC,"CHILDRENS, YOUNG PEOPLE AND FAMILIES",CHILDREN IN CARE NON-STAFFING - NORTH,PAYMENTS TO TRANSPORT OPERATORS,17/06/2022,8308711620,69.20,WWW.GWR.COM
OXFORDSHIRE CC,"CHILDRENS, YOUNG PEOPLE AND FAMILIES",CHILDREN IN CARE NON-STAFFING - NORTH,PAYMENT TO GOVERNMENT DEPARTMENTS,17/06/2022,8308711624,111.00,GEN REGISTER OFFICE
OXFORDSHIRE CC,"CHILDRENS, YOUNG PEOPLE AND FAMILIES",0-5 STDS & PROGRESS,MATERIALS,17/06/2022,8308711628,11.89,AMZNMKTPLACE
OXFORDSHIRE CC,CORPORATE CORE,LIBRARY COLLECTIONS,"BOOKS, DVDS AND CDS",17/06/2022,8308711636,140.99,OVERDRIVE DIST
OXFORDSHIRE CC,"CHILDRENS, YOUNG PEOPLE AND FAMILIES",PAUSE PROGRAMME,MATERIALS,17/06/2022,8308711646,6.00,THEWORKS.CO.UK
OXFORDSHIRE CC,"CHILDRENS, YOUNG PEOPLE AND FAMILIES",PAUSE PROGRAMME,CATERING,17/06/2022,8308711648,7.50,SQ  MILLIE?S
OXFORDSHIRE CC,"CHILDRENS, YOUNG PEOPLE AND FAMILIES",FSP NON-STAFFING - CENTRAL,EDUCATIONAL AND VOCATIONAL TRAINING ,17/06/2022,8308711650,5.00,OXFORD BROOKES UNI
OXFORDSHIRE CC,"CHILDRENS, YOUNG PEOPLE AND FAMILIES",FSP NON-STAFFING - CENTRAL,EDUCATIONAL AND VOCATIONAL TRAINING ,17/06/2022,8308711654,8.50,OXFORD BROOKES UNI
OXFORDSHIRE CC,"CHILDRENS, YOUNG PEOPLE AND FAMILIES",FAMILY SOLUTIONS PLUS NON-STAFF - NORTH,TELEPHONE - EQUIPMENT,17/06/2022,8308711662,20.00,VESTA VODAFONE TOPUP
OXFORDSHIRE CC,"CHILDRENS, YOUNG PEOPLE AND FAMILIES",FAMILY SOLUTIONS PLUS NON-STAFF - NORTH,MATERIALS,17/06/2022,8308711666,38.98,AMZNMKTPLACE
OXFORDSHIRE CC,"CHILDRENS, YOUNG PEOPLE AND FAMILIES",WITNEY,CATERING PROVISIONS,17/06/2022,8308711670,16.48,SAINSBURYS S/MKTS
OXFORDSHIRE CC,"CHILDRENS, YOUNG PEOPLE AND FAMILIES",DIDCOT MOVE-ON HOME,CATERING PROVISIONS,17/06/2022,8308711674,3.31,SAINSBURYS S/MKTS
OXFORDSHIRE CC,"CHILDRENS, YOUNG PEOPLE AND FAMILIES",DIDCOT MOVE-ON HOME,MATERIALS,17/06/2022,8308711678,8.49,HALFORDS 0567
OXFORDSHIRE CC,"CHILDRENS, YOUNG PEOPLE AND FAMILIES",DIDCOT MOVE-ON HOME,MATERIALS,17/06/2022,8308711682,6.00,HALFORDS 0567
OXFORDSHIRE CC,"CHILDRENS, YOUNG PEOPLE AND FAMILIES",FAMILY SOLUTIONS PLUS NON-STAFF � SOUTH,HIRE OF ACCOMMODATION AND FACILITIES,17/06/2022,8308711720,"1,650.00",HOTEL AT BOOKING.COM
OXFORDSHIRE CC,"CHILDRENS, YOUNG PEOPLE AND FAMILIES",WITNEY,DRUGS AND MEDICAL SUPPLIES,17/06/2022,8308711726,26.00,"BOOTS,WITNEY"
OXFORDSHIRE CC,"CHILDRENS, YOUNG PEOPLE AND FAMILIES",UASC 16&17,CATERING PROVISIONS,17/06/2022,8308711736,5.00,M&S SIMPLY FOOD
OXFORDSHIRE CC,"CHILDRENS, YOUNG PEOPLE AND FAMILIES",UASC 16&17,CATERING,17/06/2022,8308711738,10.18,KFC
OXFORDSHIRE CC,"CHILDRENS, YOUNG PEOPLE AND FAMILIES","	LOOKED AFTER NORTH",VEHICLE FUEL,17/06/2022,8308711742,20.02,ESSO ERMONT WAY SSTN
OXFORDSHIRE CC,"CHILDRENS, YOUNG PEOPLE AND FAMILIES","	MUSIC UNALLOCABLE",CAR LEASING - PRIVATE RENTALS,17/06/2022,8308711746,63.00,EURODRIVE
OXFORDSHIRE CC,CORPORATE CORE,SCHOOLS FM CATERING AREA 4,CATERING PROVISIONS,17/06/2022,8308711750,5.40,CO-OPERATIVE FOOD
OXFORDSHIRE CC,"CHILDRENS, YOUNG PEOPLE AND FAMILIES","	LEAVING CARE SOUTH",OTHER EXPENSES,17/06/2022,8308711774,39.95,DUNELM SOFTFURNISHINGS
OXFORDSHIRE CC,"CHILDRENS, YOUNG PEOPLE AND FAMILIES","	LAC PUPIL PREMIUM",PURCHASE OF IT EQUIPMENT,17/06/2022,8308711780,419.97,CURRYS ONLINE
OXFORDSHIRE CC,"CHILDRENS, YOUNG PEOPLE AND FAMILIES",FAMILY SOLUTIONS PLUS NON-STAFF � SOUTH,PAYMENTS TO TRANSPORT OPERATORS,17/06/2022,8308711784,8.35,THETRAINLINE.COM
OXFORDSHIRE CC,"CHILDRENS, YOUNG PEOPLE AND FAMILIES",THAME E&A HOME,CATERING PROVISIONS,17/06/2022,8308711792,11.50,WAITROSE 206
OXFORDSHIRE CC,"CHILDRENS, YOUNG PEOPLE AND FAMILIES",FSP NON-STAFFING - CENTRAL,CATERING PROVISIONS,17/06/2022,8308711852,4.55,SAINSBURYS S/MKTS
OXFORDSHIRE CC,"CHILDRENS, YOUNG PEOPLE AND FAMILIES",PAUSE PROGRAMME,HOSPITALITY EXPENSES,17/06/2022,8308711858,2.80,WHITE HORSE
OXFORDSHIRE CC,"CHILDRENS, YOUNG PEOPLE AND FAMILIES",PAUSE PROGRAMME,CATERING,17/06/2022,8308711862,6.99,WHITE HORSE
OXFORDSHIRE CC,"CHILDRENS, YOUNG PEOPLE AND FAMILIES",KIDLINGTON LIBRARY,MATERIALS,17/06/2022,8308712298,7.99,AMZNMKTPLACE AMAZON.CO
OXFORDSHIRE CC,"CHILDRENS, YOUNG PEOPLE AND FAMILIES",CNTL EARLY HELP-RHIL,CATERING PROVISIONS,17/06/2022,8308712304,10.95,ASDA GEORGE COM LEEDS
OXFORDSHIRE CC,"CHILDRENS, YOUNG PEOPLE AND FAMILIES",THAME E&A HOME,MATERIALS,17/06/2022,8308712318,239.94,ROBERT DYAS HOLDNG LTD
OXFORDSHIRE CC,"CHILDRENS, YOUNG PEOPLE AND FAMILIES",THAME E&A HOME,OTHER TRANSPORT ARRANGEMENTS,17/06/2022,8308712322,38.00,THE OXFORDSHIRE TAXI C
OXFORDSHIRE CC,"CHILDRENS, YOUNG PEOPLE AND FAMILIES",CHILDREN IN CARE NON-STAFFING - SOUTH,VEHICLE FUEL,17/06/2022,8308712336,49.80,TESCO PAYAT PUMP 3700
OXFORDSHIRE CC,SOCIAL AND COMMUNITY SERVICES,BICESTER LIBRARY,MATERIALS,17/06/2022,8308712340,8.99,ARGOS BICESTER
OXFORDSHIRE CC,"CHILDRENS, YOUNG PEOPLE AND FAMILIES",BROKERAGE STAFFING,OTHER TRANSPORT ARRANGEMENTS,17/06/2022,8308712350,70.75,PARCELFORCE WL
OXFORDSHIRE CC,"CHILDRENS, YOUNG PEOPLE AND FAMILIES",BROKERAGE STAFFING,POSTAGE AND DELIVERY,17/06/2022,8308712352,15.05,ROYAL MAIL GROUP LTD
OXFORDSHIRE CC,CORPORATE CORE,,STATIONERY,17/06/2022,8308712394,41.04,LYRECO UK LTD
OXFORDSHIRE CC,CORPORATE CORE,,STATIONERY,17/06/2022,8308712398,29.47,LYRECO UK LTD
OXFORDSHIRE CC,CORPORATE CORE,,STATIONERY,17/06/2022,8308712402,214.81,LYRECO UK LTD
OXFORDSHIRE CC,ENTERPRISEVC,,CAR LEASING - PRIVATE RENTALS,17/06/2022,8308712406,616.48,ENTERPRISE RENT-A-CAR
OXFORDSHIRE CC,"CHILDRENS, YOUNG PEOPLE AND FAMILIES","	BUSINESS DEVELOPMENT",STATIONERY,17/06/2022,8308712474,11.49,PRINTPOND.CO.UK
OXFORDSHIRE CC,"CHILDRENS, YOUNG PEOPLE AND FAMILIES","	LEAVING CARE NORTH",CATERING,17/06/2022,8308712490,8.05,ZTL COFFEESMITH
OXFORDSHIRE CC,"CHILDRENS, YOUNG PEOPLE AND FAMILIES",FAMILY SOLUTIONS PLUS NON-STAFF � SOUTH,HIRE OF ACCOMMODATION AND FACILITIES,17/06/2022,8308712494,195.00,COURTYARD BY MARRIOTT
OXFORDSHIRE CC,"CHILDRENS, YOUNG PEOPLE AND FAMILIES",FAMILY SOLUTIONS PLUS NON-STAFF � SOUTH,DRUGS AND MEDICAL SUPPLIES,17/06/2022,8308712498,9.79,SUPERDRUG STORES PLC
OXFORDSHIRE CC,"CHILDRENS, YOUNG PEOPLE AND FAMILIES",THAME E&A HOME,CATERING PROVISIONS,17/06/2022,8308712502,40.13,ASDA SUPERSTORE
OXFORDSHIRE CC,"CHILDRENS, YOUNG PEOPLE AND FAMILIES",THAME E&A HOME,CLOTHING AND UNIFORMS,17/06/2022,8308712506,42.99,NEXT DIRECTORY
OXFORDSHIRE CC,"CHILDRENS, YOUNG PEOPLE AND FAMILIES",KINGFISHER,CATERING PROVISIONS,17/06/2022,8308712228,2.80,SIP CARS PARKS (1) LI
OXFORDSHIRE CC,"CHILDRENS, YOUNG PEOPLE AND FAMILIES","	LOOKED AFTER SOUTH",CATERING PROVISIONS,17/06/2022,8308712234,12.15,SAINSBURYS S/MKTS
OXFORDSHIRE CC,"CHILDRENS, YOUNG PEOPLE AND FAMILIES","	LOOKED AFTER SOUTH",OTHER TRANSPORT ARRANGEMENTS,17/06/2022,8308712238,50.20,SUMUP   IQBAL TAXI
OXFORDSHIRE CC,"CHILDRENS, YOUNG PEOPLE AND FAMILIES","	LOOKED AFTER SOUTH",OTHER TRANSPORT ARRANGEMENTS,17/06/2022,8308712242,28.20,SUMUP   ROBERT FINLAY
OXFORDSHIRE CC,"CHILDRENS, YOUNG PEOPLE AND FAMILIES","	LOOKED AFTER SOUTH",OTHER TRANSPORT ARRANGEMENTS,17/06/2022,8308712246,24.40,CURB
OXFORDSHIRE CC,"CHILDRENS, YOUNG PEOPLE AND FAMILIES",EYNSHAM,MATERIALS,17/06/2022,8308712374,17.98,AMZNMKTPLACE
OXFORDSHIRE CC,"CHILDRENS, YOUNG PEOPLE AND FAMILIES",EYNSHAM,MATERIALS,17/06/2022,8308712378,9.00,AMZNMKTPLACE
OXFORDSHIRE CC,"CHILDRENS, YOUNG PEOPLE AND FAMILIES",EYNSHAM,MATERIALS,17/06/2022,8308712382,14.09,AMZNMKTPLACE
OXFORDSHIRE CC,"CHILDRENS, YOUNG PEOPLE AND FAMILIES",EYNSHAM,MATERIALS,17/06/2022,8308712386,12.49,AMZNMKTPLACE
OXFORDSHIRE CC,CORPORATE CORE,,STATIONERY,17/06/2022,8308712392,38.40,LYRECO UK LTD
OXFORDSHIRE CC,SOCIAL AND COMMUNITY SERVICES,CSS - OXFORD,CATERING PROVISIONS,16/06/2022,8303424806,168.63,TESCO STORE 2994
OXFORDSHIRE CC,SOCIAL AND COMMUNITY SERVICES,CSS - OXFORD,CATERING PROVISIONS,16/06/2022,8303424810,-1.75,TESCO STORE 2994
OXFORDSHIRE CC,"CHILDRENS, YOUNG PEOPLE AND FAMILIES",FSP NON-STAFFING - CENTRAL,SUBSCRIPTIONS,16/06/2022,8303425224,14.20,HOLLYWOOD BOWL
OXFORDSHIRE CC,"CHILDRENS, YOUNG PEOPLE AND FAMILIES",FSP NON-STAFFING - CENTRAL,MATERIALS,16/06/2022,8303425228,10.14,AMAZON.CO.UK 2C1VD97R4
OXFORDSHIRE CC,SOCIAL AND COMMUNITY SERVICES,BUSINESS SUPPORT SERVICE,HIRE OF ACCOMMODATION AND FACILITIES,16/06/2022,8303425232,62.07,TPI BY BOOKING.COM
OXFORDSHIRE CC,"CHILDRENS, YOUNG PEOPLE AND FAMILIES","	LOOKED AFTER CITY 2",PAYMENTS TO TRANSPORT OPERATORS,16/06/2022,8303424858,27.31,THETRAINLINE.COM
OXFORDSHIRE CC,"CHILDRENS, YOUNG PEOPLE AND FAMILIES","	LOOKED AFTER CITY 2",OTHER TRANSPORT ARRANGEMENTS,16/06/2022,8303424864,7.30,STAGECOACH BUS
OXFORDSHIRE CC,"CHILDRENS, YOUNG PEOPLE AND FAMILIES","	FOSTER CARE RECRUIT","SUPPLIES, STATIONERY AND MATERIALS",16/06/2022,8303424880,182.40,ISTOCK.COM
OXFORDSHIRE CC,SOCIAL AND COMMUNITY SERVICES,BUSINESS SUPPORT SERVICE,HIRE OF ACCOMMODATION AND FACILITIES,16/06/2022,8303425236,62.07,TPI BY BOOKING.COM
OXFORDSHIRE CC,SOCIAL AND COMMUNITY SERVICES,BUSINESS SUPPORT SERVICE,HIRE OF ACCOMMODATION AND FACILITIES,16/06/2022,8303425238,-62.07,TPI BY BOOKING.COM
OXFORDSHIRE CC,SOCIAL AND COMMUNITY SERVICES,BUSINESS SUPPORT SERVICE,HIRE OF ACCOMMODATION AND FACILITIES,16/06/2022,8303425242,-62.07,TPI BY BOOKING.COM
OXFORDSHIRE CC,"CHILDRENS, YOUNG PEOPLE AND FAMILIES","	LEAVING CARE SOUTH",OTHER EXPENSES,16/06/2022,8303425280,46.97,AMZNMKTPLACE
OXFORDSHIRE CC,SOCIAL AND COMMUNITY SERVICES,"	SHARED LIVES",PAYMENT TO GOVERNMENT DEPARTMENTS,16/06/2022,8303425284,139.50,CHERWELL DC
OXFORDSHIRE CC,"CHILDRENS, YOUNG PEOPLE AND FAMILIES",THAME E&A HOME,CATERING PROVISIONS,16/06/2022,8303425306,10.76,MARTIN MCCOLL
OXFORDSHIRE CC,"CHILDRENS, YOUNG PEOPLE AND FAMILIES",KINGFISHER,CATERING,16/06/2022,8303425310,7.50,COSTA COFFEE 43037200
OXFORDSHIRE CC,"CHILDRENS, YOUNG PEOPLE AND FAMILIES",CHILDREN IN CARE NON-STAFFING - SOUTH,OTHER TRANSPORT ARRANGEMENTS,16/06/2022,8303425338,59.00,READING-BUSES.CO.
OXFORDSHIRE CC,CORPORATE CORE,BRIDGES GENERAL,SUBSCRIPTIONS,16/06/2022,8303425558,45.00,BRITISHCANOEING
OXFORDSHIRE CC,CORPORATE CORE,BRIDGES GENERAL,MATERIALS,16/06/2022,8303425560,12.99,ROBERT DYAS HOLDNG LTD
OXFORDSHIRE CC,"CHILDRENS, YOUNG PEOPLE AND FAMILIES","	OCCG GRANT",MATERIALS,16/06/2022,8303424246,1.50,POUNDLAND LTD
OXFORDSHIRE CC,"CHILDRENS, YOUNG PEOPLE AND FAMILIES",VULNERABLE LEARNERS,"BOOKS, DVDS AND CDS",16/06/2022,8303424296,39.00,MAGSUBCRIPTIONS COM
OXFORDSHIRE CC,CORPORATE CORE,LIBRARY COLLECTIONS,"BOOKS, DVDS AND CDS",16/06/2022,8303424306,898.16,OVERDRIVE DIST
OXFORDSHIRE CC,SOCIAL AND COMMUNITY SERVICES,ADMIN SUPPORT SOUTH&VALE,HIRE OF ACCOMMODATION AND FACILITIES,16/06/2022,8303424316,499.00,PREMIER INN
OXFORDSHIRE CC,"CHILDRENS, YOUNG PEOPLE AND FAMILIES",CNTL EARLY HELP-BRTN,CATERING,16/06/2022,8303425202,7.68,TESCO PFS 2488
OXFORDSHIRE CC,"CHILDRENS, YOUNG PEOPLE AND FAMILIES",THAME E&A HOME,CATERING,16/06/2022,8303423950,11.80,STARBUCKS COFFEE
OXFORDSHIRE CC,"CHILDRENS, YOUNG PEOPLE AND FAMILIES",PAUSE PROGRAMME,CATERING PROVISIONS,16/06/2022,8303424348,50.70,ASDA STORE 4442
OXFORDSHIRE CC,"CHILDRENS, YOUNG PEOPLE AND FAMILIES",FSP NON-STAFFING - CENTRAL,ENTERTAINMENT EXPENSES,16/06/2022,8303424352,27.00,CLIMBING CENTRE GR
OXFORDSHIRE CC,"CHILDRENS, YOUNG PEOPLE AND FAMILIES","	RIVERSIDE CENTRE",CHILDCARE MANAGEMENT FEES,16/06/2022,8303424358,55.00,PAYPAL  OUTDOORSGRO
OXFORDSHIRE CC,"CHILDRENS, YOUNG PEOPLE AND FAMILIES",FAMILY SOLUTIONS PLUS NON-STAFF - NORTH,MATERIALS,16/06/2022,8303424362,32.88,AMZNMKTPLACE
OXFORDSHIRE CC,"CHILDRENS, YOUNG PEOPLE AND FAMILIES",FAMILY SOLUTIONS PLUS NON-STAFF - NORTH,PAYMENTS TO TRANSPORT OPERATORS,16/06/2022,8303424366,42.80,WWW.GWR.COM
OXFORDSHIRE CC,"CHILDRENS, YOUNG PEOPLE AND FAMILIES",FAMILY SOLUTIONS PLUS NON-STAFF - NORTH,PAYMENTS TO TRANSPORT OPERATORS,16/06/2022,8303424370,56.10,WWW.GWR.COM
OXFORDSHIRE CC,COMMUNITY SAFETY,ON ST PARK OXFD SPA,PAYMENTS TO TRANSPORT OPERATORS,16/06/2022,8303423956,87.00,GWR OXFORD TO
OXFORDSHIRE CC,"CHILDRENS, YOUNG PEOPLE AND FAMILIES","	LEAVING CARE CITY 2",OTHER TRANSPORT ARRANGEMENTS,16/06/2022,8303423968,1.20,3C_ BASINGSTOKE AND DE
OXFORDSHIRE CC,"CHILDRENS, YOUNG PEOPLE AND FAMILIES","	LEAVING CARE CITY 2",CATERING,16/06/2022,8303423970,3.75,43010705 COSTA COFFEE
OXFORDSHIRE CC,"CHILDRENS, YOUNG PEOPLE AND FAMILIES",MARKETING,MATERIALS,16/06/2022,8303423984,15.00,AMAZON.CO.UK 2C9PI6KX4
OXFORDSHIRE CC,"CHILDRENS, YOUNG PEOPLE AND FAMILIES","	SM QUALITY ASSURANCE",HIRE OF ACCOMMODATION AND FACILITIES,16/06/2022,8303423994,89.00,GREYHARLINGS GUEST HOU
OXFORDSHIRE CC,ENVIRONMENT AND ECONOMY,HARD FM,MATERIALS,16/06/2022,8303424374,43.49,HALFORDS 0837
OXFORDSHIRE CC,"CHILDRENS, YOUNG PEOPLE AND FAMILIES",DIDCOT MOVE-ON HOME,CATERING,16/06/2022,8303424382,26.50,SUNRISE
OXFORDSHIRE CC,"CHILDRENS, YOUNG PEOPLE AND FAMILIES",FSP NON-STAFFING - CENTRAL,IT SOFTWARE,16/06/2022,8303424702,5.00,EMAP UK
OXFORDSHIRE CC,"CHILDRENS, YOUNG PEOPLE AND FAMILIES",FSP NON-STAFFING - CENTRAL,CATERING PROVISIONS,16/06/2022,8303424708,82.20,ASDA STORE 4442
OXFORDSHIRE CC,ENVIRONMENT AND ECONOMY,"	ABBEY HOUSE",MATERIALS,16/06/2022,8303424716,24.49,AMZNMKTPLACE AMAZON.CO
OXFORDSHIRE CC,SOCIAL AND COMMUNITY SERVICES,CSS WITNEY,CATERING PROVISIONS,16/06/2022,8303424722,13.85,CO-OP GROUP 070582
OXFORDSHIRE CC,SOCIAL AND COMMUNITY SERVICES,CSS WITNEY,CATERING PROVISIONS,16/06/2022,8303424726,10.00,WAITROSE 211
OXFORDSHIRE CC,CORPORATE CORE,"MARKETING, COMMUNICATIONS & ENGAGEMENT",MATERIALS,16/06/2022,8303424740,14.99,AMZNMKTPLACE AMAZON.CO
OXFORDSHIRE CC,ENVIRONMENT AND ECONOMY,P&S OPERATIONAL REV,OTHER TRAINING COURSES AND QUALIFICATION,16/06/2022,8303424016,420.00,WWW.TRANSPORTXTRA.COM
OXFORDSHIRE CC,"CHILDRENS, YOUNG PEOPLE AND FAMILIES",UASC 16&17,OTHER TRANSPORT ARRANGEMENTS,16/06/2022,8303423856,-74.00,WWW.THEKEY.CO.UK
OXFORDSHIRE CC,"CHILDRENS, YOUNG PEOPLE AND FAMILIES",PAUSE PROGRAMME,CATERING PROVISIONS,16/06/2022,8303424560,21.99,ICELAND
OXFORDSHIRE CC,"CHILDRENS, YOUNG PEOPLE AND FAMILIES",CHILDREN IN CARE NON-STAFFING - NORTH,OTHER EXPENSES,16/06/2022,8303424584,80.00,FONE WORLD UK LIMITED
OXFORDSHIRE CC,"CHILDRENS, YOUNG PEOPLE AND FAMILIES",DIDCOT MOVE-ON HOME,CATERING PROVISIONS,16/06/2022,8303424594,15.90,SAINSBURYS SMKT
OXFORDSHIRE CC,"CHILDRENS, YOUNG PEOPLE AND FAMILIES",DIDCOT MOVE-ON HOME,CATERING PROVISIONS,16/06/2022,8303424600,28.04,SAINSBURYS SMKT
OXFORDSHIRE CC,"CHILDRENS, YOUNG PEOPLE AND FAMILIES",WITNEY,CATERING PROVISIONS,16/06/2022,8303424604,11.65,SAINSBURYS S/MKTS
OXFORDSHIRE CC,"CHILDRENS, YOUNG PEOPLE AND FAMILIES",WITNEY,CATERING,16/06/2022,8303424610,14.60,43020490 COSTA COFFEE
OXFORDSHIRE CC,ENVIRONMENT AND ECONOMY,HARD FM,PHOTOCOPYING,16/06/2022,8303423890,106.51,WWW.KEYSIGNSUK.CO.UK
OXFORDSHIRE CC,ENVIRONMENT AND ECONOMY,HARD FM,HARDWARE AND CROCKERY,16/06/2022,8303423896,33.66,TOOLSTATION LTD
OXFORDSHIRE CC,ENVIRONMENT AND ECONOMY,HARD FM,HARDWARE AND CROCKERY,16/06/2022,8303423902,23.70,DULUX DECORATOR CENTRE
OXFORDSHIRE CC,ENVIRONMENT AND ECONOMY,HARD FM,PHOTOCOPYING,16/06/2022,8303423908,25.01,WWW.KEYSIGNSUK.CO.UK
OXFORDSHIRE CC,ENVIRONMENT AND ECONOMY,HARD FM,HARDWARE AND CROCKERY,16/06/2022,8303423914,65.00,WICKES OXFORD
OXFORDSHIRE CC,"CHILDRENS, YOUNG PEOPLE AND FAMILIES","	LEAVING CARE NORTH",MATERIALS,16/06/2022,8303423920,19.99,CYCLE CARE
OXFORDSHIRE CC,ENVIRONMENT AND ECONOMY,"	COUNTY PRINT FINSHRS",DRUGS AND MEDICAL SUPPLIES,16/06/2022,8303423922,"13,176.50",MOTUS MEDICAL
OXFORDSHIRE CC,ENVIRONMENT AND ECONOMY,"	COUNTY PRINT FINSHRS",MATERIALS,16/06/2022,8303423926,79.96,AMZNMKTPLACE
OXFORDSHIRE CC,SOCIAL AND COMMUNITY SERVICES,CSS BICESTER,MATERIALS,16/06/2022,8303423936,13.45,AMZNMKTPLACE
OXFORDSHIRE CC,SOCIAL AND COMMUNITY SERVICES,CSS BICESTER,MATERIALS,16/06/2022,8303423940,13.00,AMZNMKTPLACE
OXFORDSHIRE CC,"CHILDRENS, YOUNG PEOPLE AND FAMILIES",WITNEY,CLOTHING AND UNIFORMS,16/06/2022,8303424614,69.00,SASSI
OXFORDSHIRE CC,"CHILDRENS, YOUNG PEOPLE AND FAMILIES",FSP NON-STAFFING - CENTRAL,HIRE OF ACCOMMODATION AND FACILITIES,16/06/2022,8303424620,342.00,PREMIER INN
OXFORDSHIRE CC,"CHILDRENS, YOUNG PEOPLE AND FAMILIES",FSP NON-STAFFING - CENTRAL,PAYMENTS TO TRANSPORT OPERATORS,16/06/2022,8303424626,85.80,WWW.GWR.COM
OXFORDSHIRE CC,"CHILDRENS, YOUNG PEOPLE AND FAMILIES",FSP NON-STAFFING - CENTRAL,PAYMENTS TO TRANSPORT OPERATORS,16/06/2022,8303424632,59.60,WWW.GWR.COM
OXFORDSHIRE CC,"CHILDRENS, YOUNG PEOPLE AND FAMILIES",FSP NON-STAFFING - CENTRAL,PAYMENTS TO TRANSPORT OPERATORS,16/06/2022,8303424636,70.60,WWW.GWR.COM
OXFORDSHIRE CC,"CHILDRENS, YOUNG PEOPLE AND FAMILIES","	LEAVING CARE NORTH",CATERING,16/06/2022,8303424640,10.18,MCDONALDS
OXFORDSHIRE CC,"CHILDRENS, YOUNG PEOPLE AND FAMILIES",CHILDREN IN CARE NON-STAFFING - NORTH,VEHICLE FUEL,16/06/2022,8303424654,44.40,ESSO ERMONT WAY SSTN
OXFORDSHIRE CC,"CHILDRENS, YOUNG PEOPLE AND FAMILIES",CHILDREN IN CARE NON-STAFFING - NORTH,VEHICLE FUEL,16/06/2022,8303424658,64.43,ESSO STAFFORD MWSA
OXFORDSHIRE CC,"CHILDRENS, YOUNG PEOPLE AND FAMILIES","	LOOKED AFTER CITY 1",VEHICLE FUEL,16/06/2022,8303424672,23.36,SAINSBURYS PETROL
OXFORDSHIRE CC,CORPORATE CORE,SCHOOLS FM CATERING AREA 1,VEHICLE FUEL,16/06/2022,8303425524,92.99,BP CANNON POOL S/SERVE
OXFORDSHIRE CC,"CHILDRENS, YOUNG PEOPLE AND FAMILIES",DIDCOT MOVE-ON HOME,CATERING PROVISIONS,16/06/2022,8303425528,1.91,SAINSBURYS SMKT
OXFORDSHIRE CC,"CHILDRENS, YOUNG PEOPLE AND FAMILIES",DIDCOT MOVE-ON HOME,CATERING PROVISIONS,16/06/2022,8303425532,3.00,SAINSBURYS SMKT
OXFORDSHIRE CC,"CHILDRENS, YOUNG PEOPLE AND FAMILIES","	LEAVING CARE CITY 1",CATERING,16/06/2022,8303423944,9.49,MCDONALDS
OXFORDSHIRE CC,"CHILDRENS, YOUNG PEOPLE AND FAMILIES",HOUSE PROJECT,OTHER TRANSPORT ARRANGEMENTS,16/06/2022,8303424232,5.00,WESTGATE OXFORD CAR PA
OXFORDSHIRE CC,"CHILDRENS, YOUNG PEOPLE AND FAMILIES","	OCCG GRANT",OTHER EXPENSES,16/06/2022,8303424240,30.50,POUNDLAND LTD 1586
OXFORDSHIRE CC,"CHILDRENS, YOUNG PEOPLE AND FAMILIES",CHILDREN IN CARE NON-STAFFING - CENTRL 1,PAYMENT TO GOVERNMENT DEPARTMENTS,16/06/2022,8303424686,75.50,HM PASSPORT OFFICE
OXFORDSHIRE CC,"CHILDRENS, YOUNG PEOPLE AND FAMILIES",FSP NON-STAFFING - CENTRAL,HIRE OF ACCOMMODATION AND FACILITIES,16/06/2022,8303424122,133.60,TRAVELODGE
OXFORDSHIRE CC,"CHILDRENS, YOUNG PEOPLE AND FAMILIES",FSP NON-STAFFING - CENTRAL,PAYMENT TO GOVERNMENT DEPARTMENTS,16/06/2022,8303424128,14.00,GEN REGISTER OFFICE
OXFORDSHIRE CC,SOCIAL AND COMMUNITY SERVICES,CSS WANTAGE,MATERIALS,16/06/2022,8303425004,12.99,AMZNMKTPLACE AMAZON.CO
OXFORDSHIRE CC,SOCIAL AND COMMUNITY SERVICES,CSS WANTAGE,MATERIALS,16/06/2022,8303425010,7.98,AMZNMKTPLACE AMAZON.CO
OXFORDSHIRE CC,SOCIAL AND COMMUNITY SERVICES,CSS WANTAGE,MATERIALS,16/06/2022,8303425016,11.58,AMZNMKTPLACE AMAZON.CO
OXFORDSHIRE CC,"CHILDRENS, YOUNG PEOPLE AND FAMILIES","	SEN/ICT EQUIPMENT",PURCHASE OF IT EQUIPMENT,16/06/2022,8303425022,459.00,AMAZON.CO.UK 2C59T1KW4
OXFORDSHIRE CC,ENTERPRISEVC,,CAR LEASING - PRIVATE RENTALS,16/06/2022,8303425428,47.15,ENTERPRISE RENT-A-CAR
OXFORDSHIRE CC,ENTERPRISEVC,,CAR LEASING - PRIVATE RENTALS,16/06/2022,8303425434,100.61,ENTERPRISE RENT-A-CAR
OXFORDSHIRE CC,ENTERPRISEVC,,CAR LEASING - PRIVATE RENTALS,16/06/2022,8303425438,193.31,ENTERPRISE RENT-A-CAR
OXFORDSHIRE CC,ENTERPRISEVC,,CAR LEASING - PRIVATE RENTALS,16/06/2022,8303425448,26.53,ENTERPRISE RENT-A-CAR
OXFORDSHIRE CC,ENTERPRISEVC,,CAR LEASING - PRIVATE RENTALS,16/06/2022,8303425456,103.07,ENTERPRISE RENT-A-CAR
OXFORDSHIRE CC,ENTERPRISEVC,,CAR LEASING - PRIVATE RENTALS,16/06/2022,8303425464,69.38,ENTERPRISE RENT-A-CAR
OXFORDSHIRE CC,ENTERPRISEVC,,CAR LEASING - PRIVATE RENTALS,16/06/2022,8303425470,47.15,ENTERPRISE RENT-A-CAR
OXFORDSHIRE CC,ENTERPRISEVC,,CAR LEASING - PRIVATE RENTALS,16/06/2022,8303425476,63.10,ENTERPRISE RENT-A-CAR
OXFORDSHIRE CC,"CHILDRENS, YOUNG PEOPLE AND FAMILIES",40 THE MOORS,MATERIALS,16/06/2022,8303424140,25.40,AMZNMKTPLACE AMAZON.CO
OXFORDSHIRE CC,"CHILDRENS, YOUNG PEOPLE AND FAMILIES","	LEAVING CARE SOUTH",MATERIALS,16/06/2022,8303424164,85.00,J D SPORTS
OXFORDSHIRE CC,"CHILDRENS, YOUNG PEOPLE AND FAMILIES","	LEAVING CARE SOUTH",MATERIALS,16/06/2022,8303424170,50.00,J D SPORTS
OXFORDSHIRE CC,"CHILDRENS, YOUNG PEOPLE AND FAMILIES","	LEAVING CARE SOUTH",MATERIALS,16/06/2022,8303424172,35.00,SPORTSDIRECT 218
OXFORDSHIRE CC,"CHILDRENS, YOUNG PEOPLE AND FAMILIES","	SEN/ICT EQUIPMENT",PURCHASE OF IT EQUIPMENT,16/06/2022,8303425028,19.98,AMZNMKTPLACE
OXFORDSHIRE CC,SOCIAL AND COMMUNITY SERVICES,LIBRARY PROJECTS,MATERIALS,16/06/2022,8303425500,214.00,AO RETAIL LIMITED
OXFORDSHIRE CC,SOCIAL AND COMMUNITY SERVICES,LIBRARY PROJECTS,MATERIALS,16/06/2022,8303425504,7.99,AMAZON PRIME 2C1Q992N4
OXFORDSHIRE CC,SOCIAL AND COMMUNITY SERVICES,CSS WANTAGE,HOSPITALITY EXPENSES,16/06/2022,8303423762,10.54,WHITE HORSE
OXFORDSHIRE CC,"CHILDRENS, YOUNG PEOPLE AND FAMILIES",CSS WALLINGFORD,CATERING PROVISIONS,16/06/2022,8303423768,22.25,WAITROSE 675
OXFORDSHIRE CC,"CHILDRENS, YOUNG PEOPLE AND FAMILIES","	LEAVING CARE SOUTH",HIRE OF ACCOMMODATION AND FACILITIES,16/06/2022,8303423778,645.07,TRAVELODGE
OXFORDSHIRE CC,SOCIAL AND COMMUNITY SERVICES,CSS - ABINGDON,CATERING PROVISIONS,16/06/2022,8303423802,14.43,BUDGENS PEACHCROFT
OXFORDSHIRE CC,SOCIAL AND COMMUNITY SERVICES,CSS - ABINGDON,VEHICLE EQUIPMENT AND EXPENSES - OTHER,16/06/2022,8303423808,14.60,TESCO STORES 2008
OXFORDSHIRE CC,SOCIAL AND COMMUNITY SERVICES,CHILDREN IN CARE NON-STAFFING - NORTH,HIRE OF ACCOMMODATION AND FACILITIES,16/06/2022,8303424178,35.50,ABERDEEN ALTENS HOTEL
OXFORDSHIRE CC,SOCIAL AND COMMUNITY SERVICES,CHILDREN IN CARE NON-STAFFING - NORTH,MATERIALS,16/06/2022,8303424184,10.20,POUNDLAND LTD
OXFORDSHIRE CC,SOCIAL AND COMMUNITY SERVICES,CHILDREN IN CARE NON-STAFFING - NORTH,CATERING PROVISIONS,16/06/2022,8303424192,4.10,CO-OP FOOD
OXFORDSHIRE CC,SOCIAL AND COMMUNITY SERVICES,CHILDREN IN CARE NON-STAFFING - NORTH,OTHER TRANSPORT ARRANGEMENTS,16/06/2022,8303424194,4.00,WESTGATE OXFORD CAR PA
OXFORDSHIRE CC,"CHILDRENS, YOUNG PEOPLE AND FAMILIES",CSS - DIDCOT,CATERING PROVISIONS,16/06/2022,8303424078,92.13,ALDI 99 775
OXFORDSHIRE CC,"CHILDRENS, YOUNG PEOPLE AND FAMILIES",CSS - DIDCOT,CATERING EQUIPMENT,16/06/2022,8303424082,7.99,AMZNMKTPLACE
OXFORDSHIRE CC,"CHILDRENS, YOUNG PEOPLE AND FAMILIES",FAMILY SOLUTIONS PLUS NON-STAFF - NORTH,OTHER TRANSPORT ARRANGEMENTS,16/06/2022,8303424428,83.50,STAGECOACH SERVICE
OXFORDSHIRE CC,"CHILDRENS, YOUNG PEOPLE AND FAMILIES",MANAGEMENT RECHARGES,OTHER TRAINING COURSES AND QUALIFICATION,16/06/2022,8303424444,-63.22,EB  THE ADOPTION RECON
OXFORDSHIRE CC,"CHILDRENS, YOUNG PEOPLE AND FAMILIES",WITNEY,CATERING PROVISIONS,16/06/2022,8303424448,11.80,SAINSBURYS S/MKTS
OXFORDSHIRE CC,SOCIAL AND COMMUNITY SERVICES,CSS - OXFORD,CATERING PROVISIONS,16/06/2022,8303424452,28.52,ALDI STORES 775-142
OXFORDSHIRE CC,"CHILDRENS, YOUNG PEOPLE AND FAMILIES",THAME E&A HOME,CATERING PROVISIONS,16/06/2022,8303424462,26.80,ASDA SUPERSTORE
OXFORDSHIRE CC,"CHILDRENS, YOUNG PEOPLE AND FAMILIES",UASC 16&17,NON-STAFF SUBSISTENCE AND EXPENSES,16/06/2022,8303424466,50.00,PARENTPAY E-COM R
OXFORDSHIRE CC,"CHILDRENS, YOUNG PEOPLE AND FAMILIES","	LEAVING CARE SOUTH",PAYMENTS TO TRANSPORT OPERATORS,16/06/2022,8303424468,24.04,THETRAINLINE.COM
OXFORDSHIRE CC,"CHILDRENS, YOUNG PEOPLE AND FAMILIES","	LEAVING CARE SOUTH",PAYMENTS TO TRANSPORT OPERATORS,16/06/2022,8303424472,25.77,TRAINLINE.COM
OXFORDSHIRE CC,"CHILDRENS, YOUNG PEOPLE AND FAMILIES","	FOSTER CARE RECRUIT",PAYMENTS TO VOLUNTARY BODIES,16/06/2022,8303424884,75.00,SUMUP   OXFORD PRIDE G
OXFORDSHIRE CC,"CHILDRENS, YOUNG PEOPLE AND FAMILIES",THAME E&A HOME,MATERIALS,16/06/2022,8303424902,44.99,IZ  THAME CYCLES L
OXFORDSHIRE CC,"CHILDRENS, YOUNG PEOPLE AND FAMILIES",CNTL ERLY HELP-BBLEY,CATERING PROVISIONS,16/06/2022,8303425362,34.82,ALDI STORES 775-142
OXFORDSHIRE CC,"CHILDRENS, YOUNG PEOPLE AND FAMILIES","	LAC PUPIL PREMIUM",PURCHASE OF IT EQUIPMENT,16/06/2022,8303424506,419.97,CURRYS ONLINE
OXFORDSHIRE CC,"CHILDRENS, YOUNG PEOPLE AND FAMILIES","	LAC PUPIL PREMIUM",PURCHASE OF IT EQUIPMENT,16/06/2022,8303424512,-419.97,CURRYS ONLINE
OXFORDSHIRE CC,"CHILDRENS, YOUNG PEOPLE AND FAMILIES",FAMILY SOLUTIONS PLUS NON-STAFF � SOUTH,PAYMENTS TO TRANSPORT OPERATORS,16/06/2022,8303424520,305.00,WWW.TAXICODE.COM
OXFORDSHIRE CC,"CHILDRENS, YOUNG PEOPLE AND FAMILIES",STH EARLY HELP-DDCOT,MATERIALS,16/06/2022,8303424524,24.98,AMZNMKTPLACE AMAZON.CO
OXFORDSHIRE CC,"CHILDRENS, YOUNG PEOPLE AND FAMILIES",STH EARLY HELP-DDCOT,MATERIALS,16/06/2022,8303424528,7.89,AMZNMKTPLACE AMAZON.CO
OXFORDSHIRE CC,"CHILDRENS, YOUNG PEOPLE AND FAMILIES",HOUSE PROJECT,OTHER TRANSPORT ARRANGEMENTS,16/06/2022,8303424532,7.00,WESTGATE OXFORD CAR PA
OXFORDSHIRE CC,"CHILDRENS, YOUNG PEOPLE AND FAMILIES",CHILDREN IN CARE NON-STAFFING - CENTRL 2,PAYMENTS TO TRANSPORT OPERATORS,16/06/2022,8303424956,-28.30,TRAINLINE.COM
OXFORDSHIRE CC,"CHILDRENS, YOUNG PEOPLE AND FAMILIES","	LEAVING CARE NORTH",MATERIALS,16/06/2022,8303424962,9.00,POUNDLAND LTD
OXFORDSHIRE CC,"CHILDRENS, YOUNG PEOPLE AND FAMILIES","	LEAVING CARE NORTH",CATERING PROVISIONS,16/06/2022,8303424966,28.05,CO-OPERATIVE FOOD
OXFORDSHIRE CC,SOCIAL AND COMMUNITY SERVICES,FLEET OPERATIONS,PAYMENT TO GOVERNMENT DEPARTMENTS,16/06/2022,8303425384,63.00,VALE OF WHITE HORS
OXFORDSHIRE CC,"CHILDRENS, YOUNG PEOPLE AND FAMILIES",EYNSHAM,OTHER COMMUNICATIONS,16/06/2022,8303425396,10.99,NETFLIX.COM
OXFORDSHIRE CC,CORPORATE CORE,,STATIONERY,16/06/2022,8303425404,92.38,LYRECO UK LTD
OXFORDSHIRE CC,CORPORATE CORE,,STATIONERY,16/06/2022,8303425408,18.00,LYRECO UK LTD
OXFORDSHIRE CC,CORPORATE CORE,,STATIONERY,16/06/2022,8303425412,27.84,LYRECO UK LTD
OXFORDSHIRE CC,CORPORATE CORE,,STATIONERY,16/06/2022,8303425418,14.64,LYRECO UK LTD
OXFORDSHIRE CC,ENTERPRISEVC,,CAR LEASING - PRIVATE RENTALS,16/06/2022,8303425422,73.90,ENTERPRISE RENT-A-CAR
OXFORDSHIRE CC,ENTERPRISEVC,,CAR LEASING - PRIVATE RENTALS,16/06/2022,8303425424,81.95,ENTERPRISE RENT-A-CAR
OXFORDSHIRE CC,SOCIAL AND COMMUNITY SERVICES,CSS - OXFORD,CATERING PROVISIONS,16/06/2022,8303424086,26.08,ALDI STORES 775-142
OXFORDSHIRE CC,"CHILDRENS, YOUNG PEOPLE AND FAMILIES","	LEAVING CARE NORTH",OTHER EXPENSES,16/06/2022,8303424092,75.50,HM PASSPORT OFFICE
OXFORDSHIRE CC,"CHILDRENS, YOUNG PEOPLE AND FAMILIES",FAMILY SOLUTIONS PLUS NON-STAFF � SOUTH,OTHER TRANSPORT ARRANGEMENTS,16/06/2022,8303424098,92.00,WWW.THEKEY.CO.UK
OXFORDSHIRE CC,SOCIAL AND COMMUNITY SERVICES,CSS - BANBURY,CATERING PROVISIONS,15/06/2022,8298231430,77.73,SAINSBURYS.CO.UK
OXFORDSHIRE CC,"CHILDRENS, YOUNG PEOPLE AND FAMILIES",DISABILITIES TEAM S,PAYMENT TO GOVERNMENT DEPARTMENTS,15/06/2022,8298231438,-38.75,GEN REGISTER OFFICE
OXFORDSHIRE CC,SOCIAL AND COMMUNITY SERVICES,CSS - OXFORD,CATERING PROVISIONS,15/06/2022,8298231480,19.32,ALDI STORES 775-142
OXFORDSHIRE CC,"CHILDRENS, YOUNG PEOPLE AND FAMILIES",40 THE MOORS,DOMESTIC SUPPLIES,15/06/2022,8298231590,42.12,AMZNMKTPLACE AMAZON.CO
OXFORDSHIRE CC,"CHILDRENS, YOUNG PEOPLE AND FAMILIES",40 THE MOORS,CATERING PROVISIONS,15/06/2022,8298231568,23.95,SAINSBURYS S/MKTS
OXFORDSHIRE CC,"CHILDRENS, YOUNG PEOPLE AND FAMILIES",40 THE MOORS,CATERING PROVISIONS,15/06/2022,8298231574,247.45,SAINSBURYS.CO.UK
OXFORDSHIRE CC,"CHILDRENS, YOUNG PEOPLE AND FAMILIES",40 THE MOORS,MATERIALS,15/06/2022,8298231578,6.00,ARGOS KIDLINGTON INSID
OXFORDSHIRE CC,"CHILDRENS, YOUNG PEOPLE AND FAMILIES",40 THE MOORS,OTHER TRANSPORT ARRANGEMENTS,15/06/2022,8298231584,20.00,WWW.THEKEY.CO.UK
OXFORDSHIRE CC,"CHILDRENS, YOUNG PEOPLE AND FAMILIES","	LOOKED AFTER NORTH",CATERING,15/06/2022,8298231884,12.07,MCDONALDS
OXFORDSHIRE CC,"CHILDRENS, YOUNG PEOPLE AND FAMILIES","	LOOKED AFTER NORTH",CATERING,15/06/2022,8298231892,7.28,MCDONALDS
OXFORDSHIRE CC,"CHILDRENS, YOUNG PEOPLE AND FAMILIES","	LOOKED AFTER NORTH",CATERING,15/06/2022,8298231900,8.80,MCDONALDS
OXFORDSHIRE CC,CORPORATE CORE,INCOME TEAM,PAYMENT TO GOVERNMENT DEPARTMENTS,15/06/2022,8298231528,1.50,FIND A WILL
OXFORDSHIRE CC,"CHILDRENS, YOUNG PEOPLE AND FAMILIES","	LEAVING CARE SOUTH",CATERING PROVISIONS,15/06/2022,8298231666,5.00,TESCO STORE 2413
OXFORDSHIRE CC,"CHILDRENS, YOUNG PEOPLE AND FAMILIES","	LEAVING CARE SOUTH",PAYMENTS TO TRANSPORT OPERATORS,15/06/2022,8298231660,66.43,THETRAINLINE.COM
OXFORDSHIRE CC,"CHILDRENS, YOUNG PEOPLE AND FAMILIES","	LEAVING CARE SOUTH",OTHER EXPENSES,15/06/2022,8298231674,30.00,TESCO STORE 2413
OXFORDSHIRE CC,CORPORATE CORE,INCOME TEAM,PAYMENT TO GOVERNMENT DEPARTMENTS,15/06/2022,8298231532,1.50,FIND A WILL
OXFORDSHIRE CC,CORPORATE CORE,INCOME TEAM,PAYMENT TO GOVERNMENT DEPARTMENTS,15/06/2022,8298231536,11.00,OXFORDSHIRE CC WEB1
OXFORDSHIRE CC,"CHILDRENS, YOUNG PEOPLE AND FAMILIES",EYNSHAM,CATERING PROVISIONS,15/06/2022,8298231544,6.25,CO-OPERATIVE FOOD
OXFORDSHIRE CC,"CHILDRENS, YOUNG PEOPLE AND FAMILIES",EYNSHAM,EQUIPMENT,15/06/2022,8298231550,8.25,EVENLODE DIY
OXFORDSHIRE CC,"CHILDRENS, YOUNG PEOPLE AND FAMILIES","	LEAVING CARE SOUTH",MATERIALS,15/06/2022,8298231682,.69,CARD FACTORY
OXFORDSHIRE CC,"CHILDRENS, YOUNG PEOPLE AND FAMILIES","	LEAVING CARE SOUTH",MATERIALS,15/06/2022,8298231686,7.74,CARD FACTORY
OXFORDSHIRE CC,"CHILDRENS, YOUNG PEOPLE AND FAMILIES","	LEAVING CARE NORTH",PAYMENTS TO TRANSPORT OPERATORS,15/06/2022,8298231696,19.05,THETRAINLINE.COM
OXFORDSHIRE CC,"CHILDRENS, YOUNG PEOPLE AND FAMILIES","	LEAVING CARE NORTH",CATERING PROVISIONS,15/06/2022,8298231706,6.15,TESCO STORES 5966
OXFORDSHIRE CC,CORPORATE CORE,LEADERSHIP TEAM,PAYMENTS TO TRANSPORT OPERATORS,15/06/2022,8298231744,-54.30,WWW.GWR.COM
OXFORDSHIRE CC,CORPORATE CORE,LEADERSHIP TEAM,PAYMENTS TO TRANSPORT OPERATORS,15/06/2022,8298231738,-14.40,WWW.GWR.COM
OXFORDSHIRE CC,CORPORATE CORE,SCHOOLS FM CATERING AREA 1,HARDWARE AND CROCKERY,15/06/2022,8298233348,14.99,SCREWFIX DIR LTD
OXFORDSHIRE CC,"CHILDRENS, YOUNG PEOPLE AND FAMILIES","	BUSINESS DEVELOPMENT",MATERIALS,15/06/2022,8298233372,43.00,ARGOS LTD
OXFORDSHIRE CC,"CHILDRENS, YOUNG PEOPLE AND FAMILIES","	BUSINESS DEVELOPMENT",MATERIALS,15/06/2022,8298233380,121.50,ARGOS LTD
OXFORDSHIRE CC,"CHILDRENS, YOUNG PEOPLE AND FAMILIES","	BUSINESS DEVELOPMENT",STATIONERY,15/06/2022,8298233386,49.40,PRINTPOND.CO.UK
OXFORDSHIRE CC,"CHILDRENS, YOUNG PEOPLE AND FAMILIES","	BUSINESS DEVELOPMENT",MATERIALS,15/06/2022,8298233388,57.00,AMZNMKTPLACE
OXFORDSHIRE CC,"CHILDRENS, YOUNG PEOPLE AND FAMILIES","	LEAVING CARE NORTH",MATERIALS,15/06/2022,8298231256,44.99,ARGOS BANBURY INSI
OXFORDSHIRE CC,"CHILDRENS, YOUNG PEOPLE AND FAMILIES","	LEAVING CARE NORTH",CATERING,15/06/2022,8298231260,5.73,MCDONALDS
OXFORDSHIRE CC,"CHILDRENS, YOUNG PEOPLE AND FAMILIES","	LEAVING CARE NORTH",CLOTHING AND UNIFORMS,15/06/2022,8298231264,68.50,PRIMARK 693
OXFORDSHIRE CC,"CHILDRENS, YOUNG PEOPLE AND FAMILIES",40 THE MOORS,CLEANING MATERIALS,15/06/2022,8298231594,27.48,AMZNMKTPLACE AMAZON.CO
OXFORDSHIRE CC,CORPORATE CORE,LEADERSHIP TEAM,PAYMENTS TO TRANSPORT OPERATORS,15/06/2022,8298231750,-61.20,WWW.GWR.COM
OXFORDSHIRE CC,CORPORATE CORE,LEADERSHIP TEAM,PAYMENTS TO TRANSPORT OPERATORS,15/06/2022,8298231754,-14.40,WWW.GWR.COM
OXFORDSHIRE CC,CORPORATE CORE,LEADERSHIP TEAM,PAYMENTS TO TRANSPORT OPERATORS,15/06/2022,8298231762,-73.00,WWW.GWR.COM
OXFORDSHIRE CC,"CHILDRENS, YOUNG PEOPLE AND FAMILIES",EYNSHAM,POSTAGE AND DELIVERY,15/06/2022,8298231768,1.80,POST OFFICE COUNTER
OXFORDSHIRE CC,"CHILDRENS, YOUNG PEOPLE AND FAMILIES","	SEN/ICT EQUIPMENT",IT SOFTWARE,15/06/2022,8298231786,86.84,PAYPRO 448003688867
OXFORDSHIRE CC,"CHILDRENS, YOUNG PEOPLE AND FAMILIES",HOUSE PROJECT,MATERIALS,15/06/2022,8298231810,12.12,EXECUTIVE SECURITY
OXFORDSHIRE CC,"CHILDRENS, YOUNG PEOPLE AND FAMILIES",FIELDWORK UASC,OTHER TRANSPORT ARRANGEMENTS,15/06/2022,8298231954,4.50,OXFORD BUS COMPANY
OXFORDSHIRE CC,"CHILDRENS, YOUNG PEOPLE AND FAMILIES",FIELDWORK UASC,PAYMENTS TO TRANSPORT OPERATORS,15/06/2022,8298231960,53.20,GWR OXFORD SST
OXFORDSHIRE CC,"CHILDRENS, YOUNG PEOPLE AND FAMILIES",FSP NON-STAFFING - CENTRAL,MATERIALS,15/06/2022,8298231964,29.98,AMAZON.CO.UK 2C6B57D24
OXFORDSHIRE CC,"CHILDRENS, YOUNG PEOPLE AND FAMILIES",FSP NON-STAFFING - CENTRAL,MATERIALS,15/06/2022,8298231970,44.97,AMAZON.CO.UK 2C7FN3DE4
OXFORDSHIRE CC,"CHILDRENS, YOUNG PEOPLE AND FAMILIES","	RIVERSIDE CENTRE",EDUCATIONAL AND VOCATIONAL TRAINING ,15/06/2022,8298231982,19.20,VIRTUAL COLLEGE LIMITE
OXFORDSHIRE CC,"CHILDRENS, YOUNG PEOPLE AND FAMILIES",SCHOOLS FM CATERING AREA 3,MATERIALS,15/06/2022,8298232010,-7.99,AMAZON PRIME
OXFORDSHIRE CC,"CHILDRENS, YOUNG PEOPLE AND FAMILIES",FAMILY SOLUTIONS PLUS NON-STAFF - NORTH,HIRE OF ACCOMMODATION AND FACILITIES,15/06/2022,8298232022,81.58,TRAVELODGE
OXFORDSHIRE CC,"CHILDRENS, YOUNG PEOPLE AND FAMILIES","	LEAVING CARE NORTH",CATERING PROVISIONS,15/06/2022,8298231266,13.16,LIDL GB  HIGH WYCOMBE
OXFORDSHIRE CC,ENVIRONMENT AND ECONOMY,"	TVERC",IT SERVICES,15/06/2022,8298231270,120.00,PAYPAL  SARAH HAYES
OXFORDSHIRE CC,SOCIAL AND COMMUNITY SERVICES,CSS - OXFORD,HOSPITALITY EXPENSES,15/06/2022,8298231276,105.95,THE SIX BELLS
OXFORDSHIRE CC,"CHILDRENS, YOUNG PEOPLE AND FAMILIES",FAMILY SOLUTIONS PLUS NON-STAFF - NORTH,TELEPHONE - EQUIPMENT,15/06/2022,8298231286,10.00,VESTA   VODAFONE TOPUP
OXFORDSHIRE CC,"CHILDRENS, YOUNG PEOPLE AND FAMILIES",EET SERVICE,PAYMENTS TO VOLUNTARY BODIES,15/06/2022,8298231312,75.00,SUMUP   ONE-EIGHTY
OXFORDSHIRE CC,"CHILDRENS, YOUNG PEOPLE AND FAMILIES",PAUSE PROGRAMME,POSTAGE AND DELIVERY,15/06/2022,8298231800,13.60,POST OFFICE COUNTER
OXFORDSHIRE CC,"CHILDRENS, YOUNG PEOPLE AND FAMILIES","	OCCG GRANT",OTHER EXPENSES,15/06/2022,8298231832,12.50,WILKO RETAIL LIMITED
OXFORDSHIRE CC,"CHILDRENS, YOUNG PEOPLE AND FAMILIES","	OCCG GRANT",CATERING,15/06/2022,8298231838,3.45,COSTA TEMPLARS
OXFORDSHIRE CC,"CHILDRENS, YOUNG PEOPLE AND FAMILIES",HOUSE PROJECT,HOSPITALITY EXPENSES,15/06/2022,8298231818,2.95,KINGS ARMS
OXFORDSHIRE CC,"CHILDRENS, YOUNG PEOPLE AND FAMILIES",HOUSE PROJECT,HOSPITALITY EXPENSES,15/06/2022,8298231824,7.99,KINGS ARMS
OXFORDSHIRE CC,CORPORATE CORE,SCHOOLS FM CATERING AREA 4,CATERING PROVISIONS,15/06/2022,8298232060,53.23,SAINSBURYS.CO.UK
OXFORDSHIRE CC,"CHILDRENS, YOUNG PEOPLE AND FAMILIES","	LEAVING CARE CITY 2",OTHER TRANSPORT ARRANGEMENTS,15/06/2022,8298232068,4.30,STGCOACH/CTYLINK
OXFORDSHIRE CC,"CHILDRENS, YOUNG PEOPLE AND FAMILIES","	OCCG GRANT",DOMESTIC AND CLEANING EQUIPMENT,15/06/2022,8298232092,2.50,SAINSBURY'S S/MKT
OXFORDSHIRE CC,"CHILDRENS, YOUNG PEOPLE AND FAMILIES",FAMILY SOLUTIONS PLUS NON-STAFF - NORTH,CLOTHING AND UNIFORMS,15/06/2022,8298232098,41.00,SAINSBURY'S S/MKT
OXFORDSHIRE CC,"CHILDRENS, YOUNG PEOPLE AND FAMILIES",CHILDREN IN CARE NON-STAFFING - CENTRL 1,CLOTHING AND UNIFORMS,15/06/2022,8298232108,57.20,PRIMARK 440
OXFORDSHIRE CC,"CHILDRENS, YOUNG PEOPLE AND FAMILIES",HOUSE PROJECT,CATERING,15/06/2022,8298232114,19.50,WILLIAM MORRIS
OXFORDSHIRE CC,"CHILDRENS, YOUNG PEOPLE AND FAMILIES",HOUSE PROJECT,HOSPITALITY EXPENSES,15/06/2022,8298232126,6.45,KINGS ARMS
OXFORDSHIRE CC,"CHILDRENS, YOUNG PEOPLE AND FAMILIES",HOUSE PROJECT,HOSPITALITY EXPENSES,15/06/2022,8298232120,15.98,KINGS ARMS
OXFORDSHIRE CC,"CHILDRENS, YOUNG PEOPLE AND FAMILIES",DIDCOT MOVE-ON HOME,CATERING PROVISIONS,15/06/2022,8298232190,16.14,HOME BARGAINS
OXFORDSHIRE CC,"CHILDRENS, YOUNG PEOPLE AND FAMILIES",EET SERVICE,PAYMENTS TO VOLUNTARY BODIES,15/06/2022,8298231320,75.00,SUMUP   ONE-EIGHTY
OXFORDSHIRE CC,"CHILDRENS, YOUNG PEOPLE AND FAMILIES",THAME E&A HOME,CATERING PROVISIONS,15/06/2022,8298231326,3.50,SAINSBURYS SUPERMA
OXFORDSHIRE CC,"CHILDRENS, YOUNG PEOPLE AND FAMILIES","	OCCG GRANT",CATERING,15/06/2022,8298231840,3.45,COSTA TEMPLARS
OXFORDSHIRE CC,"CHILDRENS, YOUNG PEOPLE AND FAMILIES","	OCCG GRANT",CATERING PROVISIONS,15/06/2022,8298231848,1.50,ASDA STORES 4524
OXFORDSHIRE CC,"CHILDRENS, YOUNG PEOPLE AND FAMILIES","	OCCG GRANT",CATERING PROVISIONS,15/06/2022,8298231856,7.00,TESCO-STORES 6475
OXFORDSHIRE CC,"CHILDRENS, YOUNG PEOPLE AND FAMILIES","	OCCG GRANT",VEHICLE FUEL,15/06/2022,8298231864,115.05,TESCO PFS 3700
OXFORDSHIRE CC,"CHILDRENS, YOUNG PEOPLE AND FAMILIES","	LEAVING CARE NORTH",OTHER TRANSPORT ARRANGEMENTS,15/06/2022,8298232204,1.05,LONDON BOROUGH OF RICH
OXFORDSHIRE CC,"CHILDRENS, YOUNG PEOPLE AND FAMILIES","	LEAVING CARE NORTH",OTHER TRANSPORT ARRANGEMENTS,15/06/2022,8298232198,4.30,LONDON BOROUGH OF RICH
OXFORDSHIRE CC,"CHILDRENS, YOUNG PEOPLE AND FAMILIES","	LEAVING CARE NORTH",OTHER TRANSPORT ARRANGEMENTS,15/06/2022,8298232208,5.85,LONDON BOROUGH OF RICH
OXFORDSHIRE CC,"CHILDRENS, YOUNG PEOPLE AND FAMILIES","	LEAVING CARE NORTH",OTHER TRANSPORT ARRANGEMENTS,15/06/2022,8298232214,.70,LONDON BOROUGH OF RICH
OXFORDSHIRE CC,"CHILDRENS, YOUNG PEOPLE AND FAMILIES","	LEAVING CARE NORTH",CATERING PROVISIONS,15/06/2022,8298232220,8.41,LIDL GB RICHMOND
OXFORDSHIRE CC,"CHILDRENS, YOUNG PEOPLE AND FAMILIES",FAMILY SOLUTIONS PLUS NON-STAFF - NORTH,PAYMENTS TO TRANSPORT OPERATORS,15/06/2022,8298232244,64.19,THETRAINLINE.COM
OXFORDSHIRE CC,"CHILDRENS, YOUNG PEOPLE AND FAMILIES",QUALITY ASSURANCE NORTH TEAM,HIRE OF ACCOMMODATION AND FACILITIES,15/06/2022,8298232228,104.50,PREMIER INN
OXFORDSHIRE CC,"CHILDRENS, YOUNG PEOPLE AND FAMILIES",CHILDREN IN CARE NON-STAFFING - SOUTH,HIRE OF ACCOMMODATION AND FACILITIES,15/06/2022,8298231014,223.56,HOTEL AT BOOKING.COM
OXFORDSHIRE CC,"CHILDRENS, YOUNG PEOPLE AND FAMILIES",CHILDREN IN CARE NON-STAFFING - SOUTH,HIRE OF ACCOMMODATION AND FACILITIES,15/06/2022,8298231018,461.98,HOTEL AT BOOKING.COM
OXFORDSHIRE CC,SOCIAL AND COMMUNITY SERVICES,SCHOOLS FM CATERING AREA 4,CATERING PROVISIONS,15/06/2022,8298231344,49.84,SAINSBURYS S/MKTS
OXFORDSHIRE CC,"CHILDRENS, YOUNG PEOPLE AND FAMILIES",THAME E&A HOME,MATERIALS,15/06/2022,8298231332,26.48,AMZNMKTPLACE
OXFORDSHIRE CC,SOCIAL AND COMMUNITY SERVICES,SCHOOLS FM CATERING AREA 4,CATERING PROVISIONS,15/06/2022,8298231340,24.00,CO-OPERATIVE FOOD
OXFORDSHIRE CC,"CHILDRENS, YOUNG PEOPLE AND FAMILIES",FAMILY SOLUTIONS PLUS NON-STAFF - NORTH,PAYMENTS TO TRANSPORT OPERATORS,15/06/2022,8298232252,32.39,THETRAINLINE.COM
OXFORDSHIRE CC,"CHILDRENS, YOUNG PEOPLE AND FAMILIES",FAMILY SOLUTIONS PLUS NON-STAFF - NORTH,OTHER TRANSPORT ARRANGEMENTS,15/06/2022,8298232258,72.00,SQ  1ST CALL SWINDON T
OXFORDSHIRE CC,"CHILDRENS, YOUNG PEOPLE AND FAMILIES",FAMILY SOLUTIONS PLUS NON-STAFF - NORTH,OTHER TRANSPORT ARRANGEMENTS,15/06/2022,8298232262,78.00,STAGECOACH SERVICE
OXFORDSHIRE CC,"CHILDRENS, YOUNG PEOPLE AND FAMILIES",FAMILY SOLUTIONS PLUS NON-STAFF - NORTH,OTHER TRANSPORT ARRANGEMENTS,15/06/2022,8298232266,78.00,STAGECOACH SERVICE
OXFORDSHIRE CC,ENVIRONMENT AND ECONOMY,MAJOR INFRASTRUCTURE DELIVERY,POSTAGE AND DELIVERY,15/06/2022,8298232282,-15.45,ROYAL MAIL GROUP LTD
OXFORDSHIRE CC,SOCIAL AND COMMUNITY SERVICES,SCHOOLS FM CATERING AREA 2,CATERING PROVISIONS,15/06/2022,8298232340,11.20,SAINSBURYS S/MKTS
OXFORDSHIRE CC,SOCIAL AND COMMUNITY SERVICES,SCHOOLS FM CATERING AREA 2,CATERING PROVISIONS,15/06/2022,8298232350,2.00,ASDA STORE 4442
OXFORDSHIRE CC,SOCIAL AND COMMUNITY SERVICES,SCHOOLS FM CATERING AREA 2,CATERING,15/06/2022,8298232356,35.91,BOOKER LIMITED OXFORD
OXFORDSHIRE CC,ENVIRONMENT AND ECONOMY,"	KNIGHTS COURT",CATERING PROVISIONS,15/06/2022,8298232368,3.00,CO-OPERATIVE FOOD
OXFORDSHIRE CC,SOCIAL AND COMMUNITY SERVICES,SCHOOLS FM CATERING AREA 4,MATERIALS,15/06/2022,8298231350,5.99,AMZNMKTPLACE
OXFORDSHIRE CC,SOCIAL AND COMMUNITY SERVICES,SCHOOLS FM CATERING AREA 4,MATERIALS,15/06/2022,8298231354,523.74,WWW.E4E.CO.UK
OXFORDSHIRE CC,"CHILDRENS, YOUNG PEOPLE AND FAMILIES",CHILDREN IN CARE NON-STAFFING - CENTRL 1,PAYMENT TO GOVERNMENT DEPARTMENTS,15/06/2022,8298232384,34.00,DVLA DRIVER ONLINE
OXFORDSHIRE CC,"CHILDRENS, YOUNG PEOPLE AND FAMILIES","	LEAVING CARE CITY 2",MATERIALS,15/06/2022,8298232392,31.25,POUNDLAND LTD 1586
OXFORDSHIRE CC,CORPORATE CORE,OPERATIONS,MATERIALS,15/06/2022,8298232552,4.97,AMZNMKTPLACE
OXFORDSHIRE CC,CORPORATE CORE,OPERATIONS,MATERIALS,15/06/2022,8298232558,23.98,AMZNMKTPLACE
OXFORDSHIRE CC,CORPORATE CORE,OPERATIONS,MATERIALS,15/06/2022,8298232564,5.58,AMZNMKTPLACE
OXFORDSHIRE CC,CORPORATE CORE,HOME LIBRARY SERVICE,STATIONERY,15/06/2022,8298232572,71.60,AMZNMKTPLACE
OXFORDSHIRE CC,"CHILDRENS, YOUNG PEOPLE AND FAMILIES","	DISABILITIES TEAM-C",PAYMENTS TO TRANSPORT OPERATORS,15/06/2022,8298231380,102.90,TRAINLINE
OXFORDSHIRE CC,CORPORATE CORE,"MARKETING, COMMUNICATIONS & ENGAGEMENT",PHOTOCOPYING,15/06/2022,8298232482,5.24,CANVA  03451-8292962
OXFORDSHIRE CC,CORPORATE CORE,OPERATIONS,MATERIALS,15/06/2022,8298232584,26.97,AMZNMKTPLACE
OXFORDSHIRE CC,CORPORATE CORE,OPERATIONS,MATERIALS,15/06/2022,8298232590,58.35,AMZNMKTPLACE
OXFORDSHIRE CC,CORPORATE CORE,OPERATIONS,MATERIALS,15/06/2022,8298232576,13.47,AMZNMKTPLACE
OXFORDSHIRE CC,CORPORATE CORE,OPERATIONS,MATERIALS,15/06/2022,8298232598,8.49,AMZNMKTPLACE
OXFORDSHIRE CC,"CHILDRENS, YOUNG PEOPLE AND FAMILIES",CHILDREN IN CARE NON-STAFFING - SOUTH,HIRE OF ACCOMMODATION AND FACILITIES,15/06/2022,8298231026,238.38,HOTEL AT BOOKING.COM
OXFORDSHIRE CC,"CHILDRENS, YOUNG PEOPLE AND FAMILIES",CHILDREN IN CARE NON-STAFFING - CENTRL 1,MATERIALS,15/06/2022,8298231384,4.99,AMZNMKTPLACE
OXFORDSHIRE CC,"CHILDRENS, YOUNG PEOPLE AND FAMILIES","	LOOKED AFTER CITY 2",CATERING,15/06/2022,8298232658,5.50,COSTA COFFEE 43039930
OXFORDSHIRE CC,"CHILDRENS, YOUNG PEOPLE AND FAMILIES","	LOOKED AFTER CITY 2",OTHER TRANSPORT ARRANGEMENTS,15/06/2022,8298232668,6.00,OXFORDBUS.CO.UK
OXFORDSHIRE CC,"CHILDRENS, YOUNG PEOPLE AND FAMILIES","	LOOKED AFTER CITY 2",ENTERTAINMENT EXPENSES,15/06/2022,8298232672,44.00,AQUAPARCS
OXFORDSHIRE CC,"CHILDRENS, YOUNG PEOPLE AND FAMILIES",CHILDREN IN CARE NON-STAFFING - SOUTH,PAYMENTS TO TRANSPORT OPERATORS,15/06/2022,8298231034,335.40,WWW.AVANTIWESTCOAST.CO
OXFORDSHIRE CC,"CHILDRENS, YOUNG PEOPLE AND FAMILIES","	LEAVING CARE CITY 2","SUPPLIES, STATIONERY AND MATERIALS",15/06/2022,8298231040,22.33,AMZNMKTPLACE
OXFORDSHIRE CC,"CHILDRENS, YOUNG PEOPLE AND FAMILIES",CHILDREN IN CARE NON-STAFFING - SOUTH,HIRE OF ACCOMMODATION AND FACILITIES,15/06/2022,8298231046,-230.99,HOTEL AT BOOKING.COM
OXFORDSHIRE CC,"CHILDRENS, YOUNG PEOPLE AND FAMILIES",CHILDREN IN CARE NON-STAFFING - SOUTH,HIRE OF ACCOMMODATION AND FACILITIES,15/06/2022,8298231050,-230.99,HOTEL AT BOOKING.COM
OXFORDSHIRE CC,"CHILDRENS, YOUNG PEOPLE AND FAMILIES","	LEAVING CARE NORTH",CATERING PROVISIONS,15/06/2022,8298232762,12.00,B&M 236 - COWLEY
OXFORDSHIRE CC,"CHILDRENS, YOUNG PEOPLE AND FAMILIES","	LEAVING CARE NORTH",CATERING PROVISIONS,15/06/2022,8298232766,50.00,WILKO RETAIL LIMITED
OXFORDSHIRE CC,"CHILDRENS, YOUNG PEOPLE AND FAMILIES","	LEAVING CARE NORTH",CATERING PROVISIONS,15/06/2022,8298232772,27.35,WILKO RETAIL LIMITED
OXFORDSHIRE CC,SOCIAL AND COMMUNITY SERVICES,CSS WANTAGE,CATERING PROVISIONS,15/06/2022,8298232792,12.00,SAINSBURYS S/MKTS
OXFORDSHIRE CC,"CHILDRENS, YOUNG PEOPLE AND FAMILIES","	MALTFIELD HOUSE",CATERING PROVISIONS,15/06/2022,8298232828,4.10,SAINSBURYS S/MKTS
OXFORDSHIRE CC,"CHILDRENS, YOUNG PEOPLE AND FAMILIES",40 THE MOORS,CATERING,15/06/2022,8298232856,47.73,DOMINO S PIZZA
OXFORDSHIRE CC,"CHILDRENS, YOUNG PEOPLE AND FAMILIES","	LOOKED AFTER SOUTH",PAYMENTS TO TRANSPORT OPERATORS,15/06/2022,8298232868,10.69,THETRAINLINE.COM
OXFORDSHIRE CC,ENVIRONMENT AND ECONOMY,HOLDING CODE FOR REA,HARDWARE AND CROCKERY,15/06/2022,8298231140,6.49,SCREWFIX DIR LTD
OXFORDSHIRE CC,ENVIRONMENT AND ECONOMY,HOLDING CODE FOR REA,HARDWARE AND CROCKERY,15/06/2022,8298231148,19.18,JOHN NICHOLLS KIDLINGT
OXFORDSHIRE CC,"CHILDRENS, YOUNG PEOPLE AND FAMILIES",UASC 16&17,OTHER TRANSPORT ARRANGEMENTS,15/06/2022,8298231156,22.50,OXFORD BUS CO
OXFORDSHIRE CC,"CHILDRENS, YOUNG PEOPLE AND FAMILIES",CNTL EARLY HELP-BRTN,VEHICLE FUEL,15/06/2022,8298232986,3.60,BP WOODSTOCK F/STN
OXFORDSHIRE CC,"CHILDRENS, YOUNG PEOPLE AND FAMILIES",DIDCOT MOVE-ON HOME,MATERIALS,15/06/2022,8298232996,37.25,AMZNMKTPLACE AMAZON.CO
OXFORDSHIRE CC,"CHILDRENS, YOUNG PEOPLE AND FAMILIES",FSP NON-STAFFING - CENTRAL,MATERIALS,15/06/2022,8298233018,48.10,WWW.GWR.COM
OXFORDSHIRE CC,ENVIRONMENT AND ECONOMY,"	KNIGHTS COURT",OTHER PREMISES RELATED COSTS,15/06/2022,8298233024,6.25,WILKO RETAIL LIMITED
OXFORDSHIRE CC,CORPORATE CORE,ICT OPERATIONS & MAI,MATERIALS,15/06/2022,8298233040,108.40,AMZNMKTPLACE
OXFORDSHIRE CC,"CHILDRENS, YOUNG PEOPLE AND FAMILIES","	LOOKED AFTER CITY 1",RESIDENTIAL ACTIVITIES,15/06/2022,8298231198,34.99,PUREGYM LIMITED
OXFORDSHIRE CC,"CHILDRENS, YOUNG PEOPLE AND FAMILIES","	LOOKED AFTER CITY 1",RESIDENTIAL ACTIVITIES,15/06/2022,8298231206,24.99,BUZZ GYM
OXFORDSHIRE CC,ENVIRONMENT AND ECONOMY,HARD FM,HARDWARE AND CROCKERY,15/06/2022,8298231220,11.40,WICKES BANBURY
OXFORDSHIRE CC,"CHILDRENS, YOUNG PEOPLE AND FAMILIES",KINGFISHER,HIRE OF ACCOMMODATION AND FACILITIES,15/06/2022,8298233086,87.70,GWR OXFORD SST
OXFORDSHIRE CC,"CHILDRENS, YOUNG PEOPLE AND FAMILIES",KINGFISHER,HIRE OF ACCOMMODATION AND FACILITIES,15/06/2022,8298233090,2.20,MAN STATION TVM
OXFORDSHIRE CC,"CHILDRENS, YOUNG PEOPLE AND FAMILIES",KINGFISHER,CATERING PROVISIONS,15/06/2022,8298233096,2.40,UPPER CRUST
OXFORDSHIRE CC,"CHILDRENS, YOUNG PEOPLE AND FAMILIES",EDT,HIRE OF ACCOMMODATION AND FACILITIES,15/06/2022,8298233138,108.50,PREMIER INN
OXFORDSHIRE CC,"CHILDRENS, YOUNG PEOPLE AND FAMILIES",KINGFISHER,HIRE OF ACCOMMODATION AND FACILITIES,15/06/2022,8298233100,8.87,JAMES MARTIN KITCHEN-1
OXFORDSHIRE CC,"CHILDRENS, YOUNG PEOPLE AND FAMILIES",KINGFISHER,HIRE OF ACCOMMODATION AND FACILITIES,15/06/2022,8298233108,3.40,FGW CONNECT WEB
OXFORDSHIRE CC,"CHILDRENS, YOUNG PEOPLE AND FAMILIES",KINGFISHER,HIRE OF ACCOMMODATION AND FACILITIES,15/06/2022,8298233114,9.10,ZTL HACKNEY CARRIAGE
OXFORDSHIRE CC,"CHILDRENS, YOUNG PEOPLE AND FAMILIES",CHILDREN IN CARE NON-STAFFING - SOUTH,CATERING,15/06/2022,8298233124,6.59,MCDONALDS983
OXFORDSHIRE CC,"CHILDRENS, YOUNG PEOPLE AND FAMILIES",CHILDREN IN CARE NON-STAFFING - SOUTH,CLOTHING AND UNIFORMS,15/06/2022,8298233130,41.79,BOOHOO.COM
OXFORDSHIRE CC,"CHILDRENS, YOUNG PEOPLE AND FAMILIES","	DIRECTOR'S OFFICE",CATERING,15/06/2022,8298233154,62.50,THE OXFORD FACTORY
OXFORDSHIRE CC,CORPORATE CORE,,STATIONERY,15/06/2022,8298233256,12.24,LYRECO UK LTD
OXFORDSHIRE CC,"CHILDRENS, YOUNG PEOPLE AND FAMILIES",EYNSHAM,CATERING PROVISIONS,15/06/2022,8298233236,29.60,CO-OPERATIVE FOOD
OXFORDSHIRE CC,CORPORATE CORE,,STATIONERY,15/06/2022,8298233262,25.85,LYRECO UK LTD
OXFORDSHIRE CC,"CHILDRENS, YOUNG PEOPLE AND FAMILIES",EYNSHAM,CATERING PROVISIONS,15/06/2022,8298233244,75.08,TESCO STORES 2008
OXFORDSHIRE CC,CORPORATE CORE,CATERING MANAGEMENT SOFT FM,CATERING,15/06/2022,8298233272,132.86,BRAKES (STORED CARDS)
OXFORDSHIRE CC,CORPORATE CORE,CATERING MANAGEMENT SOFT FM,CATERING,15/06/2022,8298233278,5.68,BRAKES (STORED CARDS)
OXFORDSHIRE CC,SOCIAL AND COMMUNITY SERVICES,LIBRARY PROJECTS,MATERIALS,15/06/2022,8298233310,105.93,BUY IT DIRECT
OXFORDSHIRE CC,ENVIRONMENT AND ECONOMY,HARD FM,OTHER TRANSPORT ARRANGEMENTS,15/06/2022,8298231224,1.95,NCP BANBURY MARLBOROUG
OXFORDSHIRE CC,ENVIRONMENT AND ECONOMY,HARD FM,HARDWARE AND CROCKERY,15/06/2022,8298231230,55.08,TOOLSTATION LTD
OXFORDSHIRE CC,ENVIRONMENT AND ECONOMY,HARD FM,HARDWARE AND CROCKERY,15/06/2022,8298231238,68.40,B AND Q
OXFORDSHIRE CC,CORPORATE CORE,SCHOOLS FM CATERING AREA 1,MATERIALS,15/06/2022,8298233354,25.55,HOME BARGAINS
OXFORDSHIRE CC,CORPORATE CORE,SCHOOLS FM CATERING AREA 1,CATERING PROVISIONS,15/06/2022,8298233358,5.65,TESCO STORES
OXFORDSHIRE CC,CORPORATE CORE,SCHOOLS FM CATERING AREA 1,CATERING,15/06/2022,8298233364,62.60,BOOKER LIMITED OXFORD
OXFORDSHIRE CC,"CHILDRENS, YOUNG PEOPLE AND FAMILIES",DIDCOT MOVE-ON HOME,CATERING PROVISIONS,15/06/2022,8298233436,12.24,SAINSBURYS S/MKTS
OXFORDSHIRE CC,ENVIRONMENT AND ECONOMY,HARD FM,VEHICLE FUEL,15/06/2022,8298233442,117.06,SAINSBURYS PETROL
OXFORDSHIRE CC,"CHILDRENS, YOUNG PEOPLE AND FAMILIES",NTS UASC AGENCY,EQUIPMENT,15/06/2022,8298233516,12.00,HALFORDS 0894
OXFORDSHIRE CC,CORPORATE CORE,ICT OPERATIONS & MAI,IT SERVICES,14/06/2022,8293534596,20.91,GITHUB
OXFORDSHIRE CC,CORPORATE CORE,ICT OPERATIONS & MAI,MATERIALS,14/06/2022,8293534598,11.98,AMZNMKTPLACE
OXFORDSHIRE CC,CORPORATE CORE,ICT OPERATIONS & MAI,MATERIALS,14/06/2022,8293534600,66.69,AMZNMKTPLACE
OXFORDSHIRE CC,CORPORATE CORE,ICT OPERATIONS & MAI,MATERIALS,14/06/2022,8293534602,66.69,AMZNMKTPLACE
OXFORDSHIRE CC,CORPORATE CORE,ICT OPERATIONS & MAI,PAYMENTS TO TRANSPORT OPERATORS,14/06/2022,8293534604,221.60,WWW.GWR.COM
OXFORDSHIRE CC,"CHILDRENS, YOUNG PEOPLE AND FAMILIES",TRANSPORT COSTS,TRANSPORT TO SCHOOL,14/06/2022,8293534152,79.00,WWW.THEKEY.CO.UK
OXFORDSHIRE CC,"CHILDRENS, YOUNG PEOPLE AND FAMILIES",TRANSPORT COSTS,TRANSPORT TO SCHOOL,14/06/2022,8293534154,79.00,WWW.THEKEY.CO.UK
OXFORDSHIRE CC,"CHILDRENS, YOUNG PEOPLE AND FAMILIES",FAMILY SOLUTIONS PLUS NON-STAFF - NORTH,PAYMENTS TO TRANSPORT OPERATORS,14/06/2022,8293534296,278.30,WWW.GWR.COM
OXFORDSHIRE CC,"CHILDRENS, YOUNG PEOPLE AND FAMILIES",DISABILITIES TEAM S,PAYMENT TO GOVERNMENT DEPARTMENTS,14/06/2022,8293534218,45.25,GEN REGISTER OFFICE
OXFORDSHIRE CC,"CHILDRENS, YOUNG PEOPLE AND FAMILIES",DISABILITIES TEAM S,PAYMENT TO GOVERNMENT DEPARTMENTS,14/06/2022,8293534220,45.25,GEN REGISTER OFFICE
OXFORDSHIRE CC,"CHILDRENS, YOUNG PEOPLE AND FAMILIES",THAME E&A HOME,CATERING PROVISIONS,14/06/2022,8293534232,256.83,TESCO STORES 2038
OXFORDSHIRE CC,"CHILDRENS, YOUNG PEOPLE AND FAMILIES",CNTL EARLY HELP-RHIL,CATERING PROVISIONS,14/06/2022,8293534240,6.15,TESCO STORES 4377
OXFORDSHIRE CC,"CHILDRENS, YOUNG PEOPLE AND FAMILIES","	LEAVING CARE CITY 2",CATERING,14/06/2022,8293534394,8.20,COSTA TEMPLARS
OXFORDSHIRE CC,"CHILDRENS, YOUNG PEOPLE AND FAMILIES",FAMILY SOLUTIONS PLUS NON-STAFF � SOUTH,PAYMENTS TO TRANSPORT OPERATORS,14/06/2022,8293534396,66.63,TRAINLINE.COM
OXFORDSHIRE CC,"CHILDRENS, YOUNG PEOPLE AND FAMILIES",FAMILY SOLUTIONS PLUS NON-STAFF � SOUTH,HIRE OF ACCOMMODATION AND FACILITIES,14/06/2022,8293534398,511.94,TRAVELODGE
OXFORDSHIRE CC,"CHILDRENS, YOUNG PEOPLE AND FAMILIES",PAUSE PROGRAMME,CATERING,14/06/2022,8293534400,3.80,43034270 COSTA COFFEE
OXFORDSHIRE CC,"CHILDRENS, YOUNG PEOPLE AND FAMILIES",40 THE MOORS,CATERING,14/06/2022,8293534548,47.76,JUST EAT
OXFORDSHIRE CC,"CHILDRENS, YOUNG PEOPLE AND FAMILIES",FSP NON-STAFFING - CENTRAL,HIRE OF ACCOMMODATION AND FACILITIES,14/06/2022,8293534250,169.29,TRAVELODGE
OXFORDSHIRE CC,"CHILDRENS, YOUNG PEOPLE AND FAMILIES",HOUSE PROJECT,PAYMENTS TO TRANSPORT OPERATORS,14/06/2022,8293534256,173.80,OXFORD PARKWAY
OXFORDSHIRE CC,SOCIAL AND COMMUNITY SERVICES,CHILDREN IN CARE NON-STAFFING - NORTH,PAYMENTS TO TRANSPORT OPERATORS,14/06/2022,8293534258,7.55,GWR OXFORD SST
OXFORDSHIRE CC,SOCIAL AND COMMUNITY SERVICES,CHILDREN IN CARE NON-STAFFING - NORTH,CATERING PROVISIONS,14/06/2022,8293534260,4.99,WH SMITH
OXFORDSHIRE CC,SOCIAL AND COMMUNITY SERVICES,CHILDREN IN CARE NON-STAFFING - NORTH,PAYMENTS TO TRANSPORT OPERATORS,14/06/2022,8293534262,20.70,CHILTERN RALIWAYS
OXFORDSHIRE CC,SOCIAL AND COMMUNITY SERVICES,CHILDREN IN CARE NON-STAFFING - NORTH,PAYMENTS TO TRANSPORT OPERATORS,14/06/2022,8293534264,20.70,CHILTERN RALIWAYS
OXFORDSHIRE CC,"CHILDRENS, YOUNG PEOPLE AND FAMILIES",FIELDWORK UASC,OTHER MISC INC,14/06/2022,8293534638,25.00,MARKS&SPENCER PLC
OXFORDSHIRE CC,"CHILDRENS, YOUNG PEOPLE AND FAMILIES",EYNSHAM,MATERIALS,14/06/2022,8293534640,17.84,AMZNMKTPLACE
OXFORDSHIRE CC,"CHILDRENS, YOUNG PEOPLE AND FAMILIES",EYNSHAM,MATERIALS,14/06/2022,8293534642,7.00,AMZNMKTPLACE
OXFORDSHIRE CC,CORPORATE CORE,,STATIONERY,14/06/2022,8293534644,78.94,LYRECO UK LTD
OXFORDSHIRE CC,ENVIRONMENT AND ECONOMY,HOLDING CODE FOR REA,EQUIPMENT,14/06/2022,8293534166,14.40,EVENLODE DIY
OXFORDSHIRE CC,"CHILDRENS, YOUNG PEOPLE AND FAMILIES",CSS WANTAGE,MATERIALS,14/06/2022,8293534168,24.99,AMZNMKTPLACE
OXFORDSHIRE CC,"CHILDRENS, YOUNG PEOPLE AND FAMILIES",THAME E&A HOME,VEHICLE FUEL,14/06/2022,8293534170,19.45,THAME BP SF CONNECT
OXFORDSHIRE CC,"CHILDRENS, YOUNG PEOPLE AND FAMILIES",UASC 16&17,OTHER TRANSPORT ARRANGEMENTS,14/06/2022,8293534172,79.00,WWW.THEKEY.CO.UK
OXFORDSHIRE CC,ENVIRONMENT AND ECONOMY,HARD FM,MATERIALS,14/06/2022,8293534176,703.20,ETI LTD
OXFORDSHIRE CC,ENVIRONMENT AND ECONOMY,"	TVERC",HIRED AND CONTRACTED SERVICES,14/06/2022,8293534178,3.00,LAND REGISTRY ECOM CCC
OXFORDSHIRE CC,SOCIAL AND COMMUNITY SERVICES,CSS BICESTER,CATERING PROVISIONS,14/06/2022,8293534180,47.63,TESCO STORE 2162
OXFORDSHIRE CC,"CHILDRENS, YOUNG PEOPLE AND FAMILIES","	LEAVING CARE CITY 1","SUPPLIES, STATIONERY AND MATERIALS",14/06/2022,8293534182,89.95,PP UK BIRTH CERTIFICAT
OXFORDSHIRE CC,SOCIAL AND COMMUNITY SERVICES,LEADERSHIP TEAM,HIRE OF ACCOMMODATION AND FACILITIES,14/06/2022,8293534578,231.52,TRAVELODGE
OXFORDSHIRE CC,CORPORATE CORE,OPERATIONS,MATERIALS,14/06/2022,8293534432,7.90,AMZNMKTPLACE
OXFORDSHIRE CC,SOCIAL AND COMMUNITY SERVICES,LEADERSHIP TEAM,PAYMENTS TO TRANSPORT OPERATORS,14/06/2022,8293534580,94.30,WWW.GWR.COM
OXFORDSHIRE CC,"CHILDRENS, YOUNG PEOPLE AND FAMILIES",DIDCOT MOVE-ON HOME,MATERIALS,14/06/2022,8293534590,92.79,AMZNMKTPLACE
OXFORDSHIRE CC,"CHILDRENS, YOUNG PEOPLE AND FAMILIES",FSP NON-STAFFING - CENTRAL,MATERIALS,14/06/2022,8293534594,47.30,WWW.GWR.COM
OXFORDSHIRE CC,"CHILDRENS, YOUNG PEOPLE AND FAMILIES",PAUSE PROGRAMME,OTHER TRANSPORT ARRANGEMENTS,14/06/2022,8293534276,6.00,OXFORDBUS.CO.UK
OXFORDSHIRE CC,"CHILDRENS, YOUNG PEOPLE AND FAMILIES",PAUSE PROGRAMME,STATIONERY,14/06/2022,8293534278,118.80,PITTS PRESENTATION PRO
OXFORDSHIRE CC,"CHILDRENS, YOUNG PEOPLE AND FAMILIES",VULNERABLE LEARNERS,EDUCATIONAL AND VOCATIONAL TRAINING ,14/06/2022,8293534282,312.00,WESTMINSTER FORUM PROJ
OXFORDSHIRE CC,"CHILDRENS, YOUNG PEOPLE AND FAMILIES",VULNERABLE LEARNERS,EDUCATIONAL AND VOCATIONAL TRAINING ,14/06/2022,8293534284,252.00,WESTMINSTER FORUM PROJ
OXFORDSHIRE CC,CORPORATE CORE,LIBRARY COLLECTIONS,"BOOKS, DVDS AND CDS",14/06/2022,8293534286,77.40,SP SCIENCE MUSEUM
OXFORDSHIRE CC,CORPORATE CORE,LIBRARY COLLECTIONS,"BOOKS, DVDS AND CDS",14/06/2022,8293534288,91.80,CURIOSITY BOX ORDER
OXFORDSHIRE CC,CORPORATE CORE,LIBRARY COLLECTIONS,"BOOKS, DVDS AND CDS",14/06/2022,8293534290,"2,935.70",OVERDRIVE DIST
OXFORDSHIRE CC,CORPORATE CORE,LIBRARY COLLECTIONS,"BOOKS, DVDS AND CDS",14/06/2022,8293534292,"3,713.45",OVERDRIVE DIST
OXFORDSHIRE CC,CORPORATE CORE,OPERATIONS,MATERIALS,14/06/2022,8293534434,7.99,AMZNMKTPLACE
OXFORDSHIRE CC,CORPORATE CORE,OPERATIONS,MATERIALS,14/06/2022,8293534436,11.96,AMZNMKTPLACE
OXFORDSHIRE CC,CORPORATE CORE,OPERATIONS,MATERIALS,14/06/2022,8293534438,29.35,AMZNMKTPLACE
OXFORDSHIRE CC,ENVIRONMENT AND ECONOMY,"	WASTE MNGMNT GEN",PAYMENTS TO TRANSPORT OPERATORS,14/06/2022,8293534440,68.00,WWW.GWR.COM
OXFORDSHIRE CC,"CHILDRENS, YOUNG PEOPLE AND FAMILIES",CHILDREN IN CARE NON-STAFFING - CENTRL 1,PAYMENT TO GOVERNMENT DEPARTMENTS,14/06/2022,8293534210,38.00,GEN REGISTER OFFICE
OXFORDSHIRE CC,"CHILDRENS, YOUNG PEOPLE AND FAMILIES",CHILDREN IN CARE NON-STAFFING - CENTRL 1,PAYMENT TO GOVERNMENT DEPARTMENTS,14/06/2022,8293534212,38.00,GEN REGISTER OFFICE
OXFORDSHIRE CC,SOCIAL AND COMMUNITY SERVICES,CSS - OXFORD,MATERIALS,14/06/2022,8293534216,13.98,AMZNMKTPLACE AMAZON.CO
OXFORDSHIRE CC,"CHILDRENS, YOUNG PEOPLE AND FAMILIES",QUALITY ASSURANCE NORTH TEAM,PAYMENTS TO TRANSPORT OPERATORS,14/06/2022,8293534360,72.24,THETRAINLINE.COM
OXFORDSHIRE CC,"CHILDRENS, YOUNG PEOPLE AND FAMILIES",FAMILY SOLUTIONS PLUS NON-STAFF - NORTH,OTHER TRANSPORT ARRANGEMENTS,14/06/2022,8293534362,15.00,STAGECOACH SERVICE
OXFORDSHIRE CC,"CHILDRENS, YOUNG PEOPLE AND FAMILIES",FAMILY SOLUTIONS PLUS NON-STAFF - NORTH,PAYMENTS TO TRANSPORT OPERATORS,14/06/2022,8293534364,6.82,THETRAINLINE.COM
OXFORDSHIRE CC,"CHILDRENS, YOUNG PEOPLE AND FAMILIES",FAMILY SOLUTIONS PLUS NON-STAFF - NORTH,PAYMENTS TO TRANSPORT OPERATORS,14/06/2022,8293534366,6.92,THETRAINLINE.COM
OXFORDSHIRE CC,"CHILDRENS, YOUNG PEOPLE AND FAMILIES",FAMILY SOLUTIONS PLUS NON-STAFF - NORTH,PAYMENTS TO TRANSPORT OPERATORS,14/06/2022,8293534368,3.81,THETRAINLINE.COM
OXFORDSHIRE CC,"CHILDRENS, YOUNG PEOPLE AND FAMILIES",FAMILY SOLUTIONS PLUS NON-STAFF - NORTH,PAYMENTS TO TRANSPORT OPERATORS,14/06/2022,8293534370,6.82,THETRAINLINE.COM
OXFORDSHIRE CC,ENVIRONMENT AND ECONOMY,WITNEY LIBRARY,"NEWSPAPERS, PERIODICALS AND PUBLICATIONS",14/06/2022,8293534310,18.28,PPOINT_ NEWZLINK LTD 3
OXFORDSHIRE CC,"CHILDRENS, YOUNG PEOPLE AND FAMILIES",THAME E&A HOME,MATERIALS,14/06/2022,8293534312,100.00,JD SPORTS FASHION PLC
OXFORDSHIRE CC,"CHILDRENS, YOUNG PEOPLE AND FAMILIES","	LOOKED AFTER CITY 2",OTHER TRANSPORT ARRANGEMENTS,14/06/2022,8293534460,6.00,OXFORDBUS.CO.UK
OXFORDSHIRE CC,"CHILDRENS, YOUNG PEOPLE AND FAMILIES",CHILDREN IN CARE NON-STAFFING - SOUTH,STATIONERY,14/06/2022,8293534614,8.00,PHOTO ME INTERNATIONAL
OXFORDSHIRE CC,SOCIAL AND COMMUNITY SERVICES,CSS - ABINGDON,EQUIPMENT,14/06/2022,8293534160,10.00,B&M 515 - ABINGDON
OXFORDSHIRE CC,"CHILDRENS, YOUNG PEOPLE AND FAMILIES",UASC UNDER 16,CLOTHING AND UNIFORMS,14/06/2022,8293534318,20.19,SHOE ZONE
OXFORDSHIRE CC,"CHILDRENS, YOUNG PEOPLE AND FAMILIES",UASC 16&17,RESIDENTIAL ACTIVITIES,14/06/2022,8293534320,20.99,THE GYM LIMITED
OXFORDSHIRE CC,"CHILDRENS, YOUNG PEOPLE AND FAMILIES","	MUSIC UNALLOCABLE",CATERING PROVISIONS,14/06/2022,8293534324,6.72,SANGHERA SUPERMARKET L
OXFORDSHIRE CC,CORPORATE CORE,BUSINESS INTELLECTUAL PROPERTY CENTRE,PAYMENTS TO TRANSPORT OPERATORS,14/06/2022,8293534326,73.66,THETRAINLINE.COM
OXFORDSHIRE CC,CORPORATE CORE,"	PERSONNEL",POSTAGE AND DELIVERY,14/06/2022,8293534470,15.05,ROYAL MAIL GROUP LTD
OXFORDSHIRE CC,"CHILDRENS, YOUNG PEOPLE AND FAMILIES",FAMILY SOLUTIONS PLUS NON-STAFF - NORTH,CATERING PROVISIONS,14/06/2022,8293534372,1.35,ICELAND
OXFORDSHIRE CC,ENVIRONMENT AND ECONOMY,MAJOR INFRASTRUCTURE DELIVERY,POSTAGE AND DELIVERY,14/06/2022,8293534374,46.35,ROYAL MAIL GROUP LTD
OXFORDSHIRE CC,SOCIAL AND COMMUNITY SERVICES,CSS WITNEY,MATERIALS,14/06/2022,8293534516,10.49,AMZNMKTPLACE
OXFORDSHIRE CC,SOCIAL AND COMMUNITY SERVICES,CSS WITNEY,MATERIALS,14/06/2022,8293534518,5.25,AMZNMKTPLACE
OXFORDSHIRE CC,"CHILDRENS, YOUNG PEOPLE AND FAMILIES","	SEN/ICT EQUIPMENT",PURCHASE OF IT EQUIPMENT,14/06/2022,8293534520,29.99,AMAZON.CO.UK 2C36D3Q64
OXFORDSHIRE CC,ENVIRONMENT AND ECONOMY,"	FLEET OPERATIONS",POSTAGE AND DELIVERY,14/06/2022,8293534530,11.10,POST OFFICE COUNTER
OXFORDSHIRE CC,CORPORATE CORE,BRIDGES GENERAL,PAYMENT TO GOVERNMENT DEPARTMENTS,14/06/2022,8293534670,446.00,ENVIROMENT AGENCY
OXFORDSHIRE CC,SOCIAL AND COMMUNITY SERVICES,SCHOOLS FM CATERING AREA 1,MATERIALS,14/06/2022,8293534328,11.99,AMZNMKTPLACE
OXFORDSHIRE CC,SOCIAL AND COMMUNITY SERVICES,SCHOOLS FM CATERING AREA 1,MATERIALS,14/06/2022,8293534330,178.60,AMZNMKTPLACE
OXFORDSHIRE CC,"CHILDRENS, YOUNG PEOPLE AND FAMILIES",FAMILY SOLUTIONS PLUS NON-STAFF � SOUTH,OTHER TRANSPORT ARRANGEMENTS,14/06/2022,8293534336,38.00,STAGECOACH SERVICE
OXFORDSHIRE CC,"CHILDRENS, YOUNG PEOPLE AND FAMILIES","DIDCOT CC, PARK ROAD",CATERING PROVISIONS,14/06/2022,8293534338,3.60,TESCO STORES
OXFORDSHIRE CC,SOCIAL AND COMMUNITY SERVICES,SCHOOLS FM CATERING AREA 4,MATERIALS,14/06/2022,8293534194,26.98,AMZNMKTPLACE AMAZON.CO
OXFORDSHIRE CC,"CHILDRENS, YOUNG PEOPLE AND FAMILIES","	LEAVING CARE CITY 2",VEHICLES AND PLANT - REPAIRS AND MAIN,14/06/2022,8293534200,283.00,HALFORDS ON LINE
OXFORDSHIRE CC,"CHILDRENS, YOUNG PEOPLE AND FAMILIES",FAMILY SOLUTIONS PLUS NON-STAFF � SOUTH,OTHER TRANSPORT ARRANGEMENTS,14/06/2022,8293534340,100.90,SUMUP   GO GREEN TAXIS
OXFORDSHIRE CC,"CHILDRENS, YOUNG PEOPLE AND FAMILIES",THAME E&A HOME,CATERING,14/06/2022,8293534342,9.68,MCDONALDS
OXFORDSHIRE CC,"CHILDRENS, YOUNG PEOPLE AND FAMILIES","	OCCG GRANT",OTHER TRANSPORT ARRANGEMENTS,14/06/2022,8293534344,3.00,WESTGATE OXFORD CAR PA
OXFORDSHIRE CC,"CHILDRENS, YOUNG PEOPLE AND FAMILIES",CHILDREN IN CARE NON-STAFFING - CENTRL 1,CLOTHING AND UNIFORMS,14/06/2022,8293534346,7.99,NEW LOOK
OXFORDSHIRE CC,"CHILDRENS, YOUNG PEOPLE AND FAMILIES",FAMILY SOLUTIONS PLUS NON-STAFF - NORTH,CLOTHING AND UNIFORMS,14/06/2022,8293534348,19.18,SHOE ZONE
OXFORDSHIRE CC,"CHILDRENS, YOUNG PEOPLE AND FAMILIES",CHILDREN IN CARE NON-STAFFING - CENTRL 1,DRUGS AND MEDICAL SUPPLIES,14/06/2022,8293534350,6.94,SUPERDRUG STORES PLC
OXFORDSHIRE CC,"CHILDRENS, YOUNG PEOPLE AND FAMILIES",WITNEY,CATERING PROVISIONS,14/06/2022,8293534356,11.25,SAINSBURYS S/MKTS
OXFORDSHIRE CC,"CHILDRENS, YOUNG PEOPLE AND FAMILIES",CNTL ERLY HELP-BBLEY,MATERIALS,14/06/2022,8293534358,13.68,AMZNMKTPLACE AMAZON.CO
OXFORDSHIRE CC,ENVIRONMENT AND ECONOMY,LEARNING & ACCESS,MATERIALS,14/06/2022,8293534498,11.55,AMZNMKTPLACE AMAZON.CO
OXFORDSHIRE CC,"CHILDRENS, YOUNG PEOPLE AND FAMILIES","	LOOKED AFTER CITY 2",PAYMENTS TO TRANSPORT OPERATORS,14/06/2022,8293534510,40.34,TRAINLINE.COM
OXFORDSHIRE CC,SOCIAL AND COMMUNITY SERVICES,CSS WITNEY,MATERIALS,14/06/2022,8293534514,14.99,AMZNMKTPLACE AMAZON.CO
OXFORDSHIRE CC,"CHILDRENS, YOUNG PEOPLE AND FAMILIES",40 THE MOORS,CATERING PROVISIONS,14/06/2022,8293534652,3.10,CO-OPERATIVE FOOD
OXFORDSHIRE CC,"CHILDRENS, YOUNG PEOPLE AND FAMILIES",40 THE MOORS,CATERING PROVISIONS,14/06/2022,8293534654,19.79,SAINSBURY'S S/MKT
OXFORDSHIRE CC,"CHILDRENS, YOUNG PEOPLE AND FAMILIES",40 THE MOORS,MATERIALS,14/06/2022,8293534656,49.99,ARGOS KIDLINGTON INSID
OXFORDSHIRE CC,"CHILDRENS, YOUNG PEOPLE AND FAMILIES",UASC 16&17,RESIDENTIAL ACTIVITIES,13/06/2022,8286957486,6.00,SPORTSDIRECT 218
OXFORDSHIRE CC,"CHILDRENS, YOUNG PEOPLE AND FAMILIES","	LEAVING CARE CITY 1",CATERING,13/06/2022,8286956900,87.90,TGI FRIDAY'S
OXFORDSHIRE CC,"CHILDRENS, YOUNG PEOPLE AND FAMILIES",FAMILY SOLUTIONS PLUS NON-STAFF � SOUTH,PAYMENTS TO TRANSPORT OPERATORS,13/06/2022,8286957558,105.69,WWW.TRAVELUP.CO.UK
OXFORDSHIRE CC,"CHILDRENS, YOUNG PEOPLE AND FAMILIES",THAME E&A HOME,CATERING,13/06/2022,8286957564,17.13,MCDONALDS
OXFORDSHIRE CC,"CHILDRENS, YOUNG PEOPLE AND FAMILIES",PAUSE PROGRAMME,CATERING,13/06/2022,8286957574,9.08,MCDONALDS
OXFORDSHIRE CC,"CHILDRENS, YOUNG PEOPLE AND FAMILIES",NTS UASC AGENCY,CATERING,13/06/2022,8286957582,1.29,B&M 515 - ABINGDON
OXFORDSHIRE CC,"CHILDRENS, YOUNG PEOPLE AND FAMILIES",CNTL ERLY HELP-BBLEY,MATERIALS,13/06/2022,8286957586,35.10,AMZNMKTPLACE AMAZON.CO
OXFORDSHIRE CC,"CHILDRENS, YOUNG PEOPLE AND FAMILIES",FSP NON-STAFFING - CENTRAL,OTHER TRANSPORT ARRANGEMENTS,13/06/2022,8286957590,92.00,WWW.THEKEY.CO.UK
OXFORDSHIRE CC,"CHILDRENS, YOUNG PEOPLE AND FAMILIES",FSP NON-STAFFING - CENTRAL,HIRE OF ACCOMMODATION AND FACILITIES,13/06/2022,8286957592,345.50,PREMIER INN
OXFORDSHIRE CC,CORPORATE CORE,INCOME TEAM,PAYMENT TO GOVERNMENT DEPARTMENTS,13/06/2022,8286957396,455.00,WWW.MONEYCLAIM.GOV
OXFORDSHIRE CC,"CHILDRENS, YOUNG PEOPLE AND FAMILIES","	LEAVING CARE NORTH",VEHICLE - HIRE CHARGES,13/06/2022,8286957400,330.00,PETER NORRIS (HAULAGE)
OXFORDSHIRE CC,"CHILDRENS, YOUNG PEOPLE AND FAMILIES",DIDCOT MOVE-ON HOME,CATERING PROVISIONS,13/06/2022,8286957406,3.80,SAINSBURYS S/MKTS
OXFORDSHIRE CC,"CHILDRENS, YOUNG PEOPLE AND FAMILIES",40 THE MOORS,CATERING PROVISIONS,13/06/2022,8286957420,230.09,SAINSBURYS.CO.UK
OXFORDSHIRE CC,"CHILDRENS, YOUNG PEOPLE AND FAMILIES",40 THE MOORS,MATERIALS,13/06/2022,8286958058,20.00,WWW.GAME.CO.UK
OXFORDSHIRE CC,"CHILDRENS, YOUNG PEOPLE AND FAMILIES",WITNEY,CATERING PROVISIONS,13/06/2022,8286957436,1.50,TESCO-STORES 3339
OXFORDSHIRE CC,"CHILDRENS, YOUNG PEOPLE AND FAMILIES",WITNEY,ENTERTAINMENT EXPENSES,13/06/2022,8286957438,36.78,CINEWORLD WIT CP
OXFORDSHIRE CC,"CHILDRENS, YOUNG PEOPLE AND FAMILIES",THAME E&A HOME,OTHER TRANSPORT ARRANGEMENTS,13/06/2022,8286957442,1.50,PARKING-COOPERS YARD
OXFORDSHIRE CC,"CHILDRENS, YOUNG PEOPLE AND FAMILIES",WITNEY,CATERING PROVISIONS,13/06/2022,8286957450,3.12,WM MORRISONS STORE
OXFORDSHIRE CC,"CHILDRENS, YOUNG PEOPLE AND FAMILIES",WITNEY,CATERING PROVISIONS,13/06/2022,8286957452,60.34,SAINSBURY'S S/MKT
OXFORDSHIRE CC,"CHILDRENS, YOUNG PEOPLE AND FAMILIES",NRPF & HOMELESSNESS,MATERIALS,13/06/2022,8286958094,37.95,ARGOS LTD
OXFORDSHIRE CC,"CHILDRENS, YOUNG PEOPLE AND FAMILIES",FSP NON-STAFFING - CENTRAL,MATERIALS,13/06/2022,8286958110,55.00,OXFORD CITY COUNCIL
OXFORDSHIRE CC,"CHILDRENS, YOUNG PEOPLE AND FAMILIES",FSP NON-STAFFING - CENTRAL,MATERIALS,13/06/2022,8286958112,-20.36,AMZ AMAZON BUSINESS UK
OXFORDSHIRE CC,"CHILDRENS, YOUNG PEOPLE AND FAMILIES",CSS WALLINGFORD,CATERING PROVISIONS,13/06/2022,8286956772,22.70,WAITROSE 675
